{"text_format":"1","workbook":"xlsx","n_sheets":5,"sheets":["Intro","Pivot","notes","Investment","Refineries DB"],"not_rendered":{"charts":0,"images":1,"macros":0,"external_links":0,"defined_names":3,"comments":2,"pivot_tables":1},"unopened":[],"bounds":{"document_bytes":16777216,"sheet_cells":100000,"rows_first":2000,"rows_last":500,"rows_between":2000,"halvings":0,"cell_chars":16384,"cell_head_chars":4096},"cells_cut":0,"cells_raw":0,"read":"whole","date_system":"1900"}

{"sheet":"Intro","index":0,"n_rows":10,"n_cols":2,"rows_kept":10,"cut":false,"hidden":false,"merged":[[6,1,6,9],[7,1,7,9],[8,1,8,9],[9,1,9,9]]}
[]
[null,"ARPEL REFINERIES CONFIGURATION DATABASE"]
[null,"Last update - August 2013"]
[]
[]
[null,"Description"]
[null,"* This file contains the Refineries Configuration of ARPEL member companies."]
[null,"* Tables were prepared by the Refining Committee specialists and they show the capacity of the processes that are carried out during crude oil refining in each oil refinery."]
[null,"* The file contains a Pivot table which show the current configuration of all refineries -and a sheet with the \"notes\" to the information displayed in the pivot table-"]
[null,"* It is highly recommended not to modify the pivot table layout if you are not experienced on the tool. In that case just use the default filters."]

{"sheet":"Pivot","index":1,"n_rows":73,"n_cols":49,"rows_kept":73,"cut":false,"hidden":false,"merged":[]}
[]
["Refineries Config. (2012)"]
[]
["* Use the default filters -grey buttons with a downward arrow- to get the desired information and layout "]
[]
["Company","(Todas)"]
["Country","(Todas)"]
[]
["Suma de Capacity (bbl/d)","Etiquetas de columna"]
["Etiquetas de fila","ARG - La Plata","ARG - Luján de Cuyo","ARG - Plaza Huincul","ARG - Campana","BOL - Gualberto Villarroel","BOL - Guillermo Elder Bell","CHI - ConCon","CHI - BioBio","CHI - Gregorio","CRI - Moín","ECU - Esmeralda","ECU - La Libertad","ECU - Sushufundi","SAL - Acajutla","JAM - Kingston","NIC - MANREF","PAR - Paraguay","PER - Talara","PER - Conchan","PER - Iquitos","PER - El Milagro","PER - La Pampilla","RDO - Haina","SUR - Paramaribo","T&T - Pointe-à-Pierre","URU - La Teja","COL - Barrancabermeja","COL - Cartagena","COL - Apiay","COL - Orito","MEX - Ref. \"Ing. Antonio M. Amor\" (Salamanca, Guanajuato)","MEX - Ref. \"Ing. Antonio Dovalí Jaime\" (Salina Cruz, Oaxaca)","MEX - Ref. \"Miguel Hidalgo\" (Tula, Hidalgo)","MEX - Ref. \"Ing. Héctor R. Lara Sosa\" (Cadereyta, Nvo. León)","MEX - Ref. \"Francisco I. Madero\", (Cd. Madero, Tamaulipas)","MEX - Ref. \"Gral. Lázaro Cárdenas\" (Minatitlán, Veracruz)","BRA - REMAN","BRA - LUBNOR","BRA - RLAM","BRA - RGAP","BRA - REDUC","BRA - RPBC","BRA - REPLAN","BRA - REVAP","BRA - RECAP","BRA - REPAR","BRA - REFAP","Total general"]
["a. Crude Distillation"]
["a.1 Atmospheric Crude Distillation",189000,105500,25000,90000,39800,19500,100640,113220,15720,25000,110000,45000,20000,22000,36000,21000,7500,62000,13500,10500,1700,107000,33861,7000,175000,50000,250000,80000,2500,1800,245000,330000,315000,275000,190000,335000,45911,7552,286153,150994,239020,169811,372327,251731,53459,201280,188679,5436658]
["a.2 Vacuum Distillation",64500,66000,null,50000,2200,null,55980,50320,null,1200,45300,null,null,4000,null,1600,null,28200,9000,null,null,60000,null,null,131000,20000,108000,null,null,null,137500,180000,136800,128000,128500,152000,8679,null,132777,81760,116994,81134,188679,125794,null,93721,37736,2427374]
["b. Conversion"]
["b.1 Catalytic Cracking",59800,23900,null,27900,null,null,31450,20100,null,null,18000,null,null,null,null,null,null,19000,null,null,null,13500,null,null,35000,null,105000,29000,null,null,40000,80000,80000,90000,60500,72000,3147,null,31446,42769,47200,62893,100629,88056,null,57898,21384,1260572]
["b.2 Resid Cat Cracking",null,null,null,null,null,null,null,null,null,null,null,null,null,null,null,null,null,null,null,null,null,null,null,null,null,12000,null,null,null,null,null,null,null,null,null,null,null,null,62890,null,null,null,null,null,22013,null,44025,140928]
["b.3 Hydrocracking (Mild Conversion)",null,18000,null,null,null,null,20000,35220,null,null,null,null,null,null,null,null,null,null,null,null,null,null,null,null,55000,null,null,null,null,null,null,null,null,null,null,null,null,null,null,null,null,null,null,null,null,null,null,128220]
["b.4 Coking -- Delayed",34700,40627,null,25000,null,null,22640,15100,null,null,null,null,null,null,null,null,null,null,null,null,null,null,null,null,null,null,null,null,null,null,null,null,null,54000,50000,55800,null,null,null,23902,null,32390,74214,null,null,null,12579,440952]
["b.5 Coking -- Fluid"]
["b.6 Visbreaking",null,null,null,null,null,null,9999.51,10060,null,6500,31500,null,null,null,null,null,null,null,null,null,null,27000,null,2700,30000,7000,24000,25000,null,null,null,50000,41000,null,null,null,null,null,null,null,null,null,null,null,null,null,null,264759.51]
["c. Upgrading"]
["c.1 H-Oil",null,null,null,null,null,null,null,null,null,null,null,null,null,null,null,null,null,null,null,null,null,null,null,null,null,null,null,null,null,null,18500,null,50000,null,null,null,null,null,null,null,null,null,null,null,null,null,null,68500]
["c.2 HDH"]
["c.3 Alkylation (Product basis)",null,2800,null,null,null,null,1100,null,null,null,null,null,null,null,null,null,null,null,null,null,null,null,null,null,8700,null,4500,null,null,null,3400,14500,7700,11100,9000,26800,null,null,null,null,null,2893,null,null,null,null,null,92493]
["c.4 Polymerization",null,null,null,null,null,null,null,null,null,null,null,null,null,null,null,null,null,null,null,null,null,null,null,null,null,null,null,null,null,null,null,null,null,null,null,2200,null,null,null,null,null,null,null,null,null,null,null,2200]
["c.5 C5/C6 Isomerization",6800,3472,null,null,null,3200,5400,5000,null,null,2700,null,null,null,null,null,null,null,null,null,null,null,null,null,7400,6000,null,null,null,null,12000,15000,15000,12000,10600,15000,null,null,null,null,null,null,null,null,null,null,null,119572]
["c.6 Catalytic Reforming -- Low Pressure",null,null,null,null,8172,3200,12580,13520,null,null,10000,null,null,null,null,null,null,null,null,null,null,null,null,null,28000,12000,9500,null,null,null,47300,20000,35000,46000,30000,20000,null,null,null,null,null,null,null,null,null,null,null,295272]
["c.7 Catalytic Reforming -- Medium Pressure",10200,10377,2600,11000,null,null,null,null,null,1300,null,null,null,null,3700,null,null,null,null,null,null,null,null,null,null,null,null,null,null,null,null,30000,30000,null,null,27000,null,null,null,null,null,null,null,null,null,null,null,126177]
["c.8 Catalytic Reforming -- High Pressure",null,null,null,null,null,3200,null,null,null,null,null,null,null,null,null,null,null,null,null,null,null,1700,6239,null,null,null,null,null,null,null,null,null,null,null,null,null,null,null,null,null,11951,11000,null,null,null,null,null,34090]
["d. Hydrotreating"]
["d.1 Gasoline/Naphtha Hydrotreating",36700,14880,null,17700,8172,3200,39870,33460,null,1200,13000,null,null,null,6800,null,null,null,null,null,null,2700,null,null,28000,18000,null,null,null,null,61500,65000,73000,61500,52000,63400,null,null,null,null,11951,11000,null,null,null,null,null,623033]
["d.2 Kerosene Hydrotreating",null,null,null,null,null,null,null,null,null,2200,null,null,null,null,7500,null,null,null,null,null,null,null,14665,null,18000,null,null,null,null,null,null,50000,100000,25000,15000,null,null,null,null,11321,34591,null,null,40883,null,null,null,319160]
["d.3 Distillate Hydrotreating",14900,20376,null,14300,null,null,44000,36170,null,null,24500,null,null,null,9500,null,null,null,null,null,null,null,null,null,12000,4500,null,null,null,null,53000,50000,48000,60000,25000,76000,null,null,null,49685,25157,34591,67296,40883,null,34613,25157,769628]
["d.4 Residual Desulfurization"]
["d.5 Gas Oil Desulfurization",null,null,null,null,null,null,9500,null,null,null,null,null,null,null,null,null,null,null,null,null,null,null,null,null,40000,null,23000,null,null,null,null,null,null,40000,49800,50000,null,null,null,null,null,null,null,null,null,null,null,212300]
["e. Hydrogen (k scf/d)"]
["e.1 Hydrogen Generation",null,21190,null,null,null,null,40000,34000,null,null,null,null,null,null,null,null,null,null,null,null,null,null,null,null,30000,null,22000,null,null,null,16500,null,null,588,420,480,null,1236,892,20653,29120,29860,55984,10451,null,9535,21153,344062]
["e.2 Purification",null,null,null,null,null,null,0,11000,null,null,null,null,null,null,null,null,null,null,null,null,null,null,3050,null,null,null,null,null,null,null,null,null,null,null,null,null,null,null,null,null,1880,null,null,null,null,null,null,15930]
["f. Other"]
["f.1 Aromatic Solvent Extraction",11700,null,null,null,720,null,null,null,null,null,null,null,null,null,null,null,null,null,null,null,null,null,null,null,null,null,5000,null,null,null,null,null,null,null,null,null,null,null,null,null,null,6920,null,null,null,null,null,24340]
["f.2 Other Aromatic Process",null,null,null,null,null,null,null,null,null,null,null,null,null,null,null,null,null,null,null,null,null,null,null,null,null,null,4000,null,null,null,null,null,null,null,null,null,null,null,null,null,null,null,null,null,null,null,null,4000]
["f.3 C4 Isomerization",null,null,null,null,null,null,null,null,null,null,null,null,null,null,null,null,null,null,null,null,null,null,null,null,null,null,null,null,null,null,null,null,2500,null,2600,null,null,null,null,null,null,null,null,null,null,null,null,5100]
["f.4 Solvent Desaphalting",9600,null,null,null,166,null,null,null,null,null,null,null,null,null,null,null,null,null,null,null,null,null,null,null,null,null,45000,null,null,null,null,null,null,null,null,null,null,null,3773,null,42772,null,null,42770,null,32096,null,176177]
["f.5 Lubes & Waxes",4900,null,null,null,512,null,null,null,null,null,null,null,null,null,null,null,null,null,null,null,null,null,null,null,null,null,2553.3333333333335,null,null,null,30500,null,null,null,null,null,null,1076,5221,null,13712,null,null,null,null,null,null,58474.333333333336]
["f.6 Asphalt & Bitumen Manufacture",7500,null,null,null,37,null,null,null,null,1200,null,null,null,null,2000,null,null,null,null,null,null,null,null,100,null,null,9000,null,null,null,null,null,5000,15000,18000,null,null,null,null,null,null,null,null,null,null,null,null,57837]
["f.7 Sulfur Recovery Unit (tonnes/day)",54,54,null,null,null,null,110,80,null,null,63,null,null,null,null,null,null,null,null,null,null,null,null,null,100,null,64,30,null,null,240,240,1000,600,710,680,null,null,72,73,104,70,212,85,9,70,98,4818]
["g. Fractionation"]
["g.1 Propane/Propylene Splitter",null,null,null,null,null,null,3130,7200,null,null,null,null,null,null,null,null,null,null,null,null,null,null,null,null,null,null,null,null,null,null,4000,null,null,7500,null,null,null,null,null,null,null,null,null,null,null,null,null,21830]
["g.2 Deisobutanizer",null,5740,null,null,null,null,null,null,null,null,null,null,null,null,null,null,null,null,null,null,null,null,null,null,null,null,null,null,null,null,null,null,null,null,null,70000,null,null,null,null,null,null,null,null,null,null,null,75740]
["g.3 Deisopentanizer",null,null,null,null,1350,800,null,null,null,null,2700,null,null,null,null,null,null,null,null,null,null,null,null,null,null,null,null,null,null,null,null,null,null,null,null,null,null,null,null,null,null,null,null,null,null,null,null,4850]
["g.4 Deisohexanizer",null,null,null,null,1350,null,null,0,null,null,null,null,null,null,null,null,null,null,null,null,null,null,null,null,null,null,null,null,null,null,null,null,null,null,null,null,null,null,9254,null,null,null,null,null,null,null,null,10604]
["g.5 Alkylate Splitter",null,null,null,null,null,null,1100,null,null,null,null,null,null,null,null,null,null,null,null,null,null,null,null,null,null,null,null,null,null,null,null,null,null,null,null,null,null,null,null,null,null,null,null,null,null,null,null,1100]
["g.6 Reformate Splitter",null,null,null,null,2950,2916,null,null,null,null,null,null,null,null,7500,null,null,null,null,null,null,null,null,null,null,null,null,null,null,null,null,null,null,null,null,null,null,null,null,null,null,2893,null,null,null,null,null,16259]
["g.7 Cat Cracked Gasoline Splitter",30000,26790,null,30000,null,null,20400,14000,null,null,null,null,null,null,null,null,null,null,null,null,null,null,null,null,null,null,null,null,null,null,null,null,null,null,null,null,null,null,null,null,null,null,null,null,null,null,null,121190]
["h. Oxygenates"]
["h.1 MTBE",1400,1321,null,1400,null,null,1530,null,null,null,null,null,null,null,null,null,null,null,null,null,null,null,null,null,1000,null,null,null,null,null,1100,800,2200,3000,2500,null,null,null,null,null,1261,null,2079,1572,null,1913,null,23076]
["h.2 TAME",1600,null,null,1600,null,null,null,null,null,null,null,null,null,null,null,null,null,null,null,null,null,null,null,null,null,null,null,null,null,null,null,1500,2200,null,2600,null,null,null,null,null,null,null,null,null,null,null,null,9500]
["i. Tank Storage (bbl)"]
["i.1 Crude Oil",1400000,736000,300000,1400000,325862.7,256733,3460000,2960000,430000,750000,1077050,1054000,154000,null,1058400,null,531000,637000,343000,216300,24500,2807000,781000,60000,2470842,3800000,2000000,null,null,null,825000,2931000,1147000,1319000,1250000,1046000,940000,255000,4661295,2984.9245283018868,5776700,3634100,7188500,4793800,null,3325600,4193200,72321867.624528304]
["i.2 Gasoline",600000,346000,91000,600000,122208.41,41513,1120000,833000,null,550000,640800,312000,69955,null,408741,null,337000,413160,265500,63800,7800,470400,369000,null,1623996,930000,1100000,null,null,null,793000,1115000,466000,762000,788000,707000,372000,28000,1054000,1390.5849056603774,1236000,2171200,3136000,2874700,1279.0880503144654,1595400,2077700,30494543.082955975]
["i.3 Diesel",753000,453000,153000,753000,202675.1,101159,836700,450000,120000,680000,652250,280500,64175,null,307073,null,1016400,79460,841200,58400,7000,956500,425000,10000,1365524,570000,450000,null,null,null,231000,585000,599000,515000,342000,488000,567000,104000,867000,1155.0943396226414,2370700,1483000,3397700,1891000,637.45283018867929,1116900,1503200,27648308.64716981]
["j. Conversion Rate "]
["j.1 Conversion Rate ",0.98,1.32,0,1.2444,0.26690000000000003,0.21329999999999999,1.8110999999999999,1.2331000000000001,0,0.2626,0.70130000000000003,0,0,0,0.85940000000000005,0,0,0.30649999999999999,0,0,0,0.2422,0.56299999999999994,0.1273,0.68740000000000001,0.87119999999999997,0.45169999999999999,0.46560000000000001,0,0,0.7848367346938776,0.9574242424242424,1.230031746031746,1.3696181818181818,1.4097894736842105,1.0515283582089552,6.8545664437716453E-2,0,0.32966979203433128,1.0775938116746362,0.58743494268262075,1.0436561824616779,0.84409027548364735,0.77206144654412845,0.41177350867019585,0.5112028020667726,0.63333704333815644,25.689594206255098]
["k. Desulfurization Rate (%)"]
["k.1 Desulfurization Rate (%)",0.27301587301587299,0.33418009478672983,0,0.35555555555555557,0.20532663316582914,0.1641025641025641,0.92776232114467405,0.61499735029146796,0,0.13600000000000001,0.34090909090909088,0,0,0,0.66111111111111109,0,0,0,0,0,0,2.5233644859813085E-2,0.4330941200791471,0,0.56000000000000005,0.45,9.1999999999999998E-2,0,0,0,0.4673469387755102,0.5,0.70158730158730154,0.67818181818181822,0.74631578947368427,0.56537313432835823,0,0,0,0.40402929917745078,0.29997071374780354,0.26848084046380977,0.18074434569612197,0.32481498107106394,0,0.17196442766295708,0.13333227333195533,11.015430222519688]
[]
[]
[null,"Yellow cells have comments or notes. Please check it in the \"notes\" page."]
[]
[null,"Some values are hidden because the pivot table does not calculate the average values automatically"]
[]
[null,"Conversion Rate % (FCC equiv) = (Cap. FCC x 1 + Cap. HYD x 1,3 + Cap. VISB x 0,33 + Cap. Coking x 1,7.)*100/Distillation Capacity"]
[null,"Desulfurization Rate (%) =  S (HDS Capacity) x 100 / Distillation Capacity"]

{"sheet":"notes","index":2,"n_rows":8,"n_cols":4,"rows_kept":8,"cut":false,"hidden":false,"merged":[]}
["Country","Refinery","Process","Comment"]
["Uruguay","La Teja","Crude Oil Storage","Buoy Terminal Tanks are included together with Refinery Site Crude Tanks (these being 13% of whole crude capacity). Crude pipeline & slop tanks are not included."]
[null,null,"Gasoline storage","Naphta and all gasoline grades are included, Heavy Naphta being 28 % of the Refinery capacities shown here."]
[null,null,"Diesel storage","No other distillate (Jet Fuel, Kerosene, Solvents) are included here, just Gas Oil & Diesel Oil capacities at Refinery are shown."]
["Jamaica","Kingston","Atmospheric Distillation Capacity","the Maximum Capacity of the exisiting Atmospheric crude unit is approx. 36,000 bpsd processing 30 API crude, or 32,000 bpd processing 26 API crude"]
["Bolivia","G. Villaroel (Cochabamba)","Lubes & Waxes","Wax 75 BPD de Slack Wax"]
["Argentina","La Plata","Lubes & Waxes","Capacity + 50tons of waxes"]
["México","All","Storage","There is no data available on Oil & Products Storage of PEMEX Refineries"]

{"sheet":"Investment","index":3,"n_rows":66,"n_cols":10,"rows_kept":66,"cut":false,"hidden":true,"merged":[]}
["Country","Refinery","Owner/operator","Type of Process","Process","Estimated total investment (US$mn)","Capacity Upgrade (bbl/d)","Estimated Final Capacity (bbl/d)","Estimated Start-Up","Comments"]
["Argentina","La Plata","YPF","Conversion","Coking -- Delayed",450,null,46020,2014]
["Argentina","La Plata","YPF","Hydrotreating","Distillate Hydrotreating",325,null,46300,2012]
["Argentina","La Plata","YPF","Tank Storage (bbl)","Crude Oil",20,471000,1871000,2012]
["Argentina","Luján de Cuyo","YPF","Hydrotreating","Gasoline/Naphtha Hydrotreating",155,9060,23940,2012]
["Argentina","Luján de Cuyo","YPF","Hydrotreating","Gas Oil Desulfurization",120,16600,16600,2012]
["Argentina","Luján de Cuyo","YPF","Tank Storage (bbl)","Crude Oil",18,188670,924670,2012]
["Chile","ConCon (Aconcagua)","ENAP","Upgrading","Alkylation (Product basis)",230,6700,7800,"2012"]
["Costa Rica","Moín (Limón)","RECOPE","Crude Distillation","Atmospheric Crude Distillation","125-175",15000,40000,2015]
["Costa Rica","Moín (Limón)","RECOPE","Crude Distillation","Vacuum Distillation","120-150",38800,40000,2015]
["Costa Rica","Moín (Limón)","RECOPE","Conversion","Hydrocracking (Mild Conversion)","125-150",16000,16000]
["Costa Rica","Moín (Limón)","RECOPE","Conversion","Coking -- Delayed","125-150",12000,12000]
["Costa Rica","Moín (Limón)","RECOPE","Upgrading","C5/C6 Isomerization","25 - 50",1300,1300,2015]
["Costa Rica","Moín (Limón)","RECOPE","Upgrading","Catalytic Reforming -- Medium Pressure","75-125",8700,10000,2105]
["Costa Rica","Moín (Limón)","RECOPE","Hydrotreating","Gasoline/Naphtha Hydrotreating","50-100",10800,12000,2015]
["Costa Rica","Moín (Limón)","RECOPE","Hydrotreating","Kerosene Hydrotreating","15 - 50",1300,3500,2015]
["Costa Rica","Moín (Limón)","RECOPE","Hydrotreating","Distillate Hydrotreating","75-125",25000,25000,2015]
["Costa Rica","Moín (Limón)","RECOPE","Other","Asphalt & Bitumen Manufacture","15-20",800,2000,2015,"Revamping"]
["Costa Rica","Moín (Limón)","RECOPE","Other","Sulfur Recovery Unit (tonnes/day)","15-30",56,56.268571428571427,2015]
["Ecuador","Esmeraldas","EP PETROECUADOR","Conversion","Catalytic Cracking",350,2000,20000,"2012","Revamping"]
["Perú","Refinería Talara","Petroperú","Crude Distillation","Atmospheric Crude Distillation","nda",33000,95000,"Julio 2016"]
["Perú","Refinería Talara","PetroPerú","Crude Distillation","Vacuum Distillation","nda",24800,53000,"Julio 2016"]
["Perú","Refinería Talara","PetroPerú","Conversion","Catalytic Cracking","nda",6000,25000,"Julio 2016"]
["Perú","Refinería Talara","PetroPerú","Upgrading","Catalytic Reforming -- Medium Pressure","nda",9500,9500,"Julio 2016"]
["Perú","Refinería Talara","PetroPerú","Hydrotreating","Distillate Hydrotreating","nda",41000,41000,"Julio 2016"]
["Perú","Refinería Talara","PetroPerú","Hydrogen (k scf/d)","Hydrogen Generation kscf/d","nda",30000,30000,"Julio 2016"]
["Perú","Refinería Talara","PetroPerú","Other","Sulfur Recovery Unit (tonnes/day)","nda",560,560,"Julio 2016"]
["Perú","Refinería Talara","PetroPerú","Tank Storage (bbl)","Crude Oil",17.899999999999999,380000,1017000,"Enero 2014"]
["Perú","Refinería Talara","PetroPerú","Tank Storage (bbl)","LPG",26.8,60000,"nda","Setiembre 2013"]
["Perú","Refinería Talara","PetroPerú","Tank Storage (bbl)","Aviation (jet a1)",7.1,240000,"nda","may/14"]
["Perú","Refinería Talara","PetroPerú","Tank Storage (bbl)","Diesel/ BioDiesel / Gasoline / Aviation",41.5,772000,{"$f":"492000+G31","v":1264000},"nov/13 - may/14 - feb/15"]
["Perú","Conchan (Lima)","PetroPerú","Crude Distillation","Atmospheric Crude Distillation",4.5,2000,15500,"Abril 2013"]
["Perú","Conchan (Lima)","PetroPerú","Tank Storage (bbl)","Crude Oil",8.6,320000,663000,"Julio 2014"]
["Perú","Conchan (Lima)","PetroPerú","Tank Storage (bbl)","Gasoline",3,120000,385500,"Diciembre 2013"]
["Perú","Conchan (Lima)","PetroPerú","Tank Storage (bbl)","Asphalt",1.6,60000,"nda","Setiembre 2014"]
["Perú","Conchan (Lima)","PetroPerú","Tank Storage (bbl)","Biodiesel",3.2,120000,"nda","Diciembre 2013"]
["Perú","Conchan (Lima)","PetroPerú","Tank Storage (bbl)","Bioethanol",3.1,80500,"nda","Agosto 2013"]
["Perú","Conchan (Lima)","PetroPerú","Tank Storage (bbl)","Diesel",3.9,240000,1081200,"Abril 2012"]
["Perú","Iquitos","PetroPerú","Tank Storage (bbl)","Crude Oil",1,20000,236300,"noviembre 2013"]
["Perú","Iquitos","PetroPerú","Tank Storage (bbl)","Diesel / gasoline",4.3,80000,{"$f":"138400+63800","v":202200},2012]
["Perú","La Pampilla (Callao)","PetroPerú","Upgrading","C5/C6 Isomerization",18.2,2500,2500,"jan/13"]
["Perú","La Pampilla (Callao)","PetroPerú","Upgrading","Catalytic Reforming -- High Pressure",43.1,{"$f":"+H42-1700","v":5900},7600,"jan/13"]
["Perú","La Pampilla (Callao)","PetroPerú","Hydrotreating","Gasoline/Naphtha Hydrotreating",55.9,{"$f":"+H43-2700","v":8800},11500,"jan/13"]
["Perú","La Pampilla (Callao)","PetroPerú","Fractionation","Cat Cracked Gasoline Splitter",29.200000000000003,5760,5760,"jan/13"]
["Uruguay","La Teja","ANCAP","Hydrotreating","Gasoline/Naphtha Hydrotreating",60,5000,23000,"Marzo de 2013"]
["Uruguay","La Teja","ANCAP","Hydrotreating","Distillate Hydrotreating",120,18500,22500,"Marzo de 2013"]
["Uruguay","La Teja","ANCAP","Other","Sulfur Recovery Unit (tonnes/day)",40,40,40,"Marzo de 2013"]
["Surinam","Paramaribo","Staatsolie","Crude Distillation","Atmospheric Crude Distillation","nda",8000,15000,"jul/2014"]
["Surinam","Paramaribo","Staatsolie","Conversion","Hydrocracking (Mild Conversion)","nda",10040,10040,"jul/2014"]
["Surinam","Paramaribo","Staatsolie","Other","Sulfur Recovery Unit (tonnes/day)","nda",34,34,"jul/2014"]
["Surinam","Paramaribo","Staatsolie","Upgrading","Catalytic Reforming -- Medium Pressure","nda",3100,3100,"jul/2014"]
["Surinam","Paramaribo","Staatsolie","Hydrogen (k scf/d)","Hydrogen Generation","nda",20300,20300,"jul/2014"]
["Surinam","Paramaribo","Staatsolie","Tank Storage (bbl)","Crude Oil","nda",165000,225000,"dic/2014"]
["Surinam","Paramaribo","Staatsolie","Tank Storage (bbl)","Gasoline","nda",37000,37000,"jul/2014"]
["Surinam","Paramaribo","Staatsolie","Tank Storage (bbl)","Diesel","nda",72000,82000,"jul/2014"]
["Colombia","Cartagena","Ecopetrol","Crude Distillation","Atmospheric Crude Distillation","nda",85000,165000,"2014"]
["Colombia","Cartagena","Ecopetrol","Crude Distillation","Vacuum Distillation","nda",92000,92000,"2014"]
["Colombia","Cartagena","Ecopetrol","Conversion","Catalytic Cracking","nda",6000,35000,"2014"]
["Colombia","Cartagena","Ecopetrol","Conversion","Hydrocracking (Mild Conversion)","nda",35000,35000,"2014"]
["Colombia","Cartagena","Ecopetrol","Conversion","Coking -- Delayed","nda",40000,40000,"2014"]
["Colombia","Cartagena","Ecopetrol","Upgrading","Alkylation (Product basis)","nda",5000,5000,"2014"]
["Colombia","Cartagena","Ecopetrol","Hydrotreating","Gasoline/Naphtha Hydrotreating","nda",40000,40000,"2014"]
["Colombia","Cartagena","Ecopetrol","Hydrotreating","Distillate Hydrotreating","nda",70000,70000,"2014"]
["Colombia","Cartagena","Ecopetrol","Hydrogen (k scf/d)","Hydrogen Generation","nda",90000,90000,"2014"]
["Colombia","Cartagena","Ecopetrol","Other","C4 Isomerization","nda",1000,1000,"2014"]
["Colombia","Cartagena","Ecopetrol","Other","Sulfur Recovery Unit (tonnes/day)","nda",240,270,"2014"]

{"sheet":"Refineries DB","index":4,"n_rows":2069,"n_cols":14,"rows_kept":2069,"cut":false,"hidden":true,"merged":[]}
["Año Public.","últ actualiz.","Tipo de info","Refinery (country)","Country","Company","Type of process","Process","Capacity (bbl/d)","New Projects (bbl/d)","Investment Estimate (M'US$)","Start-up Estimate","Notes"]
[2012,"2011-08-01","Verificada","ARG - La Plata","Argentina","YPF","a. Crude Distillation","a.1 Atmospheric Crude Distillation",189000]
[2012,"2011-08-01","Verificada","ARG - La Plata","Argentina","YPF","a. Crude Distillation","a.2 Vacuum Distillation",64500]
[2012,"2011-08-01","Verificada","ARG - La Plata","Argentina","YPF","b. Conversion","b.1 Catalytic Cracking",59800]
[2012,"2011-08-01","Verificada","ARG - La Plata","Argentina","YPF","b. Conversion","b.2 Resid Cat Cracking"]
[2012,"2011-08-01","Verificada","ARG - La Plata","Argentina","YPF","b. Conversion","b.3 Hydrocracking (Mild Conversion)"]
[2012,"2011-08-01","Verificada","ARG - La Plata","Argentina","YPF","b. Conversion","b.4 Coking -- Delayed",34700,11320,450,2014]
[2012,"2011-08-01","Verificada","ARG - La Plata","Argentina","YPF","b. Conversion","b.5 Coking -- Fluid"]
[2012,"2011-08-01","Verificada","ARG - La Plata","Argentina","YPF","b. Conversion","b.6 Visbreaking"]
[2012,"2011-08-01","Verificada","ARG - La Plata","Argentina","YPF","c. Upgrading","c.1 H-Oil"]
[2012,"2011-08-01","Verificada","ARG - La Plata","Argentina","YPF","c. Upgrading","c.2 HDH"]
[2012,"2011-08-01","Verificada","ARG - La Plata","Argentina","YPF","c. Upgrading","c.3 Alkylation (Product basis)"]
[2012,"2011-08-01","Verificada","ARG - La Plata","Argentina","YPF","c. Upgrading","c.4 Polymerization"]
[2012,"2011-08-01","Verificada","ARG - La Plata","Argentina","YPF","c. Upgrading","c.5 C5/C6 Isomerization",6800]
[2012,"2011-08-01","Verificada","ARG - La Plata","Argentina","YPF","c. Upgrading","c.6 Catalytic Reforming -- Low Pressure"]
[2012,"2011-08-01","Verificada","ARG - La Plata","Argentina","YPF","c. Upgrading","c.7 Catalytic Reforming -- Medium Pressure",10200]
[2012,"2011-08-01","Verificada","ARG - La Plata","Argentina","YPF","c. Upgrading","c.8 Catalytic Reforming -- High Pressure"]
[2012,"2011-08-01","Verificada","ARG - La Plata","Argentina","YPF","d. Hydrotreating","d.1 Gasoline/Naphtha Hydrotreating",36700]
[2012,"2011-08-01","Verificada","ARG - La Plata","Argentina","YPF","d. Hydrotreating","d.2 Kerosene Hydrotreating"]
[2012,"2011-08-01","Verificada","ARG - La Plata","Argentina","YPF","d. Hydrotreating","d.3 Distillate Hydrotreating",14900,31400,325,2012]
[2012,"2011-08-01","Verificada","ARG - La Plata","Argentina","YPF","d. Hydrotreating","d.4 Residual Desulfurization"]
[2012,"2011-08-01","Verificada","ARG - La Plata","Argentina","YPF","d. Hydrotreating","d.5 Gas Oil Desulfurization"]
[2012,"2011-08-01","Verificada","ARG - La Plata","Argentina","YPF","e. Hydrogen (k scf/d)","e.1 Hydrogen Generation"]
[2012,"2011-08-01","Verificada","ARG - La Plata","Argentina","YPF","e. Hydrogen (k scf/d)","e.2 Purification"]
[2012,"2011-08-01","Verificada","ARG - La Plata","Argentina","YPF","f. Other","f.1 Aromatic Solvent Extraction",11700]
[2012,"2011-08-01","Verificada","ARG - La Plata","Argentina","YPF","f. Other","f.2 Other Aromatic Process"]
[2012,"2011-08-01","Verificada","ARG - La Plata","Argentina","YPF","f. Other","f.3 C4 Isomerization"]
[2012,"2011-08-01","Verificada","ARG - La Plata","Argentina","YPF","f. Other","f.4 Solvent Desaphalting",9600]
[2012,"2011-08-01","Verificada","ARG - La Plata","Argentina","YPF","f. Other","f.5 Lubes & Waxes",4900,null,null,null,"Capacity: +50 tons de waxes"]
[2012,"2011-08-01","Verificada","ARG - La Plata","Argentina","YPF","f. Other","f.6 Asphalt & Bitumen Manufacture",7500]
[2012,"2011-08-01","Verificada","ARG - La Plata","Argentina","YPF","f. Other","f.7 Sulfur Recovery Unit (tonnes/day)",54]
[2012,"2011-08-01","Verificada","ARG - La Plata","Argentina","YPF","g. Fractionation","g.1 Propane/Propylene Splitter"]
[2012,"2011-08-01","Verificada","ARG - La Plata","Argentina","YPF","g. Fractionation","g.2 Deisobutanizer"]
[2012,"2011-08-01","Verificada","ARG - La Plata","Argentina","YPF","g. Fractionation","g.3 Deisopentanizer"]
[2012,"2011-08-01","Verificada","ARG - La Plata","Argentina","YPF","g. Fractionation","g.4 Deisohexanizer"]
[2012,"2011-08-01","Verificada","ARG - La Plata","Argentina","YPF","g. Fractionation","g.5 Alkylate Splitter"]
[2012,"2011-08-01","Verificada","ARG - La Plata","Argentina","YPF","g. Fractionation","g.6 Reformate Splitter"]
[2012,"2011-08-01","Verificada","ARG - La Plata","Argentina","YPF","g. Fractionation","g.7 Cat Cracked Gasoline Splitter",30000]
[2012,"2011-08-01","Verificada","ARG - La Plata","Argentina","YPF","h. Oxygenates","h.1 MTBE",1400]
[2012,"2011-08-01","Verificada","ARG - La Plata","Argentina","YPF","h. Oxygenates","h.2 TAME",1600]
[2012,"2011-08-01","Verificada","ARG - La Plata","Argentina","YPF","i. Tank Storage (bbl)","i.1 Crude Oil",1400000,471000,20,2012]
[2012,"2011-08-01","Verificada","ARG - La Plata","Argentina","YPF","i. Tank Storage (bbl)","i.2 Gasoline",600000]
[2012,"2011-08-01","Verificada","ARG - La Plata","Argentina","YPF","i. Tank Storage (bbl)","i.3 Diesel",753000]
[2012,"2011-08-01","Verificada","ARG - La Plata","Argentina","YPF","j. Conversion Rate ","j.1 Conversion Rate ",0.98]
[2012,"2011-08-01","Verificada","ARG - La Plata","Argentina","YPF","k. Desulfurization Rate (%)","k.1 Desulfurization Rate (%)",{"$f":"SUM(I18:I22)/I2","v":0.27301587301587299}]
[2012,"2011-08-01","Verificada","ARG - Luján de Cuyo","Argentina","YPF","a. Crude Distillation","a.1 Atmospheric Crude Distillation",105500]
[2012,"2011-08-01","Verificada","ARG - Luján de Cuyo","Argentina","YPF","a. Crude Distillation","a.2 Vacuum Distillation",66000]
[2012,"2011-08-01","Verificada","ARG - Luján de Cuyo","Argentina","YPF","b. Conversion","b.1 Catalytic Cracking",23900]
[2012,"2011-08-01","Verificada","ARG - Luján de Cuyo","Argentina","YPF","b. Conversion","b.2 Resid Cat Cracking"]
[2012,"2011-08-01","Verificada","ARG - Luján de Cuyo","Argentina","YPF","b. Conversion","b.3 Hydrocracking (Mild Conversion)",18000]
[2012,"2011-08-01","Verificada","ARG - Luján de Cuyo","Argentina","YPF","b. Conversion","b.4 Coking -- Delayed",40627]
[2012,"2011-08-01","Verificada","ARG - Luján de Cuyo","Argentina","YPF","b. Conversion","b.5 Coking -- Fluid"]
[2012,"2011-08-01","Verificada","ARG - Luján de Cuyo","Argentina","YPF","b. Conversion","b.6 Visbreaking"]
[2012,"2011-08-01","Verificada","ARG - Luján de Cuyo","Argentina","YPF","c. Upgrading","c.1 H-Oil"]
[2012,"2011-08-01","Verificada","ARG - Luján de Cuyo","Argentina","YPF","c. Upgrading","c.2 HDH"]
[2012,"2011-08-01","Verificada","ARG - Luján de Cuyo","Argentina","YPF","c. Upgrading","c.3 Alkylation (Product basis)",2800]
[2012,"2011-08-01","Verificada","ARG - Luján de Cuyo","Argentina","YPF","c. Upgrading","c.4 Polymerization"]
[2012,"2011-08-01","Verificada","ARG - Luján de Cuyo","Argentina","YPF","c. Upgrading","c.5 C5/C6 Isomerization",3472]
[2012,"2011-08-01","Verificada","ARG - Luján de Cuyo","Argentina","YPF","c. Upgrading","c.6 Catalytic Reforming -- Low Pressure"]
[2012,"2011-08-01","Verificada","ARG - Luján de Cuyo","Argentina","YPF","c. Upgrading","c.7 Catalytic Reforming -- Medium Pressure",10377]
[2012,"2011-08-01","Verificada","ARG - Luján de Cuyo","Argentina","YPF","c. Upgrading","c.8 Catalytic Reforming -- High Pressure"]
[2012,"2011-08-01","Verificada","ARG - Luján de Cuyo","Argentina","YPF","d. Hydrotreating","d.1 Gasoline/Naphtha Hydrotreating",14880,9060,155,2012]
[2012,"2011-08-01","Verificada","ARG - Luján de Cuyo","Argentina","YPF","d. Hydrotreating","d.2 Kerosene Hydrotreating"]
[2012,"2011-08-01","Verificada","ARG - Luján de Cuyo","Argentina","YPF","d. Hydrotreating","d.3 Distillate Hydrotreating",20376]
[2012,"2011-08-01","Verificada","ARG - Luján de Cuyo","Argentina","YPF","d. Hydrotreating","d.4 Residual Desulfurization"]
[2012,"2011-08-01","Verificada","ARG - Luján de Cuyo","Argentina","YPF","d. Hydrotreating","d.5 Gas Oil Desulfurization",null,16600,120,2012]
[2012,"2011-08-01","Verificada","ARG - Luján de Cuyo","Argentina","YPF","e. Hydrogen (k scf/d)","e.1 Hydrogen Generation",21190,5085.3120078943566,null,2012]
[2012,"2011-08-01","Verificada","ARG - Luján de Cuyo","Argentina","YPF","e. Hydrogen (k scf/d)","e.2 Purification"]
[2012,"2011-08-01","Verificada","ARG - Luján de Cuyo","Argentina","YPF","f. Other","f.1 Aromatic Solvent Extraction"]
[2012,"2011-08-01","Verificada","ARG - Luján de Cuyo","Argentina","YPF","f. Other","f.2 Other Aromatic Process"]
[2012,"2011-08-01","Verificada","ARG - Luján de Cuyo","Argentina","YPF","f. Other","f.3 C4 Isomerization"]
[2012,"2011-08-01","Verificada","ARG - Luján de Cuyo","Argentina","YPF","f. Other","f.4 Solvent Desaphalting"]
[2012,"2011-08-01","Verificada","ARG - Luján de Cuyo","Argentina","YPF","f. Other","f.5 Lubes & Waxes"]
[2012,"2011-08-01","Verificada","ARG - Luján de Cuyo","Argentina","YPF","f. Other","f.6 Asphalt & Bitumen Manufacture"]
[2012,"2011-08-01","Verificada","ARG - Luján de Cuyo","Argentina","YPF","f. Other","f.7 Sulfur Recovery Unit (tonnes/day)",54]
[2012,"2011-08-01","Verificada","ARG - Luján de Cuyo","Argentina","YPF","g. Fractionation","g.1 Propane/Propylene Splitter"]
[2012,"2011-08-01","Verificada","ARG - Luján de Cuyo","Argentina","YPF","g. Fractionation","g.2 Deisobutanizer",5740]
[2012,"2011-08-01","Verificada","ARG - Luján de Cuyo","Argentina","YPF","g. Fractionation","g.3 Deisopentanizer"]
[2012,"2011-08-01","Verificada","ARG - Luján de Cuyo","Argentina","YPF","g. Fractionation","g.4 Deisohexanizer"]
[2012,"2011-08-01","Verificada","ARG - Luján de Cuyo","Argentina","YPF","g. Fractionation","g.5 Alkylate Splitter"]
[2012,"2011-08-01","Verificada","ARG - Luján de Cuyo","Argentina","YPF","g. Fractionation","g.6 Reformate Splitter"]
[2012,"2011-08-01","Verificada","ARG - Luján de Cuyo","Argentina","YPF","g. Fractionation","g.7 Cat Cracked Gasoline Splitter",26790]
[2012,"2011-08-01","Verificada","ARG - Luján de Cuyo","Argentina","YPF","h. Oxygenates","h.1 MTBE",1321]
[2012,"2011-08-01","Verificada","ARG - Luján de Cuyo","Argentina","YPF","h. Oxygenates","h.2 TAME"]
[2012,"2011-08-01","Verificada","ARG - Luján de Cuyo","Argentina","YPF","i. Tank Storage (bbl)","i.1 Crude Oil",736000,188670,18,2012]
[2012,"2011-08-01","Verificada","ARG - Luján de Cuyo","Argentina","YPF","i. Tank Storage (bbl)","i.2 Gasoline",346000]
[2012,"2011-08-01","Verificada","ARG - Luján de Cuyo","Argentina","YPF","i. Tank Storage (bbl)","i.3 Diesel",453000]
[2012,"2011-08-01","Verificada","ARG - Luján de Cuyo","Argentina","YPF","j. Conversion Rate ","j.1 Conversion Rate ",1.32]
[2012,"2011-08-01","Verificada","ARG - Luján de Cuyo","Argentina","YPF","k. Desulfurization Rate (%)","k.1 Desulfurization Rate (%)",{"$f":"SUM(I62:I66)/I46","v":0.33418009478672983}]
[2012,"2011-08-01","Verificada","ARG - Plaza Huincul","Argentina","YPF","a. Crude Distillation","a.1 Atmospheric Crude Distillation",25000]
[2012,"2011-08-01","Verificada","ARG - Plaza Huincul","Argentina","YPF","a. Crude Distillation","a.2 Vacuum Distillation"]
[2012,"2011-08-01","Verificada","ARG - Plaza Huincul","Argentina","YPF","b. Conversion","b.1 Catalytic Cracking"]
[2012,"2011-08-01","Verificada","ARG - Plaza Huincul","Argentina","YPF","b. Conversion","b.2 Resid Cat Cracking"]
[2012,"2011-08-01","Verificada","ARG - Plaza Huincul","Argentina","YPF","b. Conversion","b.3 Hydrocracking (Mild Conversion)"]
[2012,"2011-08-01","Verificada","ARG - Plaza Huincul","Argentina","YPF","b. Conversion","b.4 Coking -- Delayed"]
[2012,"2011-08-01","Verificada","ARG - Plaza Huincul","Argentina","YPF","b. Conversion","b.5 Coking -- Fluid"]
[2012,"2011-08-01","Verificada","ARG - Plaza Huincul","Argentina","YPF","b. Conversion","b.6 Visbreaking"]
[2012,"2011-08-01","Verificada","ARG - Plaza Huincul","Argentina","YPF","c. Upgrading","c.1 H-Oil"]
[2012,"2011-08-01","Verificada","ARG - Plaza Huincul","Argentina","YPF","c. Upgrading","c.2 HDH"]
[2012,"2011-08-01","Verificada","ARG - Plaza Huincul","Argentina","YPF","c. Upgrading","c.3 Alkylation (Product basis)"]
[2012,"2011-08-01","Verificada","ARG - Plaza Huincul","Argentina","YPF","c. Upgrading","c.4 Polymerization"]
[2012,"2011-08-01","Verificada","ARG - Plaza Huincul","Argentina","YPF","c. Upgrading","c.5 C5/C6 Isomerization"]
[2012,"2011-08-01","Verificada","ARG - Plaza Huincul","Argentina","YPF","c. Upgrading","c.6 Catalytic Reforming -- Low Pressure"]
[2012,"2011-08-01","Verificada","ARG - Plaza Huincul","Argentina","YPF","c. Upgrading","c.7 Catalytic Reforming -- Medium Pressure",2600]
[2012,"2011-08-01","Verificada","ARG - Plaza Huincul","Argentina","YPF","c. Upgrading","c.8 Catalytic Reforming -- High Pressure"]
[2012,"2011-08-01","Verificada","ARG - Plaza Huincul","Argentina","YPF","d. Hydrotreating","d.1 Gasoline/Naphtha Hydrotreating"]
[2012,"2011-08-01","Verificada","ARG - Plaza Huincul","Argentina","YPF","d. Hydrotreating","d.2 Kerosene Hydrotreating"]
[2012,"2011-08-01","Verificada","ARG - Plaza Huincul","Argentina","YPF","d. Hydrotreating","d.3 Distillate Hydrotreating"]
[2012,"2011-08-01","Verificada","ARG - Plaza Huincul","Argentina","YPF","d. Hydrotreating","d.4 Residual Desulfurization"]
[2012,"2011-08-01","Verificada","ARG - Plaza Huincul","Argentina","YPF","d. Hydrotreating","d.5 Gas Oil Desulfurization"]
[2012,"2011-08-01","Verificada","ARG - Plaza Huincul","Argentina","YPF","e. Hydrogen (k scf/d)","e.1 Hydrogen Generation"]
[2012,"2011-08-01","Verificada","ARG - Plaza Huincul","Argentina","YPF","e. Hydrogen (k scf/d)","e.2 Purification"]
[2012,"2011-08-01","Verificada","ARG - Plaza Huincul","Argentina","YPF","f. Other","f.1 Aromatic Solvent Extraction"]
[2012,"2011-08-01","Verificada","ARG - Plaza Huincul","Argentina","YPF","f. Other","f.2 Other Aromatic Process"]
[2012,"2011-08-01","Verificada","ARG - Plaza Huincul","Argentina","YPF","f. Other","f.3 C4 Isomerization"]
[2012,"2011-08-01","Verificada","ARG - Plaza Huincul","Argentina","YPF","f. Other","f.4 Solvent Desaphalting"]
[2012,"2011-08-01","Verificada","ARG - Plaza Huincul","Argentina","YPF","f. Other","f.5 Lubes & Waxes"]
[2012,"2011-08-01","Verificada","ARG - Plaza Huincul","Argentina","YPF","f. Other","f.6 Asphalt & Bitumen Manufacture"]
[2012,"2011-08-01","Verificada","ARG - Plaza Huincul","Argentina","YPF","f. Other","f.7 Sulfur Recovery Unit (tonnes/day)"]
[2012,"2011-08-01","Verificada","ARG - Plaza Huincul","Argentina","YPF","g. Fractionation","g.1 Propane/Propylene Splitter"]
[2012,"2011-08-01","Verificada","ARG - Plaza Huincul","Argentina","YPF","g. Fractionation","g.2 Deisobutanizer"]
[2012,"2011-08-01","Verificada","ARG - Plaza Huincul","Argentina","YPF","g. Fractionation","g.3 Deisopentanizer"]
[2012,"2011-08-01","Verificada","ARG - Plaza Huincul","Argentina","YPF","g. Fractionation","g.4 Deisohexanizer"]
[2012,"2011-08-01","Verificada","ARG - Plaza Huincul","Argentina","YPF","g. Fractionation","g.5 Alkylate Splitter"]
[2012,"2011-08-01","Verificada","ARG - Plaza Huincul","Argentina","YPF","g. Fractionation","g.6 Reformate Splitter"]
[2012,"2011-08-01","Verificada","ARG - Plaza Huincul","Argentina","YPF","g. Fractionation","g.7 Cat Cracked Gasoline Splitter"]
[2012,"2011-08-01","Verificada","ARG - Plaza Huincul","Argentina","YPF","h. Oxygenates","h.1 MTBE"]
[2012,"2011-08-01","Verificada","ARG - Plaza Huincul","Argentina","YPF","h. Oxygenates","h.2 TAME"]
[2012,"2011-08-01","Verificada","ARG - Plaza Huincul","Argentina","YPF","i. Tank Storage (bbl)","i.1 Crude Oil",300000]
[2012,"2011-08-01","Verificada","ARG - Plaza Huincul","Argentina","YPF","i. Tank Storage (bbl)","i.2 Gasoline",91000]
[2012,"2011-08-01","Verificada","ARG - Plaza Huincul","Argentina","YPF","i. Tank Storage (bbl)","i.3 Diesel",153000]
[2012,"2011-08-01","Verificada","ARG - Plaza Huincul","Argentina","YPF","j. Conversion Rate ","j.1 Conversion Rate ",0]
[2012,"2011-08-01","Verificada","ARG - Plaza Huincul","Argentina","YPF","k. Desulfurization Rate (%)","k.1 Desulfurization Rate (%)",{"$f":"SUM(I106:I110)/I90","v":0}]
[2012,"2011-08-01","Verificada","ARG - Campana","Argentina","Axion Energy","a. Crude Distillation","a.1 Atmospheric Crude Distillation",90000]
[2012,"2011-08-01","Verificada","ARG - Campana","Argentina","Axion Energy","a. Crude Distillation","a.2 Vacuum Distillation",50000]
[2012,"2011-08-01","Verificada","ARG - Campana","Argentina","Axion Energy","b. Conversion","b.1 Catalytic Cracking",27900]
[2012,"2011-08-01","Verificada","ARG - Campana","Argentina","Axion Energy","b. Conversion","b.2 Resid Cat Cracking"]
[2012,"2011-08-01","Verificada","ARG - Campana","Argentina","Axion Energy","b. Conversion","b.3 Hydrocracking (Mild Conversion)"]
[2012,"2011-08-01","Verificada","ARG - Campana","Argentina","Axion Energy","b. Conversion","b.4 Coking -- Delayed",25000]
[2012,"2011-08-01","Verificada","ARG - Campana","Argentina","Axion Energy","b. Conversion","b.5 Coking -- Fluid"]
[2012,"2011-08-01","Verificada","ARG - Campana","Argentina","Axion Energy","b. Conversion","b.6 Visbreaking"]
[2012,"2011-08-01","Verificada","ARG - Campana","Argentina","Axion Energy","c. Upgrading","c.1 H-Oil"]
[2012,"2011-08-01","Verificada","ARG - Campana","Argentina","Axion Energy","c. Upgrading","c.2 HDH"]
[2012,"2011-08-01","Verificada","ARG - Campana","Argentina","Axion Energy","c. Upgrading","c.3 Alkylation (Product basis)"]
[2012,"2011-08-01","Verificada","ARG - Campana","Argentina","Axion Energy","c. Upgrading","c.4 Polymerization"]
[2012,"2011-08-01","Verificada","ARG - Campana","Argentina","Axion Energy","c. Upgrading","c.5 C5/C6 Isomerization"]
[2012,"2011-08-01","Verificada","ARG - Campana","Argentina","Axion Energy","c. Upgrading","c.6 Catalytic Reforming -- Low Pressure"]
[2012,"2011-08-01","Verificada","ARG - Campana","Argentina","Axion Energy","c. Upgrading","c.7 Catalytic Reforming -- Medium Pressure",11000]
[2012,"2011-08-01","Verificada","ARG - Campana","Argentina","Axion Energy","c. Upgrading","c.8 Catalytic Reforming -- High Pressure"]
[2012,"2011-08-01","Verificada","ARG - Campana","Argentina","Axion Energy","d. Hydrotreating","d.1 Gasoline/Naphtha Hydrotreating",17700]
[2012,"2011-08-01","Verificada","ARG - Campana","Argentina","Axion Energy","d. Hydrotreating","d.2 Kerosene Hydrotreating"]
[2012,"2011-08-01","Verificada","ARG - Campana","Argentina","Axion Energy","d. Hydrotreating","d.3 Distillate Hydrotreating",14300]
[2012,"2011-08-01","Verificada","ARG - Campana","Argentina","Axion Energy","d. Hydrotreating","d.4 Residual Desulfurization"]
[2012,"2011-08-01","Verificada","ARG - Campana","Argentina","Axion Energy","d. Hydrotreating","d.5 Gas Oil Desulfurization"]
[2012,"2011-08-01","Verificada","ARG - Campana","Argentina","Axion Energy","e. Hydrogen (k scf/d)","e.1 Hydrogen Generation"]
[2012,"2011-08-01","Verificada","ARG - Campana","Argentina","Axion Energy","e. Hydrogen (k scf/d)","e.2 Purification"]
[2012,"2011-08-01","Verificada","ARG - Campana","Argentina","Axion Energy","f. Other","f.1 Aromatic Solvent Extraction"]
[2012,"2011-08-01","Verificada","ARG - Campana","Argentina","Axion Energy","f. Other","f.2 Other Aromatic Process"]
[2012,"2011-08-01","Verificada","ARG - Campana","Argentina","Axion Energy","f. Other","f.3 C4 Isomerization"]
[2012,"2011-08-01","Verificada","ARG - Campana","Argentina","Axion Energy","f. Other","f.4 Solvent Desaphalting"]
[2012,"2011-08-01","Verificada","ARG - Campana","Argentina","Axion Energy","f. Other","f.5 Lubes & Waxes"]
[2012,"2011-08-01","Verificada","ARG - Campana","Argentina","Axion Energy","f. Other","f.6 Asphalt & Bitumen Manufacture"]
[2012,"2011-08-01","Verificada","ARG - Campana","Argentina","Axion Energy","f. Other","f.7 Sulfur Recovery Unit (tonnes/day)"]
[2012,"2011-08-01","Verificada","ARG - Campana","Argentina","Axion Energy","g. Fractionation","g.1 Propane/Propylene Splitter"]
[2012,"2011-08-01","Verificada","ARG - Campana","Argentina","Axion Energy","g. Fractionation","g.2 Deisobutanizer"]
[2012,"2011-08-01","Verificada","ARG - Campana","Argentina","Axion Energy","g. Fractionation","g.3 Deisopentanizer"]
[2012,"2011-08-01","Verificada","ARG - Campana","Argentina","Axion Energy","g. Fractionation","g.4 Deisohexanizer"]
[2012,"2011-08-01","Verificada","ARG - Campana","Argentina","Axion Energy","g. Fractionation","g.5 Alkylate Splitter"]
[2012,"2011-08-01","Verificada","ARG - Campana","Argentina","Axion Energy","g. Fractionation","g.6 Reformate Splitter"]
[2012,"2011-08-01","Verificada","ARG - Campana","Argentina","Axion Energy","g. Fractionation","g.7 Cat Cracked Gasoline Splitter",30000]
[2012,"2011-08-01","Verificada","ARG - Campana","Argentina","Axion Energy","h. Oxygenates","h.1 MTBE",1400]
[2012,"2011-08-01","Verificada","ARG - Campana","Argentina","Axion Energy","h. Oxygenates","h.2 TAME",1600]
[2012,"2011-08-01","Verificada","ARG - Campana","Argentina","Axion Energy","i. Tank Storage (bbl)","i.1 Crude Oil",1400000]
[2012,"2011-08-01","Verificada","ARG - Campana","Argentina","Axion Energy","i. Tank Storage (bbl)","i.2 Gasoline",600000]
[2012,"2011-08-01","Verificada","ARG - Campana","Argentina","Axion Energy","i. Tank Storage (bbl)","i.3 Diesel",753000]
[2012,"2011-08-01","Verificada","ARG - Campana","Argentina","Axion Energy","j. Conversion Rate ","j.1 Conversion Rate ",1.2444]
[2012,"2011-08-01","Verificada","ARG - Campana","Argentina","Axion Energy","k. Desulfurization Rate (%)","k.1 Desulfurization Rate (%)",{"$f":"SUM(I150:I154)/I134","v":0.35555555555555557}]
[2012,"2011-12-01","Verificada","BOL - Gualberto Villarroel","Bolivia","YPFB","a. Crude Distillation","a.1 Atmospheric Crude Distillation",{"$f":"27300+12500","v":39800}]
[2012,"2011-12-01","Verificada","BOL - Gualberto Villarroel","Bolivia","YPFB","a. Crude Distillation","a.2 Vacuum Distillation",2200]
[2012,"2011-12-01","Verificada","BOL - Gualberto Villarroel","Bolivia","YPFB","b. Conversion","b.1 Catalytic Cracking"]
[2012,"2011-12-01","Verificada","BOL - Gualberto Villarroel","Bolivia","YPFB","b. Conversion","b.2 Resid Cat Cracking"]
[2012,"2011-12-01","Verificada","BOL - Gualberto Villarroel","Bolivia","YPFB","b. Conversion","b.3 Hydrocracking (Mild Conversion)"]
[2012,"2011-12-01","Verificada","BOL - Gualberto Villarroel","Bolivia","YPFB","b. Conversion","b.4 Coking -- Delayed"]
[2012,"2011-12-01","Verificada","BOL - Gualberto Villarroel","Bolivia","YPFB","b. Conversion","b.5 Coking -- Fluid"]
[2012,"2011-12-01","Verificada","BOL - Gualberto Villarroel","Bolivia","YPFB","b. Conversion","b.6 Visbreaking"]
[2012,"2011-12-01","Verificada","BOL - Gualberto Villarroel","Bolivia","YPFB","c. Upgrading","c.1 H-Oil"]
[2012,"2011-12-01","Verificada","BOL - Gualberto Villarroel","Bolivia","YPFB","c. Upgrading","c.2 HDH"]
[2012,"2011-12-01","Verificada","BOL - Gualberto Villarroel","Bolivia","YPFB","c. Upgrading","c.3 Alkylation (Product basis)"]
[2012,"2011-12-01","Verificada","BOL - Gualberto Villarroel","Bolivia","YPFB","c. Upgrading","c.4 Polymerization"]
[2012,"2011-12-01","Verificada","BOL - Gualberto Villarroel","Bolivia","YPFB","c. Upgrading","c.5 C5/C6 Isomerization"]
[2012,"2011-12-01","Verificada","BOL - Gualberto Villarroel","Bolivia","YPFB","c. Upgrading","c.6 Catalytic Reforming -- Low Pressure",8172]
[2012,"2011-12-01","Verificada","BOL - Gualberto Villarroel","Bolivia","YPFB","c. Upgrading","c.7 Catalytic Reforming -- Medium Pressure"]
[2012,"2011-12-01","Verificada","BOL - Gualberto Villarroel","Bolivia","YPFB","c. Upgrading","c.8 Catalytic Reforming -- High Pressure"]
[2012,"2011-12-01","Verificada","BOL - Gualberto Villarroel","Bolivia","YPFB","d. Hydrotreating","d.1 Gasoline/Naphtha Hydrotreating",8172]
[2012,"2011-12-01","Verificada","BOL - Gualberto Villarroel","Bolivia","YPFB","d. Hydrotreating","d.2 Kerosene Hydrotreating"]
[2012,"2011-12-01","Verificada","BOL - Gualberto Villarroel","Bolivia","YPFB","d. Hydrotreating","d.3 Distillate Hydrotreating"]
[2012,"2011-12-01","Verificada","BOL - Gualberto Villarroel","Bolivia","YPFB","d. Hydrotreating","d.4 Residual Desulfurization"]
[2012,"2011-12-01","Verificada","BOL - Gualberto Villarroel","Bolivia","YPFB","d. Hydrotreating","d.5 Gas Oil Desulfurization"]
[2012,"2011-12-01","Verificada","BOL - Gualberto Villarroel","Bolivia","YPFB","e. Hydrogen (k scf/d)","e.1 Hydrogen Generation"]
[2012,"2011-12-01","Verificada","BOL - Gualberto Villarroel","Bolivia","YPFB","e. Hydrogen (k scf/d)","e.2 Purification"]
[2012,"2011-12-01","Verificada","BOL - Gualberto Villarroel","Bolivia","YPFB","f. Other","f.1 Aromatic Solvent Extraction",720]
[2012,"2011-12-01","Verificada","BOL - Gualberto Villarroel","Bolivia","YPFB","f. Other","f.2 Other Aromatic Process"]
[2012,"2011-12-01","Verificada","BOL - Gualberto Villarroel","Bolivia","YPFB","f. Other","f.3 C4 Isomerization"]
[2012,"2011-12-01","Verificada","BOL - Gualberto Villarroel","Bolivia","YPFB","f. Other","f.4 Solvent Desaphalting",166]
[2012,"2011-12-01","Verificada","BOL - Gualberto Villarroel","Bolivia","YPFB","f. Other","f.5 Lubes & Waxes",512,null,null,null,"Capacity: Wax 75 BPD de Slack Wax"]
[2012,"2011-12-01","Verificada","BOL - Gualberto Villarroel","Bolivia","YPFB","f. Other","f.6 Asphalt & Bitumen Manufacture",37]
[2012,"2011-12-01","Verificada","BOL - Gualberto Villarroel","Bolivia","YPFB","f. Other","f.7 Sulfur Recovery Unit (tonnes/day)"]
[2012,"2011-12-01","Verificada","BOL - Gualberto Villarroel","Bolivia","YPFB","g. Fractionation","g.1 Propane/Propylene Splitter"]
[2012,"2011-12-01","Verificada","BOL - Gualberto Villarroel","Bolivia","YPFB","g. Fractionation","g.2 Deisobutanizer"]
[2012,"2011-12-01","Verificada","BOL - Gualberto Villarroel","Bolivia","YPFB","g. Fractionation","g.3 Deisopentanizer",1350]
[2012,"2011-12-01","Verificada","BOL - Gualberto Villarroel","Bolivia","YPFB","g. Fractionation","g.4 Deisohexanizer",1350]
[2012,"2011-12-01","Verificada","BOL - Gualberto Villarroel","Bolivia","YPFB","g. Fractionation","g.5 Alkylate Splitter"]
[2012,"2011-12-01","Verificada","BOL - Gualberto Villarroel","Bolivia","YPFB","g. Fractionation","g.6 Reformate Splitter",2950]
[2012,"2011-12-01","Verificada","BOL - Gualberto Villarroel","Bolivia","YPFB","g. Fractionation","g.7 Cat Cracked Gasoline Splitter"]
[2012,"2011-12-01","Verificada","BOL - Gualberto Villarroel","Bolivia","YPFB","h. Oxygenates","h.1 MTBE"]
[2012,"2011-12-01","Verificada","BOL - Gualberto Villarroel","Bolivia","YPFB","h. Oxygenates","h.2 TAME"]
[2012,"2011-12-01","Verificada","BOL - Gualberto Villarroel","Bolivia","YPFB","i. Tank Storage (bbl)","i.1 Crude Oil",325862.7]
[2012,"2011-12-01","Verificada","BOL - Gualberto Villarroel","Bolivia","YPFB","i. Tank Storage (bbl)","i.2 Gasoline",122208.41]
[2012,"2011-12-01","Verificada","BOL - Gualberto Villarroel","Bolivia","YPFB","i. Tank Storage (bbl)","i.3 Diesel",202675.1]
[2012,"2011-12-01","Verificada","BOL - Gualberto Villarroel","Bolivia","YPFB","j. Conversion Rate ","j.1 Conversion Rate ",0.26690000000000003]
[2012,"2011-12-01","Verificada","BOL - Gualberto Villarroel","Bolivia","YPFB","k. Desulfurization Rate (%)","k.1 Desulfurization Rate (%)",{"$f":"SUM(I194:I198)/I178","v":0.20532663316582914}]
[2012,"2011-12-01","Verificada","BOL - Guillermo Elder Bell","Bolivia","YPFB","a. Crude Distillation","a.1 Atmospheric Crude Distillation",{"$f":"16500+3000","v":19500}]
[2012,"2011-12-01","Verificada","BOL - Guillermo Elder Bell","Bolivia","YPFB","a. Crude Distillation","a.2 Vacuum Distillation"]
[2012,"2011-12-01","Verificada","BOL - Guillermo Elder Bell","Bolivia","YPFB","b. Conversion","b.1 Catalytic Cracking"]
[2012,"2011-12-01","Verificada","BOL - Guillermo Elder Bell","Bolivia","YPFB","b. Conversion","b.2 Resid Cat Cracking"]
[2012,"2011-12-01","Verificada","BOL - Guillermo Elder Bell","Bolivia","YPFB","b. Conversion","b.3 Hydrocracking (Mild Conversion)"]
[2012,"2011-12-01","Verificada","BOL - Guillermo Elder Bell","Bolivia","YPFB","b. Conversion","b.4 Coking -- Delayed"]
[2012,"2011-12-01","Verificada","BOL - Guillermo Elder Bell","Bolivia","YPFB","b. Conversion","b.5 Coking -- Fluid"]
[2012,"2011-12-01","Verificada","BOL - Guillermo Elder Bell","Bolivia","YPFB","b. Conversion","b.6 Visbreaking"]
[2012,"2011-12-01","Verificada","BOL - Guillermo Elder Bell","Bolivia","YPFB","c. Upgrading","c.1 H-Oil"]
[2012,"2011-12-01","Verificada","BOL - Guillermo Elder Bell","Bolivia","YPFB","c. Upgrading","c.2 HDH"]
[2012,"2011-12-01","Verificada","BOL - Guillermo Elder Bell","Bolivia","YPFB","c. Upgrading","c.3 Alkylation (Product basis)"]
[2012,"2011-12-01","Verificada","BOL - Guillermo Elder Bell","Bolivia","YPFB","c. Upgrading","c.4 Polymerization"]
[2012,"2011-12-01","Verificada","BOL - Guillermo Elder Bell","Bolivia","YPFB","c. Upgrading","c.5 C5/C6 Isomerization",3200]
[2012,"2011-12-01","Verificada","BOL - Guillermo Elder Bell","Bolivia","YPFB","c. Upgrading","c.6 Catalytic Reforming -- Low Pressure",3200]
[2012,"2011-12-01","Verificada","BOL - Guillermo Elder Bell","Bolivia","YPFB","c. Upgrading","c.7 Catalytic Reforming -- Medium Pressure"]
[2012,"2011-12-01","Verificada","BOL - Guillermo Elder Bell","Bolivia","YPFB","c. Upgrading","c.8 Catalytic Reforming -- High Pressure",3200]
[2012,"2011-12-01","Verificada","BOL - Guillermo Elder Bell","Bolivia","YPFB","d. Hydrotreating","d.1 Gasoline/Naphtha Hydrotreating",3200]
[2012,"2011-12-01","Verificada","BOL - Guillermo Elder Bell","Bolivia","YPFB","d. Hydrotreating","d.2 Kerosene Hydrotreating"]
[2012,"2011-12-01","Verificada","BOL - Guillermo Elder Bell","Bolivia","YPFB","d. Hydrotreating","d.3 Distillate Hydrotreating"]
[2012,"2011-12-01","Verificada","BOL - Guillermo Elder Bell","Bolivia","YPFB","d. Hydrotreating","d.4 Residual Desulfurization"]
[2012,"2011-12-01","Verificada","BOL - Guillermo Elder Bell","Bolivia","YPFB","d. Hydrotreating","d.5 Gas Oil Desulfurization"]
[2012,"2011-12-01","Verificada","BOL - Guillermo Elder Bell","Bolivia","YPFB","e. Hydrogen (k scf/d)","e.1 Hydrogen Generation"]
[2012,"2011-12-01","Verificada","BOL - Guillermo Elder Bell","Bolivia","YPFB","e. Hydrogen (k scf/d)","e.2 Purification"]
[2012,"2011-12-01","Verificada","BOL - Guillermo Elder Bell","Bolivia","YPFB","f. Other","f.1 Aromatic Solvent Extraction"]
[2012,"2011-12-01","Verificada","BOL - Guillermo Elder Bell","Bolivia","YPFB","f. Other","f.2 Other Aromatic Process"]
[2012,"2011-12-01","Verificada","BOL - Guillermo Elder Bell","Bolivia","YPFB","f. Other","f.3 C4 Isomerization"]
[2012,"2011-12-01","Verificada","BOL - Guillermo Elder Bell","Bolivia","YPFB","f. Other","f.4 Solvent Desaphalting"]
[2012,"2011-12-01","Verificada","BOL - Guillermo Elder Bell","Bolivia","YPFB","f. Other","f.5 Lubes & Waxes"]
[2012,"2011-12-01","Verificada","BOL - Guillermo Elder Bell","Bolivia","YPFB","f. Other","f.6 Asphalt & Bitumen Manufacture"]
[2012,"2011-12-01","Verificada","BOL - Guillermo Elder Bell","Bolivia","YPFB","f. Other","f.7 Sulfur Recovery Unit (tonnes/day)"]
[2012,"2011-12-01","Verificada","BOL - Guillermo Elder Bell","Bolivia","YPFB","g. Fractionation","g.1 Propane/Propylene Splitter"]
[2012,"2011-12-01","Verificada","BOL - Guillermo Elder Bell","Bolivia","YPFB","g. Fractionation","g.2 Deisobutanizer"]
[2012,"2011-12-01","Verificada","BOL - Guillermo Elder Bell","Bolivia","YPFB","g. Fractionation","g.3 Deisopentanizer",800]
[2012,"2011-12-01","Verificada","BOL - Guillermo Elder Bell","Bolivia","YPFB","g. Fractionation","g.4 Deisohexanizer"]
[2012,"2011-12-01","Verificada","BOL - Guillermo Elder Bell","Bolivia","YPFB","g. Fractionation","g.5 Alkylate Splitter"]
[2012,"2011-12-01","Verificada","BOL - Guillermo Elder Bell","Bolivia","YPFB","g. Fractionation","g.6 Reformate Splitter",2916]
[2012,"2011-12-01","Verificada","BOL - Guillermo Elder Bell","Bolivia","YPFB","g. Fractionation","g.7 Cat Cracked Gasoline Splitter"]
[2012,"2011-12-01","Verificada","BOL - Guillermo Elder Bell","Bolivia","YPFB","h. Oxygenates","h.1 MTBE"]
[2012,"2011-12-01","Verificada","BOL - Guillermo Elder Bell","Bolivia","YPFB","h. Oxygenates","h.2 TAME"]
[2012,"2011-12-01","Verificada","BOL - Guillermo Elder Bell","Bolivia","YPFB","i. Tank Storage (bbl)","i.1 Crude Oil",256733]
[2012,"2011-12-01","Verificada","BOL - Guillermo Elder Bell","Bolivia","YPFB","i. Tank Storage (bbl)","i.2 Gasoline",41513]
[2012,"2011-12-01","Verificada","BOL - Guillermo Elder Bell","Bolivia","YPFB","i. Tank Storage (bbl)","i.3 Diesel",101159]
[2012,"2011-12-01","Verificada","BOL - Guillermo Elder Bell","Bolivia","YPFB","j. Conversion Rate ","j.1 Conversion Rate ",0.21329999999999999]
[2012,"2011-12-01","Verificada","BOL - Guillermo Elder Bell","Bolivia","YPFB","k. Desulfurization Rate (%)","k.1 Desulfurization Rate (%)",{"$f":"SUM(I238:I242)/I222","v":0.1641025641025641}]
[2012,"2011-08-01","Verificada","CHI - ConCon","Chile","ENAP","a. Crude Distillation","a.1 Atmospheric Crude Distillation",100640]
[2012,"2011-08-01","Verificada","CHI - ConCon","Chile","ENAP","a. Crude Distillation","a.2 Vacuum Distillation",55980]
[2012,"2011-08-01","Verificada","CHI - ConCon","Chile","ENAP","b. Conversion","b.1 Catalytic Cracking",31450]
[2012,"2011-08-01","Verificada","CHI - ConCon","Chile","ENAP","b. Conversion","b.2 Resid Cat Cracking"]
[2012,"2011-08-01","Verificada","CHI - ConCon","Chile","ENAP","b. Conversion","b.3 Hydrocracking (Mild Conversion)",20000]
[2012,"2011-08-01","Verificada","CHI - ConCon","Chile","ENAP","b. Conversion","b.4 Coking -- Delayed",22640," ",null," "]
[2012,"2011-08-01","Verificada","CHI - ConCon","Chile","ENAP","b. Conversion","b.5 Coking -- Fluid"]
[2012,"2011-08-01","Verificada","CHI - ConCon","Chile","ENAP","b. Conversion","b.6 Visbreaking",9999.51]
[2012,"2011-08-01","Verificada","CHI - ConCon","Chile","ENAP","c. Upgrading","c.1 H-Oil"]
[2012,"2011-08-01","Verificada","CHI - ConCon","Chile","ENAP","c. Upgrading","c.2 HDH"]
[2012,"2011-08-01","Duda","CHI - ConCon","Chile","ENAP","c. Upgrading","c.3 Alkylation (Product basis)",1100,6700,230,"2012"]
[2012,"2011-08-01","Verificada","CHI - ConCon","Chile","ENAP","c. Upgrading","c.4 Polymerization"]
[2012,"2011-08-01","Verificada","CHI - ConCon","Chile","ENAP","c. Upgrading","c.5 C5/C6 Isomerization",5400]
[2012,"2011-08-01","Verificada","CHI - ConCon","Chile","ENAP","c. Upgrading","c.6 Catalytic Reforming -- Low Pressure",12580]
[2012,"2011-08-01","Verificada","CHI - ConCon","Chile","ENAP","c. Upgrading","c.7 Catalytic Reforming -- Medium Pressure"]
[2012,"2011-08-01","Verificada","CHI - ConCon","Chile","ENAP","c. Upgrading","c.8 Catalytic Reforming -- High Pressure"]
[2012,"2011-08-01","Verificada","CHI - ConCon","Chile","ENAP","d. Hydrotreating","d.1 Gasoline/Naphtha Hydrotreating",39870]
[2012,"2011-08-01","Verificada","CHI - ConCon","Chile","ENAP","d. Hydrotreating","d.2 Kerosene Hydrotreating"]
[2012,"2011-08-01","Verificada","CHI - ConCon","Chile","ENAP","d. Hydrotreating","d.3 Distillate Hydrotreating",44000," ",null," "]
[2012,"2011-08-01","Verificada","CHI - ConCon","Chile","ENAP","d. Hydrotreating","d.4 Residual Desulfurization"]
[2012,"2011-08-01","Verificada","CHI - ConCon","Chile","ENAP","d. Hydrotreating","d.5 Gas Oil Desulfurization",9500]
[2012,"2011-08-01","Verificada","CHI - ConCon","Chile","ENAP","e. Hydrogen (k scf/d)","e.1 Hydrogen Generation",40000," ",null," "]
[2012,"2011-08-01","Verificada","CHI - ConCon","Chile","ENAP","e. Hydrogen (k scf/d)","e.2 Purification"," "," ",null," "]
[2012,"2011-08-01","Verificada","CHI - ConCon","Chile","ENAP","f. Other","f.1 Aromatic Solvent Extraction"]
[2012,"2011-08-01","Verificada","CHI - ConCon","Chile","ENAP","f. Other","f.2 Other Aromatic Process"]
[2012,"2011-08-01","Verificada","CHI - ConCon","Chile","ENAP","f. Other","f.3 C4 Isomerization"]
[2012,"2011-08-01","Verificada","CHI - ConCon","Chile","ENAP","f. Other","f.4 Solvent Desaphalting"]
[2012,"2011-08-01","Verificada","CHI - ConCon","Chile","ENAP","f. Other","f.5 Lubes & Waxes"]
[2012,"2011-08-01","Verificada","CHI - ConCon","Chile","ENAP","f. Other","f.6 Asphalt & Bitumen Manufacture"]
[2012,"2011-08-01","Verificada","CHI - ConCon","Chile","ENAP","f. Other","f.7 Sulfur Recovery Unit (tonnes/day)",110," ",null," "]
[2012,"2011-08-01","Verificada","CHI - ConCon","Chile","ENAP","g. Fractionation","g.1 Propane/Propylene Splitter",3130]
[2012,"2011-08-01","Verificada","CHI - ConCon","Chile","ENAP","g. Fractionation","g.2 Deisobutanizer"]
[2012,"2011-08-01","Verificada","CHI - ConCon","Chile","ENAP","g. Fractionation","g.3 Deisopentanizer"]
[2012,"2011-08-01","Verificada","CHI - ConCon","Chile","ENAP","g. Fractionation","g.4 Deisohexanizer"]
[2012,"2011-08-01","Verificada","CHI - ConCon","Chile","ENAP","g. Fractionation","g.5 Alkylate Splitter",1100]
[2012,"2011-08-01","Verificada","CHI - ConCon","Chile","ENAP","g. Fractionation","g.6 Reformate Splitter"]
[2012,"2011-08-01","Verificada","CHI - ConCon","Chile","ENAP","g. Fractionation","g.7 Cat Cracked Gasoline Splitter",20400]
[2012,"2011-08-01","Verificada","CHI - ConCon","Chile","ENAP","h. Oxygenates","h.1 MTBE",1530]
[2012,"2011-08-01","Verificada","CHI - ConCon","Chile","ENAP","h. Oxygenates","h.2 TAME"]
[2012,"2011-08-01","Verificada","CHI - ConCon","Chile","ENAP","i. Tank Storage (bbl)","i.1 Crude Oil",3460000]
[2012,"2011-08-01","Verificada","CHI - ConCon","Chile","ENAP","i. Tank Storage (bbl)","i.2 Gasoline",1120000]
[2012,"2011-08-01","Verificada","CHI - ConCon","Chile","ENAP","i. Tank Storage (bbl)","i.3 Diesel",836700]
[2012,"2011-08-01","Verificada","CHI - ConCon","Chile","ENAP","j. Conversion Rate ","j.1 Conversion Rate ",1.8110999999999999]
[2012,"2011-08-01","Verificada","CHI - ConCon","Chile","ENAP","k. Desulfurization Rate (%)","k.1 Desulfurization Rate (%)",{"$f":"SUM(I282:I286)/I266","v":0.92776232114467405}]
[2012,"2011-08-01","Verificada","CHI - BioBio","Chile","ENAP","a. Crude Distillation","a.1 Atmospheric Crude Distillation",113220]
[2012,"2011-08-01","Verificada","CHI - BioBio","Chile","ENAP","a. Crude Distillation","a.2 Vacuum Distillation",50320]
[2012,"2011-08-01","Verificada","CHI - BioBio","Chile","ENAP","b. Conversion","b.1 Catalytic Cracking",20100]
[2012,"2011-08-01","Verificada","CHI - BioBio","Chile","ENAP","b. Conversion","b.2 Resid Cat Cracking"]
[2012,"2011-08-01","Verificada","CHI - BioBio","Chile","ENAP","b. Conversion","b.3 Hydrocracking (Mild Conversion)",35220]
[2012,"2011-08-01","Verificada","CHI - BioBio","Chile","ENAP","b. Conversion","b.4 Coking -- Delayed",15100," ",null," "]
[2012,"2011-08-01","Verificada","CHI - BioBio","Chile","ENAP","b. Conversion","b.5 Coking -- Fluid"]
[2012,"2011-08-01","Verificada","CHI - BioBio","Chile","ENAP","b. Conversion","b.6 Visbreaking",10060]
[2012,"2011-08-01","Verificada","CHI - BioBio","Chile","ENAP","c. Upgrading","c.1 H-Oil"]
[2012,"2011-08-01","Verificada","CHI - BioBio","Chile","ENAP","c. Upgrading","c.2 HDH"]
[2012,"2011-08-01","Verificada","CHI - BioBio","Chile","ENAP","c. Upgrading","c.3 Alkylation (Product basis)"]
[2012,"2011-08-01","Verificada","CHI - BioBio","Chile","ENAP","c. Upgrading","c.4 Polymerization"]
[2012,"2011-08-01","Verificada","CHI - BioBio","Chile","ENAP","c. Upgrading","c.5 C5/C6 Isomerization",5000]
[2012,"2011-08-01","Verificada","CHI - BioBio","Chile","ENAP","c. Upgrading","c.6 Catalytic Reforming -- Low Pressure",13520]
[2012,"2011-08-01","Verificada","CHI - BioBio","Chile","ENAP","c. Upgrading","c.7 Catalytic Reforming -- Medium Pressure"]
[2012,"2011-08-01","Verificada","CHI - BioBio","Chile","ENAP","c. Upgrading","c.8 Catalytic Reforming -- High Pressure"]
[2012,"2011-08-01","Verificada","CHI - BioBio","Chile","ENAP","d. Hydrotreating","d.1 Gasoline/Naphtha Hydrotreating",33460]
[2012,"2011-08-01","Verificada","CHI - BioBio","Chile","ENAP","d. Hydrotreating","d.2 Kerosene Hydrotreating"]
[2012,"2011-08-01","Verificada","CHI - BioBio","Chile","ENAP","d. Hydrotreating","d.3 Distillate Hydrotreating",36170]
[2012,"2011-08-01","Verificada","CHI - BioBio","Chile","ENAP","d. Hydrotreating","d.4 Residual Desulfurization"]
[2012,"2011-08-01","Verificada","CHI - BioBio","Chile","ENAP","d. Hydrotreating","d.5 Gas Oil Desulfurization"]
[2012,"2011-08-01","Verificada","CHI - BioBio","Chile","ENAP","e. Hydrogen (k scf/d)","e.1 Hydrogen Generation",34000]
[2012,"2011-08-01","Verificada","CHI - BioBio","Chile","ENAP","e. Hydrogen (k scf/d)","e.2 Purification",11000]
[2012,"2011-08-01","Verificada","CHI - BioBio","Chile","ENAP","f. Other","f.1 Aromatic Solvent Extraction"]
[2012,"2011-08-01","Verificada","CHI - BioBio","Chile","ENAP","f. Other","f.2 Other Aromatic Process"]
[2012,"2011-08-01","Verificada","CHI - BioBio","Chile","ENAP","f. Other","f.3 C4 Isomerization"]
[2012,"2011-08-01","Verificada","CHI - BioBio","Chile","ENAP","f. Other","f.4 Solvent Desaphalting"]
[2012,"2011-08-01","Verificada","CHI - BioBio","Chile","ENAP","f. Other","f.5 Lubes & Waxes"]
[2012,"2011-08-01","Verificada","CHI - BioBio","Chile","ENAP","f. Other","f.6 Asphalt & Bitumen Manufacture"]
[2012,"2011-08-01","Verificada","CHI - BioBio","Chile","ENAP","f. Other","f.7 Sulfur Recovery Unit (tonnes/day)",80]
[2012,"2011-08-01","Verificada","CHI - BioBio","Chile","ENAP","g. Fractionation","g.1 Propane/Propylene Splitter",7200]
[2012,"2011-08-01","Verificada","CHI - BioBio","Chile","ENAP","g. Fractionation","g.2 Deisobutanizer"]
[2012,"2011-08-01","Verificada","CHI - BioBio","Chile","ENAP","g. Fractionation","g.3 Deisopentanizer"]
[2012,"2011-08-01","Verificada","CHI - BioBio","Chile","ENAP","g. Fractionation","g.4 Deisohexanizer"," "]
[2012,"2011-08-01","Verificada","CHI - BioBio","Chile","ENAP","g. Fractionation","g.5 Alkylate Splitter"]
[2012,"2011-08-01","Verificada","CHI - BioBio","Chile","ENAP","g. Fractionation","g.6 Reformate Splitter"]
[2012,"2011-08-01","Verificada","CHI - BioBio","Chile","ENAP","g. Fractionation","g.7 Cat Cracked Gasoline Splitter",14000]
[2012,"2011-08-01","Verificada","CHI - BioBio","Chile","ENAP","h. Oxygenates","h.1 MTBE"]
[2012,"2011-08-01","Verificada","CHI - BioBio","Chile","ENAP","h. Oxygenates","h.2 TAME"]
[2012,"2011-08-01","Verificada","CHI - BioBio","Chile","ENAP","i. Tank Storage (bbl)","i.1 Crude Oil",2960000]
[2012,"2011-08-01","Verificada","CHI - BioBio","Chile","ENAP","i. Tank Storage (bbl)","i.2 Gasoline",833000]
[2012,"2011-08-01","Verificada","CHI - BioBio","Chile","ENAP","i. Tank Storage (bbl)","i.3 Diesel",450000]
[2012,"2011-08-01","Verificada","CHI - BioBio","Chile","ENAP","j. Conversion Rate ","j.1 Conversion Rate ",1.2331000000000001]
[2012,"2011-08-01","Verificada","CHI - BioBio","Chile","ENAP","k. Desulfurization Rate (%)","k.1 Desulfurization Rate (%)",{"$f":"SUM(I326:I330)/I310","v":0.61499735029146796}]
[2012,"2011-08-01","Verificada","CHI - Gregorio","Chile","ENAP","a. Crude Distillation","a.1 Atmospheric Crude Distillation",15720," ",null," "]
[2012,"2011-08-01","Verificada","CHI - Gregorio","Chile","ENAP","a. Crude Distillation","a.2 Vacuum Distillation"]
[2012,"2011-08-01","Verificada","CHI - Gregorio","Chile","ENAP","b. Conversion","b.1 Catalytic Cracking"]
[2012,"2011-08-01","Verificada","CHI - Gregorio","Chile","ENAP","b. Conversion","b.2 Resid Cat Cracking"]
[2012,"2011-08-01","Verificada","CHI - Gregorio","Chile","ENAP","b. Conversion","b.3 Hydrocracking (Mild Conversion)"]
[2012,"2011-08-01","Verificada","CHI - Gregorio","Chile","ENAP","b. Conversion","b.4 Coking -- Delayed"]
[2012,"2011-08-01","Verificada","CHI - Gregorio","Chile","ENAP","b. Conversion","b.5 Coking -- Fluid"]
[2012,"2011-08-01","Verificada","CHI - Gregorio","Chile","ENAP","b. Conversion","b.6 Visbreaking"]
[2012,"2011-08-01","Verificada","CHI - Gregorio","Chile","ENAP","c. Upgrading","c.1 H-Oil"]
[2012,"2011-08-01","Verificada","CHI - Gregorio","Chile","ENAP","c. Upgrading","c.2 HDH"]
[2012,"2011-08-01","Verificada","CHI - Gregorio","Chile","ENAP","c. Upgrading","c.3 Alkylation (Product basis)"]
[2012,"2011-08-01","Verificada","CHI - Gregorio","Chile","ENAP","c. Upgrading","c.4 Polymerization"]
[2012,"2011-08-01","Verificada","CHI - Gregorio","Chile","ENAP","c. Upgrading","c.5 C5/C6 Isomerization"]
[2012,"2011-08-01","Verificada","CHI - Gregorio","Chile","ENAP","c. Upgrading","c.6 Catalytic Reforming -- Low Pressure"]
[2012,"2011-08-01","Verificada","CHI - Gregorio","Chile","ENAP","c. Upgrading","c.7 Catalytic Reforming -- Medium Pressure"]
[2012,"2011-08-01","Verificada","CHI - Gregorio","Chile","ENAP","c. Upgrading","c.8 Catalytic Reforming -- High Pressure"]
[2012,"2011-08-01","Verificada","CHI - Gregorio","Chile","ENAP","d. Hydrotreating","d.1 Gasoline/Naphtha Hydrotreating"]
[2012,"2011-08-01","Verificada","CHI - Gregorio","Chile","ENAP","d. Hydrotreating","d.2 Kerosene Hydrotreating"]
[2012,"2011-08-01","Verificada","CHI - Gregorio","Chile","ENAP","d. Hydrotreating","d.3 Distillate Hydrotreating"]
[2012,"2011-08-01","Verificada","CHI - Gregorio","Chile","ENAP","d. Hydrotreating","d.4 Residual Desulfurization"]
[2012,"2011-08-01","Verificada","CHI - Gregorio","Chile","ENAP","d. Hydrotreating","d.5 Gas Oil Desulfurization"]
[2012,"2011-08-01","Verificada","CHI - Gregorio","Chile","ENAP","e. Hydrogen (k scf/d)","e.1 Hydrogen Generation"]
[2012,"2011-08-01","Verificada","CHI - Gregorio","Chile","ENAP","e. Hydrogen (k scf/d)","e.2 Purification"]
[2012,"2011-08-01","Verificada","CHI - Gregorio","Chile","ENAP","f. Other","f.1 Aromatic Solvent Extraction"]
[2012,"2011-08-01","Verificada","CHI - Gregorio","Chile","ENAP","f. Other","f.2 Other Aromatic Process"]
[2012,"2011-08-01","Verificada","CHI - Gregorio","Chile","ENAP","f. Other","f.3 C4 Isomerization"]
[2012,"2011-08-01","Verificada","CHI - Gregorio","Chile","ENAP","f. Other","f.4 Solvent Desaphalting"]
[2012,"2011-08-01","Verificada","CHI - Gregorio","Chile","ENAP","f. Other","f.5 Lubes & Waxes"]
[2012,"2011-08-01","Verificada","CHI - Gregorio","Chile","ENAP","f. Other","f.6 Asphalt & Bitumen Manufacture"]
[2012,"2011-08-01","Verificada","CHI - Gregorio","Chile","ENAP","f. Other","f.7 Sulfur Recovery Unit (tonnes/day)"]
[2012,"2011-08-01","Verificada","CHI - Gregorio","Chile","ENAP","g. Fractionation","g.1 Propane/Propylene Splitter"]
[2012,"2011-08-01","Verificada","CHI - Gregorio","Chile","ENAP","g. Fractionation","g.2 Deisobutanizer"]
[2012,"2011-08-01","Verificada","CHI - Gregorio","Chile","ENAP","g. Fractionation","g.3 Deisopentanizer"]
[2012,"2011-08-01","Verificada","CHI - Gregorio","Chile","ENAP","g. Fractionation","g.4 Deisohexanizer"]
[2012,"2011-08-01","Verificada","CHI - Gregorio","Chile","ENAP","g. Fractionation","g.5 Alkylate Splitter"]
[2012,"2011-08-01","Verificada","CHI - Gregorio","Chile","ENAP","g. Fractionation","g.6 Reformate Splitter"]
[2012,"2011-08-01","Verificada","CHI - Gregorio","Chile","ENAP","g. Fractionation","g.7 Cat Cracked Gasoline Splitter"]
[2012,"2011-08-01","Verificada","CHI - Gregorio","Chile","ENAP","h. Oxygenates","h.1 MTBE"]
[2012,"2011-08-01","Verificada","CHI - Gregorio","Chile","ENAP","h. Oxygenates","h.2 TAME"]
[2012,"2011-08-01","Verificada","CHI - Gregorio","Chile","ENAP","i. Tank Storage (bbl)","i.1 Crude Oil",430000]
[2012,"2011-08-01","Verificada","CHI - Gregorio","Chile","ENAP","i. Tank Storage (bbl)","i.2 Gasoline"]
[2012,"2011-08-01","Verificada","CHI - Gregorio","Chile","ENAP","i. Tank Storage (bbl)","i.3 Diesel",120000]
[2012,"2011-08-01","Verificada","CHI - Gregorio","Chile","ENAP","j. Conversion Rate ","j.1 Conversion Rate ",0]
[2012,"2011-08-01","Verificada","CHI - Gregorio","Chile","ENAP","k. Desulfurization Rate (%)","k.1 Desulfurization Rate (%)",{"$f":"SUM(I370:I374)/I354","v":0}]
[2012,"2011-08-01","Verificada","CRI - Moín","Costa Rica","RECOPE","a. Crude Distillation","a.1 Atmospheric Crude Distillation",25000,40000,"125-175",2015]
[2012,"2011-08-01","Verificada","CRI - Moín","Costa Rica","RECOPE","a. Crude Distillation","a.2 Vacuum Distillation",1200,40000,"120-150",2015]
[2012,"2011-08-01","Verificada","CRI - Moín","Costa Rica","RECOPE","b. Conversion","b.1 Catalytic Cracking"]
[2012,"2011-08-01","Verificada","CRI - Moín","Costa Rica","RECOPE","b. Conversion","b.2 Resid Cat Cracking"]
[2012,"2011-08-01","Verificada","CRI - Moín","Costa Rica","RECOPE","b. Conversion","b.3 Hydrocracking (Mild Conversion)",null,16000,"125-150"]
[2012,"2011-08-01","Verificada","CRI - Moín","Costa Rica","RECOPE","b. Conversion","b.4 Coking -- Delayed",null,12000,"125-150"]
[2012,"2011-08-01","Verificada","CRI - Moín","Costa Rica","RECOPE","b. Conversion","b.5 Coking -- Fluid"]
[2012,"2011-08-01","Verificada","CRI - Moín","Costa Rica","RECOPE","b. Conversion","b.6 Visbreaking",6500]
[2012,"2011-08-01","Verificada","CRI - Moín","Costa Rica","RECOPE","c. Upgrading","c.1 H-Oil"]
[2012,"2011-08-01","Verificada","CRI - Moín","Costa Rica","RECOPE","c. Upgrading","c.2 HDH"]
[2012,"2011-08-01","Verificada","CRI - Moín","Costa Rica","RECOPE","c. Upgrading","c.3 Alkylation (Product basis)"]
[2012,"2011-08-01","Verificada","CRI - Moín","Costa Rica","RECOPE","c. Upgrading","c.4 Polymerization"]
[2012,"2011-08-01","Verificada","CRI - Moín","Costa Rica","RECOPE","c. Upgrading","c.5 C5/C6 Isomerization",null,1300,"25 - 50",2015]
[2012,"2011-08-01","Verificada","CRI - Moín","Costa Rica","RECOPE","c. Upgrading","c.6 Catalytic Reforming -- Low Pressure"]
[2012,"2011-08-01","Verificada","CRI - Moín","Costa Rica","RECOPE","c. Upgrading","c.7 Catalytic Reforming -- Medium Pressure",1300,10000,"75-125",2105]
[2012,"2011-08-01","Verificada","CRI - Moín","Costa Rica","RECOPE","c. Upgrading","c.8 Catalytic Reforming -- High Pressure"]
[2012,"2011-08-01","Verificada","CRI - Moín","Costa Rica","RECOPE","d. Hydrotreating","d.1 Gasoline/Naphtha Hydrotreating",1200,12000,"50-100",2015]
[2012,"2011-08-01","Verificada","CRI - Moín","Costa Rica","RECOPE","d. Hydrotreating","d.2 Kerosene Hydrotreating",2200,3500,"15 - 50",2015]
[2012,"2011-08-01","Verificada","CRI - Moín","Costa Rica","RECOPE","d. Hydrotreating","d.3 Distillate Hydrotreating",null,25000,"75-125",2015]
[2012,"2011-08-01","Verificada","CRI - Moín","Costa Rica","RECOPE","d. Hydrotreating","d.4 Residual Desulfurization"]
[2012,"2011-08-01","Verificada","CRI - Moín","Costa Rica","RECOPE","d. Hydrotreating","d.5 Gas Oil Desulfurization"]
[2012,"2011-08-01","Verificada","CRI - Moín","Costa Rica","RECOPE","e. Hydrogen (k scf/d)","e.1 Hydrogen Generation"]
[2012,"2011-08-01","Verificada","CRI - Moín","Costa Rica","RECOPE","e. Hydrogen (k scf/d)","e.2 Purification"]
[2012,"2011-08-01","Verificada","CRI - Moín","Costa Rica","RECOPE","f. Other","f.1 Aromatic Solvent Extraction"]
[2012,"2011-08-01","Verificada","CRI - Moín","Costa Rica","RECOPE","f. Other","f.2 Other Aromatic Process"]
[2012,"2011-08-01","Verificada","CRI - Moín","Costa Rica","RECOPE","f. Other","f.3 C4 Isomerization"]
[2012,"2011-08-01","Verificada","CRI - Moín","Costa Rica","RECOPE","f. Other","f.4 Solvent Desaphalting"]
[2012,"2011-08-01","Verificada","CRI - Moín","Costa Rica","RECOPE","f. Other","f.5 Lubes & Waxes"]
[2012,"2011-08-01","Verificada","CRI - Moín","Costa Rica","RECOPE","f. Other","f.6 Asphalt & Bitumen Manufacture",1200,2000,"15-20",2015,"New projects: revamp"]
[2012,"2011-08-01","Verificada","CRI - Moín","Costa Rica","RECOPE","f. Other","f.7 Sulfur Recovery Unit (tonnes/day)",null,56.268571428571427,"15-30",2015]
[2012,"2011-08-01","Verificada","CRI - Moín","Costa Rica","RECOPE","g. Fractionation","g.1 Propane/Propylene Splitter"]
[2012,"2011-08-01","Verificada","CRI - Moín","Costa Rica","RECOPE","g. Fractionation","g.2 Deisobutanizer"]
[2012,"2011-08-01","Verificada","CRI - Moín","Costa Rica","RECOPE","g. Fractionation","g.3 Deisopentanizer"]
[2012,"2011-08-01","Verificada","CRI - Moín","Costa Rica","RECOPE","g. Fractionation","g.4 Deisohexanizer"]
[2012,"2011-08-01","Verificada","CRI - Moín","Costa Rica","RECOPE","g. Fractionation","g.5 Alkylate Splitter"]
[2012,"2011-08-01","Verificada","CRI - Moín","Costa Rica","RECOPE","g. Fractionation","g.6 Reformate Splitter"]
[2012,"2011-08-01","Verificada","CRI - Moín","Costa Rica","RECOPE","g. Fractionation","g.7 Cat Cracked Gasoline Splitter"]
[2012,"2011-08-01","Verificada","CRI - Moín","Costa Rica","RECOPE","h. Oxygenates","h.1 MTBE"]
[2012,"2011-08-01","Verificada","CRI - Moín","Costa Rica","RECOPE","h. Oxygenates","h.2 TAME"]
[2012,"2011-08-01","Verificada","CRI - Moín","Costa Rica","RECOPE","i. Tank Storage (bbl)","i.1 Crude Oil",750000,null,null,null,"New Projects: Under Study"]
[2012,"2011-08-01","Verificada","CRI - Moín","Costa Rica","RECOPE","i. Tank Storage (bbl)","i.2 Gasoline",550000,null,null,null,"New Projects: Under Study"]
[2012,"2011-08-01","Verificada","CRI - Moín","Costa Rica","RECOPE","i. Tank Storage (bbl)","i.3 Diesel",680000,null,null,null,"New Projects: Under Study"]
[2012,"2011-08-01","Verificada","CRI - Moín","Costa Rica","RECOPE","j. Conversion Rate ","j.1 Conversion Rate ",0.2626]
[2012,"2011-08-01","Verificada","CRI - Moín","Costa Rica","RECOPE","k. Desulfurization Rate (%)","k.1 Desulfurization Rate (%)",{"$f":"SUM(I414:I418)/I398","v":0.13600000000000001}]
[2012,"2011-08-01","Verificada","ECU - Esmeralda","Ecuador","EP PETROECUADOR","a. Crude Distillation","a.1 Atmospheric Crude Distillation",110000]
[2012,"2011-08-01","Verificada","ECU - Esmeralda","Ecuador","EP PETROECUADOR","a. Crude Distillation","a.2 Vacuum Distillation",45300]
[2012,"2011-08-01","Duda","ECU - Esmeralda","Ecuador","EP PETROECUADOR","b. Conversion","b.1 Catalytic Cracking",18000,20000,350,"2012","New projects: revamp"]
[2012,"2011-08-01","Verificada","ECU - Esmeralda","Ecuador","EP PETROECUADOR","b. Conversion","b.2 Resid Cat Cracking"]
[2012,"2011-08-01","Verificada","ECU - Esmeralda","Ecuador","EP PETROECUADOR","b. Conversion","b.3 Hydrocracking (Mild Conversion)"]
[2012,"2011-08-01","Verificada","ECU - Esmeralda","Ecuador","EP PETROECUADOR","b. Conversion","b.4 Coking -- Delayed"]
[2012,"2011-08-01","Verificada","ECU - Esmeralda","Ecuador","EP PETROECUADOR","b. Conversion","b.5 Coking -- Fluid"]
[2012,"2011-08-01","Verificada","ECU - Esmeralda","Ecuador","EP PETROECUADOR","b. Conversion","b.6 Visbreaking",31500]
[2012,"2011-08-01","Verificada","ECU - Esmeralda","Ecuador","EP PETROECUADOR","c. Upgrading","c.1 H-Oil"]
[2012,"2011-08-01","Verificada","ECU - Esmeralda","Ecuador","EP PETROECUADOR","c. Upgrading","c.2 HDH"]
[2012,"2011-08-01","Verificada","ECU - Esmeralda","Ecuador","EP PETROECUADOR","c. Upgrading","c.3 Alkylation (Product basis)"]
[2012,"2011-08-01","Verificada","ECU - Esmeralda","Ecuador","EP PETROECUADOR","c. Upgrading","c.4 Polymerization"]
[2012,"2011-08-01","Verificada","ECU - Esmeralda","Ecuador","EP PETROECUADOR","c. Upgrading","c.5 C5/C6 Isomerization",2700]
[2012,"2011-08-01","Verificada","ECU - Esmeralda","Ecuador","EP PETROECUADOR","c. Upgrading","c.6 Catalytic Reforming -- Low Pressure",10000]
[2012,"2011-08-01","Verificada","ECU - Esmeralda","Ecuador","EP PETROECUADOR","c. Upgrading","c.7 Catalytic Reforming -- Medium Pressure"]
[2012,"2011-08-01","Verificada","ECU - Esmeralda","Ecuador","EP PETROECUADOR","c. Upgrading","c.8 Catalytic Reforming -- High Pressure"]
[2012,"2011-08-01","Verificada","ECU - Esmeralda","Ecuador","EP PETROECUADOR","d. Hydrotreating","d.1 Gasoline/Naphtha Hydrotreating",13000]
[2012,"2011-08-01","Verificada","ECU - Esmeralda","Ecuador","EP PETROECUADOR","d. Hydrotreating","d.2 Kerosene Hydrotreating"]
[2012,"2011-08-01","Verificada","ECU - Esmeralda","Ecuador","EP PETROECUADOR","d. Hydrotreating","d.3 Distillate Hydrotreating",24500]
[2012,"2011-08-01","Verificada","ECU - Esmeralda","Ecuador","EP PETROECUADOR","d. Hydrotreating","d.4 Residual Desulfurization"]
[2012,"2011-08-01","Verificada","ECU - Esmeralda","Ecuador","EP PETROECUADOR","d. Hydrotreating","d.5 Gas Oil Desulfurization"]
[2012,"2011-08-01","Verificada","ECU - Esmeralda","Ecuador","EP PETROECUADOR","e. Hydrogen (k scf/d)","e.1 Hydrogen Generation"]
[2012,"2011-08-01","Verificada","ECU - Esmeralda","Ecuador","EP PETROECUADOR","e. Hydrogen (k scf/d)","e.2 Purification"]
[2012,"2011-08-01","Verificada","ECU - Esmeralda","Ecuador","EP PETROECUADOR","f. Other","f.1 Aromatic Solvent Extraction"]
[2012,"2011-08-01","Verificada","ECU - Esmeralda","Ecuador","EP PETROECUADOR","f. Other","f.2 Other Aromatic Process"]
[2012,"2011-08-01","Verificada","ECU - Esmeralda","Ecuador","EP PETROECUADOR","f. Other","f.3 C4 Isomerization"]
[2012,"2011-08-01","Verificada","ECU - Esmeralda","Ecuador","EP PETROECUADOR","f. Other","f.4 Solvent Desaphalting"]
[2012,"2011-08-01","Verificada","ECU - Esmeralda","Ecuador","EP PETROECUADOR","f. Other","f.5 Lubes & Waxes"]
[2012,"2011-08-01","Verificada","ECU - Esmeralda","Ecuador","EP PETROECUADOR","f. Other","f.6 Asphalt & Bitumen Manufacture"]
[2012,"2011-08-01","Verificada","ECU - Esmeralda","Ecuador","EP PETROECUADOR","f. Other","f.7 Sulfur Recovery Unit (tonnes/day)",63]
[2012,"2011-08-01","Verificada","ECU - Esmeralda","Ecuador","EP PETROECUADOR","g. Fractionation","g.1 Propane/Propylene Splitter"]
[2012,"2011-08-01","Verificada","ECU - Esmeralda","Ecuador","EP PETROECUADOR","g. Fractionation","g.2 Deisobutanizer"]
[2012,"2011-08-01","Verificada","ECU - Esmeralda","Ecuador","EP PETROECUADOR","g. Fractionation","g.3 Deisopentanizer",2700]
[2012,"2011-08-01","Verificada","ECU - Esmeralda","Ecuador","EP PETROECUADOR","g. Fractionation","g.4 Deisohexanizer"]
[2012,"2011-08-01","Verificada","ECU - Esmeralda","Ecuador","EP PETROECUADOR","g. Fractionation","g.5 Alkylate Splitter"]
[2012,"2011-08-01","Verificada","ECU - Esmeralda","Ecuador","EP PETROECUADOR","g. Fractionation","g.6 Reformate Splitter"]
[2012,"2011-08-01","Verificada","ECU - Esmeralda","Ecuador","EP PETROECUADOR","g. Fractionation","g.7 Cat Cracked Gasoline Splitter"]
[2012,"2011-08-01","Verificada","ECU - Esmeralda","Ecuador","EP PETROECUADOR","h. Oxygenates","h.1 MTBE"]
[2012,"2011-08-01","Verificada","ECU - Esmeralda","Ecuador","EP PETROECUADOR","h. Oxygenates","h.2 TAME"]
[2012,"2011-08-01","Verificada","ECU - Esmeralda","Ecuador","EP PETROECUADOR","i. Tank Storage (bbl)","i.1 Crude Oil",1077050]
[2012,"2011-08-01","Verificada","ECU - Esmeralda","Ecuador","EP PETROECUADOR","i. Tank Storage (bbl)","i.2 Gasoline",640800]
[2012,"2011-08-01","Verificada","ECU - Esmeralda","Ecuador","EP PETROECUADOR","i. Tank Storage (bbl)","i.3 Diesel",652250]
[2012,"2011-08-01","Verificada","ECU - Esmeralda","Ecuador","EP PETROECUADOR","j. Conversion Rate ","j.1 Conversion Rate ",0.70130000000000003]
[2012,"2011-08-01","Verificada","ECU - Esmeralda","Ecuador","EP PETROECUADOR","k. Desulfurization Rate (%)","k.1 Desulfurization Rate (%)",{"$f":"SUM(I458:I462)/I442","v":0.34090909090909088}]
[2012,"2011-08-01",null,"ECU - La Libertad","Ecuador","EP PETROECUADOR","a. Crude Distillation","a.1 Atmospheric Crude Distillation",45000]
[2012,"2011-08-01",null,"ECU - La Libertad","Ecuador","EP PETROECUADOR","a. Crude Distillation","a.2 Vacuum Distillation"]
[2012,"2011-08-01",null,"ECU - La Libertad","Ecuador","EP PETROECUADOR","b. Conversion","b.1 Catalytic Cracking"]
[2012,"2011-08-01",null,"ECU - La Libertad","Ecuador","EP PETROECUADOR","b. Conversion","b.2 Resid Cat Cracking"]
[2012,"2011-08-01",null,"ECU - La Libertad","Ecuador","EP PETROECUADOR","b. Conversion","b.3 Hydrocracking (Mild Conversion)"]
[2012,"2011-08-01",null,"ECU - La Libertad","Ecuador","EP PETROECUADOR","b. Conversion","b.4 Coking -- Delayed"]
[2012,"2011-08-01",null,"ECU - La Libertad","Ecuador","EP PETROECUADOR","b. Conversion","b.5 Coking -- Fluid"]
[2012,"2011-08-01",null,"ECU - La Libertad","Ecuador","EP PETROECUADOR","b. Conversion","b.6 Visbreaking"]
[2012,"2011-08-01",null,"ECU - La Libertad","Ecuador","EP PETROECUADOR","c. Upgrading","c.1 H-Oil"]
[2012,"2011-08-01",null,"ECU - La Libertad","Ecuador","EP PETROECUADOR","c. Upgrading","c.2 HDH"]
[2012,"2011-08-01",null,"ECU - La Libertad","Ecuador","EP PETROECUADOR","c. Upgrading","c.3 Alkylation (Product basis)"]
[2012,"2011-08-01",null,"ECU - La Libertad","Ecuador","EP PETROECUADOR","c. Upgrading","c.4 Polymerization"]
[2012,"2011-08-01",null,"ECU - La Libertad","Ecuador","EP PETROECUADOR","c. Upgrading","c.5 C5/C6 Isomerization"]
[2012,"2011-08-01",null,"ECU - La Libertad","Ecuador","EP PETROECUADOR","c. Upgrading","c.6 Catalytic Reforming -- Low Pressure"]
[2012,"2011-08-01",null,"ECU - La Libertad","Ecuador","EP PETROECUADOR","c. Upgrading","c.7 Catalytic Reforming -- Medium Pressure"]
[2012,"2011-08-01",null,"ECU - La Libertad","Ecuador","EP PETROECUADOR","c. Upgrading","c.8 Catalytic Reforming -- High Pressure"]
[2012,"2011-08-01",null,"ECU - La Libertad","Ecuador","EP PETROECUADOR","d. Hydrotreating","d.1 Gasoline/Naphtha Hydrotreating"]
[2012,"2011-08-01",null,"ECU - La Libertad","Ecuador","EP PETROECUADOR","d. Hydrotreating","d.2 Kerosene Hydrotreating"]
[2012,"2011-08-01",null,"ECU - La Libertad","Ecuador","EP PETROECUADOR","d. Hydrotreating","d.3 Distillate Hydrotreating"]
[2012,"2011-08-01",null,"ECU - La Libertad","Ecuador","EP PETROECUADOR","d. Hydrotreating","d.4 Residual Desulfurization"]
[2012,"2011-08-01",null,"ECU - La Libertad","Ecuador","EP PETROECUADOR","d. Hydrotreating","d.5 Gas Oil Desulfurization"]
[2012,"2011-08-01",null,"ECU - La Libertad","Ecuador","EP PETROECUADOR","e. Hydrogen (k scf/d)","e.1 Hydrogen Generation"]
[2012,"2011-08-01",null,"ECU - La Libertad","Ecuador","EP PETROECUADOR","e. Hydrogen (k scf/d)","e.2 Purification"]
[2012,"2011-08-01",null,"ECU - La Libertad","Ecuador","EP PETROECUADOR","f. Other","f.1 Aromatic Solvent Extraction"]
[2012,"2011-08-01",null,"ECU - La Libertad","Ecuador","EP PETROECUADOR","f. Other","f.2 Other Aromatic Process"]
[2012,"2011-08-01",null,"ECU - La Libertad","Ecuador","EP PETROECUADOR","f. Other","f.3 C4 Isomerization"]
[2012,"2011-08-01",null,"ECU - La Libertad","Ecuador","EP PETROECUADOR","f. Other","f.4 Solvent Desaphalting"]
[2012,"2011-08-01",null,"ECU - La Libertad","Ecuador","EP PETROECUADOR","f. Other","f.5 Lubes & Waxes"]
[2012,"2011-08-01",null,"ECU - La Libertad","Ecuador","EP PETROECUADOR","f. Other","f.6 Asphalt & Bitumen Manufacture"]
[2012,"2011-08-01",null,"ECU - La Libertad","Ecuador","EP PETROECUADOR","f. Other","f.7 Sulfur Recovery Unit (tonnes/day)"]
[2012,"2011-08-01",null,"ECU - La Libertad","Ecuador","EP PETROECUADOR","g. Fractionation","g.1 Propane/Propylene Splitter"]
[2012,"2011-08-01",null,"ECU - La Libertad","Ecuador","EP PETROECUADOR","g. Fractionation","g.2 Deisobutanizer"]
[2012,"2011-08-01",null,"ECU - La Libertad","Ecuador","EP PETROECUADOR","g. Fractionation","g.3 Deisopentanizer"]
[2012,"2011-08-01",null,"ECU - La Libertad","Ecuador","EP PETROECUADOR","g. Fractionation","g.4 Deisohexanizer"]
[2012,"2011-08-01",null,"ECU - La Libertad","Ecuador","EP PETROECUADOR","g. Fractionation","g.5 Alkylate Splitter"]
[2012,"2011-08-01",null,"ECU - La Libertad","Ecuador","EP PETROECUADOR","g. Fractionation","g.6 Reformate Splitter"]
[2012,"2011-08-01",null,"ECU - La Libertad","Ecuador","EP PETROECUADOR","g. Fractionation","g.7 Cat Cracked Gasoline Splitter"]
[2012,"2011-08-01",null,"ECU - La Libertad","Ecuador","EP PETROECUADOR","h. Oxygenates","h.1 MTBE"]
[2012,"2011-08-01",null,"ECU - La Libertad","Ecuador","EP PETROECUADOR","h. Oxygenates","h.2 TAME"]
[2012,"2011-08-01",null,"ECU - La Libertad","Ecuador","EP PETROECUADOR","i. Tank Storage (bbl)","i.1 Crude Oil",1054000]
[2012,"2011-08-01",null,"ECU - La Libertad","Ecuador","EP PETROECUADOR","i. Tank Storage (bbl)","i.2 Gasoline",312000]
[2012,"2011-08-01",null,"ECU - La Libertad","Ecuador","EP PETROECUADOR","i. Tank Storage (bbl)","i.3 Diesel",280500]
[2012,"2011-08-01",null,"ECU - La Libertad","Ecuador","EP PETROECUADOR","j. Conversion Rate ","j.1 Conversion Rate ",0]
[2012,"2011-08-01",null,"ECU - La Libertad","Ecuador","EP PETROECUADOR","k. Desulfurization Rate (%)","k.1 Desulfurization Rate (%)",{"$f":"SUM(I502:I506)/I486","v":0}]
[2012,"2011-08-01","Verificada","ECU - Sushufundi","Ecuador","EP PETROECUADOR","a. Crude Distillation","a.1 Atmospheric Crude Distillation",20000]
[2012,"2011-08-01","Verificada","ECU - Sushufundi","Ecuador","EP PETROECUADOR","a. Crude Distillation","a.2 Vacuum Distillation"]
[2012,"2011-08-01","Verificada","ECU - Sushufundi","Ecuador","EP PETROECUADOR","b. Conversion","b.1 Catalytic Cracking"]
[2012,"2011-08-01","Verificada","ECU - Sushufundi","Ecuador","EP PETROECUADOR","b. Conversion","b.2 Resid Cat Cracking"]
[2012,"2011-08-01","Verificada","ECU - Sushufundi","Ecuador","EP PETROECUADOR","b. Conversion","b.3 Hydrocracking (Mild Conversion)"]
[2012,"2011-08-01","Verificada","ECU - Sushufundi","Ecuador","EP PETROECUADOR","b. Conversion","b.4 Coking -- Delayed"]
[2012,"2011-08-01","Verificada","ECU - Sushufundi","Ecuador","EP PETROECUADOR","b. Conversion","b.5 Coking -- Fluid"]
[2012,"2011-08-01","Verificada","ECU - Sushufundi","Ecuador","EP PETROECUADOR","b. Conversion","b.6 Visbreaking"]
[2012,"2011-08-01","Verificada","ECU - Sushufundi","Ecuador","EP PETROECUADOR","c. Upgrading","c.1 H-Oil"]
[2012,"2011-08-01","Verificada","ECU - Sushufundi","Ecuador","EP PETROECUADOR","c. Upgrading","c.2 HDH"]
[2012,"2011-08-01","Verificada","ECU - Sushufundi","Ecuador","EP PETROECUADOR","c. Upgrading","c.3 Alkylation (Product basis)"]
[2012,"2011-08-01","Verificada","ECU - Sushufundi","Ecuador","EP PETROECUADOR","c. Upgrading","c.4 Polymerization"]
[2012,"2011-08-01","Verificada","ECU - Sushufundi","Ecuador","EP PETROECUADOR","c. Upgrading","c.5 C5/C6 Isomerization"]
[2012,"2011-08-01","Verificada","ECU - Sushufundi","Ecuador","EP PETROECUADOR","c. Upgrading","c.6 Catalytic Reforming -- Low Pressure"]
[2012,"2011-08-01","Verificada","ECU - Sushufundi","Ecuador","EP PETROECUADOR","c. Upgrading","c.7 Catalytic Reforming -- Medium Pressure"]
[2012,"2011-08-01","Verificada","ECU - Sushufundi","Ecuador","EP PETROECUADOR","c. Upgrading","c.8 Catalytic Reforming -- High Pressure"]
[2012,"2011-08-01","Verificada","ECU - Sushufundi","Ecuador","EP PETROECUADOR","d. Hydrotreating","d.1 Gasoline/Naphtha Hydrotreating"]
[2012,"2011-08-01","Verificada","ECU - Sushufundi","Ecuador","EP PETROECUADOR","d. Hydrotreating","d.2 Kerosene Hydrotreating"]
[2012,"2011-08-01","Verificada","ECU - Sushufundi","Ecuador","EP PETROECUADOR","d. Hydrotreating","d.3 Distillate Hydrotreating"]
[2012,"2011-08-01","Verificada","ECU - Sushufundi","Ecuador","EP PETROECUADOR","d. Hydrotreating","d.4 Residual Desulfurization"]
[2012,"2011-08-01","Verificada","ECU - Sushufundi","Ecuador","EP PETROECUADOR","d. Hydrotreating","d.5 Gas Oil Desulfurization"]
[2012,"2011-08-01","Verificada","ECU - Sushufundi","Ecuador","EP PETROECUADOR","e. Hydrogen (k scf/d)","e.1 Hydrogen Generation"]
[2012,"2011-08-01","Verificada","ECU - Sushufundi","Ecuador","EP PETROECUADOR","e. Hydrogen (k scf/d)","e.2 Purification"]
[2012,"2011-08-01","Verificada","ECU - Sushufundi","Ecuador","EP PETROECUADOR","f. Other","f.1 Aromatic Solvent Extraction"]
[2012,"2011-08-01","Verificada","ECU - Sushufundi","Ecuador","EP PETROECUADOR","f. Other","f.2 Other Aromatic Process"]
[2012,"2011-08-01","Verificada","ECU - Sushufundi","Ecuador","EP PETROECUADOR","f. Other","f.3 C4 Isomerization"]
[2012,"2011-08-01","Verificada","ECU - Sushufundi","Ecuador","EP PETROECUADOR","f. Other","f.4 Solvent Desaphalting"]
[2012,"2011-08-01","Verificada","ECU - Sushufundi","Ecuador","EP PETROECUADOR","f. Other","f.5 Lubes & Waxes"]
[2012,"2011-08-01","Verificada","ECU - Sushufundi","Ecuador","EP PETROECUADOR","f. Other","f.6 Asphalt & Bitumen Manufacture"]
[2012,"2011-08-01","Verificada","ECU - Sushufundi","Ecuador","EP PETROECUADOR","f. Other","f.7 Sulfur Recovery Unit (tonnes/day)"]
[2012,"2011-08-01","Verificada","ECU - Sushufundi","Ecuador","EP PETROECUADOR","g. Fractionation","g.1 Propane/Propylene Splitter"]
[2012,"2011-08-01","Verificada","ECU - Sushufundi","Ecuador","EP PETROECUADOR","g. Fractionation","g.2 Deisobutanizer"]
[2012,"2011-08-01","Verificada","ECU - Sushufundi","Ecuador","EP PETROECUADOR","g. Fractionation","g.3 Deisopentanizer"]
[2012,"2011-08-01","Verificada","ECU - Sushufundi","Ecuador","EP PETROECUADOR","g. Fractionation","g.4 Deisohexanizer"]
[2012,"2011-08-01","Verificada","ECU - Sushufundi","Ecuador","EP PETROECUADOR","g. Fractionation","g.5 Alkylate Splitter"]
[2012,"2011-08-01","Verificada","ECU - Sushufundi","Ecuador","EP PETROECUADOR","g. Fractionation","g.6 Reformate Splitter"]
[2012,"2011-08-01","Verificada","ECU - Sushufundi","Ecuador","EP PETROECUADOR","g. Fractionation","g.7 Cat Cracked Gasoline Splitter"]
[2012,"2011-08-01","Verificada","ECU - Sushufundi","Ecuador","EP PETROECUADOR","h. Oxygenates","h.1 MTBE"]
[2012,"2011-08-01","Verificada","ECU - Sushufundi","Ecuador","EP PETROECUADOR","h. Oxygenates","h.2 TAME"]
[2012,"2011-08-01","Verificada","ECU - Sushufundi","Ecuador","EP PETROECUADOR","i. Tank Storage (bbl)","i.1 Crude Oil",154000]
[2012,"2011-08-01","Verificada","ECU - Sushufundi","Ecuador","EP PETROECUADOR","i. Tank Storage (bbl)","i.2 Gasoline",69955]
[2012,"2011-08-01","Verificada","ECU - Sushufundi","Ecuador","EP PETROECUADOR","i. Tank Storage (bbl)","i.3 Diesel",64175]
[2012,"2011-08-01","Verificada","ECU - Sushufundi","Ecuador","EP PETROECUADOR","j. Conversion Rate ","j.1 Conversion Rate ",0]
[2012,"2011-08-01","Verificada","ECU - Sushufundi","Ecuador","EP PETROECUADOR","k. Desulfurization Rate (%)","k.1 Desulfurization Rate (%)",{"$f":"SUM(I546:I550)/I530","v":0}]
[2012,"2011-08-01","Verificada","SAL - Acajutla","El Salvador","PUMA Energy","a. Crude Distillation","a.1 Atmospheric Crude Distillation",22000]
[2012,"2011-08-01","Verificada","SAL - Acajutla","El Salvador","PUMA Energy","a. Crude Distillation","a.2 Vacuum Distillation",4000]
[2012,"2011-08-01","Verificada","SAL - Acajutla","El Salvador","PUMA Energy","b. Conversion","b.1 Catalytic Cracking"]
[2012,"2011-08-01","Verificada","SAL - Acajutla","El Salvador","PUMA Energy","b. Conversion","b.2 Resid Cat Cracking"]
[2012,"2011-08-01","Verificada","SAL - Acajutla","El Salvador","PUMA Energy","b. Conversion","b.3 Hydrocracking (Mild Conversion)"]
[2012,"2011-08-01","Verificada","SAL - Acajutla","El Salvador","PUMA Energy","b. Conversion","b.4 Coking -- Delayed"]
[2012,"2011-08-01","Verificada","SAL - Acajutla","El Salvador","PUMA Energy","b. Conversion","b.5 Coking -- Fluid"]
[2012,"2011-08-01","Verificada","SAL - Acajutla","El Salvador","PUMA Energy","b. Conversion","b.6 Visbreaking"]
[2012,"2011-08-01","Verificada","SAL - Acajutla","El Salvador","PUMA Energy","c. Upgrading","c.1 H-Oil"]
[2012,"2011-08-01","Verificada","SAL - Acajutla","El Salvador","PUMA Energy","c. Upgrading","c.2 HDH"]
[2012,"2011-08-01","Verificada","SAL - Acajutla","El Salvador","PUMA Energy","c. Upgrading","c.3 Alkylation (Product basis)"]
[2012,"2011-08-01","Verificada","SAL - Acajutla","El Salvador","PUMA Energy","c. Upgrading","c.4 Polymerization"]
[2012,"2011-08-01","Verificada","SAL - Acajutla","El Salvador","PUMA Energy","c. Upgrading","c.5 C5/C6 Isomerization"]
[2012,"2011-08-01","Verificada","SAL - Acajutla","El Salvador","PUMA Energy","c. Upgrading","c.6 Catalytic Reforming -- Low Pressure"]
[2012,"2011-08-01","Verificada","SAL - Acajutla","El Salvador","PUMA Energy","c. Upgrading","c.7 Catalytic Reforming -- Medium Pressure"]
[2012,"2011-08-01","Verificada","SAL - Acajutla","El Salvador","PUMA Energy","c. Upgrading","c.8 Catalytic Reforming -- High Pressure"]
[2012,"2011-08-01","Verificada","SAL - Acajutla","El Salvador","PUMA Energy","d. Hydrotreating","d.1 Gasoline/Naphtha Hydrotreating"]
[2012,"2011-08-01","Verificada","SAL - Acajutla","El Salvador","PUMA Energy","d. Hydrotreating","d.2 Kerosene Hydrotreating"]
[2012,"2011-08-01","Verificada","SAL - Acajutla","El Salvador","PUMA Energy","d. Hydrotreating","d.3 Distillate Hydrotreating"]
[2012,"2011-08-01","Verificada","SAL - Acajutla","El Salvador","PUMA Energy","d. Hydrotreating","d.4 Residual Desulfurization"]
[2012,"2011-08-01","Verificada","SAL - Acajutla","El Salvador","PUMA Energy","d. Hydrotreating","d.5 Gas Oil Desulfurization"]
[2012,"2011-08-01","Verificada","SAL - Acajutla","El Salvador","PUMA Energy","e. Hydrogen (k scf/d)","e.1 Hydrogen Generation"]
[2012,"2011-08-01","Verificada","SAL - Acajutla","El Salvador","PUMA Energy","e. Hydrogen (k scf/d)","e.2 Purification"]
[2012,"2011-08-01","Verificada","SAL - Acajutla","El Salvador","PUMA Energy","f. Other","f.1 Aromatic Solvent Extraction"]
[2012,"2011-08-01","Verificada","SAL - Acajutla","El Salvador","PUMA Energy","f. Other","f.2 Other Aromatic Process"]
[2012,"2011-08-01","Verificada","SAL - Acajutla","El Salvador","PUMA Energy","f. Other","f.3 C4 Isomerization"]
[2012,"2011-08-01","Verificada","SAL - Acajutla","El Salvador","PUMA Energy","f. Other","f.4 Solvent Desaphalting"]
[2012,"2011-08-01","Verificada","SAL - Acajutla","El Salvador","PUMA Energy","f. Other","f.5 Lubes & Waxes"]
[2012,"2011-08-01","Verificada","SAL - Acajutla","El Salvador","PUMA Energy","f. Other","f.6 Asphalt & Bitumen Manufacture"]
[2012,"2011-08-01","Verificada","SAL - Acajutla","El Salvador","PUMA Energy","f. Other","f.7 Sulfur Recovery Unit (tonnes/day)"]
[2012,"2011-08-01","Verificada","SAL - Acajutla","El Salvador","PUMA Energy","g. Fractionation","g.1 Propane/Propylene Splitter"]
[2012,"2011-08-01","Verificada","SAL - Acajutla","El Salvador","PUMA Energy","g. Fractionation","g.2 Deisobutanizer"]
[2012,"2011-08-01","Verificada","SAL - Acajutla","El Salvador","PUMA Energy","g. Fractionation","g.3 Deisopentanizer"]
[2012,"2011-08-01","Verificada","SAL - Acajutla","El Salvador","PUMA Energy","g. Fractionation","g.4 Deisohexanizer"]
[2012,"2011-08-01","Verificada","SAL - Acajutla","El Salvador","PUMA Energy","g. Fractionation","g.5 Alkylate Splitter"]
[2012,"2011-08-01","Verificada","SAL - Acajutla","El Salvador","PUMA Energy","g. Fractionation","g.6 Reformate Splitter"]
[2012,"2011-08-01","Verificada","SAL - Acajutla","El Salvador","PUMA Energy","g. Fractionation","g.7 Cat Cracked Gasoline Splitter"]
[2012,"2011-08-01","Verificada","SAL - Acajutla","El Salvador","PUMA Energy","h. Oxygenates","h.1 MTBE"]
[2012,"2011-08-01","Verificada","SAL - Acajutla","El Salvador","PUMA Energy","h. Oxygenates","h.2 TAME"]
[2012,"2011-08-01","Verificada","SAL - Acajutla","El Salvador","PUMA Energy","i. Tank Storage (bbl)","i.1 Crude Oil"]
[2012,"2011-08-01","Verificada","SAL - Acajutla","El Salvador","PUMA Energy","i. Tank Storage (bbl)","i.2 Gasoline"]
[2012,"2011-08-01","Verificada","SAL - Acajutla","El Salvador","PUMA Energy","i. Tank Storage (bbl)","i.3 Diesel"]
[2012,"2011-08-01","Verificada","SAL - Acajutla","El Salvador","PUMA Energy","j. Conversion Rate ","j.1 Conversion Rate ",0]
[2012,"2011-08-01","Verificada","SAL - Acajutla","El Salvador","PUMA Energy","k. Desulfurization Rate (%)","k.1 Desulfurization Rate (%)",{"$f":"SUM(I590:I594)/I574","v":0}]
[2012,"2011-08-01","Verificada","JAM - Kingston","Jamaica","PetroJam (PCJ)","a. Crude Distillation","a.1 Atmospheric Crude Distillation",36000,null,null,null,"Capacity: the Maximum Capacity of the exisiting Atmospheric crude unit is approx. 36,000 bpsd processing 30 API crude, or 32,000 bpd processing 26 API crude"]
[2012,"2011-08-01","Verificada","JAM - Kingston","Jamaica","PetroJam (PCJ)","a. Crude Distillation","a.2 Vacuum Distillation"]
[2012,"2011-08-01","Verificada","JAM - Kingston","Jamaica","PetroJam (PCJ)","b. Conversion","b.1 Catalytic Cracking"]
[2012,"2011-08-01","Verificada","JAM - Kingston","Jamaica","PetroJam (PCJ)","b. Conversion","b.2 Resid Cat Cracking"]
[2012,"2011-08-01","Verificada","JAM - Kingston","Jamaica","PetroJam (PCJ)","b. Conversion","b.3 Hydrocracking (Mild Conversion)"]
[2012,"2011-08-01","Verificada","JAM - Kingston","Jamaica","PetroJam (PCJ)","b. Conversion","b.4 Coking -- Delayed"]
[2012,"2011-08-01","Verificada","JAM - Kingston","Jamaica","PetroJam (PCJ)","b. Conversion","b.5 Coking -- Fluid"]
[2012,"2011-08-01","Verificada","JAM - Kingston","Jamaica","PetroJam (PCJ)","b. Conversion","b.6 Visbreaking"]
[2012,"2011-08-01","Verificada","JAM - Kingston","Jamaica","PetroJam (PCJ)","c. Upgrading","c.1 H-Oil"]
[2012,"2011-08-01","Verificada","JAM - Kingston","Jamaica","PetroJam (PCJ)","c. Upgrading","c.2 HDH"]
[2012,"2011-08-01","Verificada","JAM - Kingston","Jamaica","PetroJam (PCJ)","c. Upgrading","c.3 Alkylation (Product basis)"]
[2012,"2011-08-01","Verificada","JAM - Kingston","Jamaica","PetroJam (PCJ)","c. Upgrading","c.4 Polymerization"]
[2012,"2011-08-01","Verificada","JAM - Kingston","Jamaica","PetroJam (PCJ)","c. Upgrading","c.5 C5/C6 Isomerization"]
[2012,"2011-08-01","Verificada","JAM - Kingston","Jamaica","PetroJam (PCJ)","c. Upgrading","c.6 Catalytic Reforming -- Low Pressure"]
[2012,"2011-08-01","Verificada","JAM - Kingston","Jamaica","PetroJam (PCJ)","c. Upgrading","c.7 Catalytic Reforming -- Medium Pressure",3700]
[2012,"2011-08-01","Verificada","JAM - Kingston","Jamaica","PetroJam (PCJ)","c. Upgrading","c.8 Catalytic Reforming -- High Pressure"]
[2012,"2011-08-01","Verificada","JAM - Kingston","Jamaica","PetroJam (PCJ)","d. Hydrotreating","d.1 Gasoline/Naphtha Hydrotreating",6800]
[2012,"2011-08-01","Verificada","JAM - Kingston","Jamaica","PetroJam (PCJ)","d. Hydrotreating","d.2 Kerosene Hydrotreating",7500]
[2012,"2011-08-01","Verificada","JAM - Kingston","Jamaica","PetroJam (PCJ)","d. Hydrotreating","d.3 Distillate Hydrotreating",9500]
[2012,"2011-08-01","Verificada","JAM - Kingston","Jamaica","PetroJam (PCJ)","d. Hydrotreating","d.4 Residual Desulfurization"]
[2012,"2011-08-01","Verificada","JAM - Kingston","Jamaica","PetroJam (PCJ)","d. Hydrotreating","d.5 Gas Oil Desulfurization"]
[2012,"2011-08-01","Verificada","JAM - Kingston","Jamaica","PetroJam (PCJ)","e. Hydrogen (k scf/d)","e.1 Hydrogen Generation"]
[2012,"2011-08-01","Verificada","JAM - Kingston","Jamaica","PetroJam (PCJ)","e. Hydrogen (k scf/d)","e.2 Purification"]
[2012,"2011-08-01","Verificada","JAM - Kingston","Jamaica","PetroJam (PCJ)","f. Other","f.1 Aromatic Solvent Extraction"]
[2012,"2011-08-01","Verificada","JAM - Kingston","Jamaica","PetroJam (PCJ)","f. Other","f.2 Other Aromatic Process"]
[2012,"2011-08-01","Verificada","JAM - Kingston","Jamaica","PetroJam (PCJ)","f. Other","f.3 C4 Isomerization"]
[2012,"2011-08-01","Verificada","JAM - Kingston","Jamaica","PetroJam (PCJ)","f. Other","f.4 Solvent Desaphalting"]
[2012,"2011-08-01","Verificada","JAM - Kingston","Jamaica","PetroJam (PCJ)","f. Other","f.5 Lubes & Waxes"]
[2012,"2011-08-01","Verificada","JAM - Kingston","Jamaica","PetroJam (PCJ)","f. Other","f.6 Asphalt & Bitumen Manufacture",2000]
[2012,"2011-08-01","Verificada","JAM - Kingston","Jamaica","PetroJam (PCJ)","f. Other","f.7 Sulfur Recovery Unit (tonnes/day)"]
[2012,"2011-08-01","Verificada","JAM - Kingston","Jamaica","PetroJam (PCJ)","g. Fractionation","g.1 Propane/Propylene Splitter"]
[2012,"2011-08-01","Verificada","JAM - Kingston","Jamaica","PetroJam (PCJ)","g. Fractionation","g.2 Deisobutanizer"]
[2012,"2011-08-01","Verificada","JAM - Kingston","Jamaica","PetroJam (PCJ)","g. Fractionation","g.3 Deisopentanizer"]
[2012,"2011-08-01","Verificada","JAM - Kingston","Jamaica","PetroJam (PCJ)","g. Fractionation","g.4 Deisohexanizer"]
[2012,"2011-08-01","Verificada","JAM - Kingston","Jamaica","PetroJam (PCJ)","g. Fractionation","g.5 Alkylate Splitter"]
[2012,"2011-08-01","Verificada","JAM - Kingston","Jamaica","PetroJam (PCJ)","g. Fractionation","g.6 Reformate Splitter",7500]
[2012,"2011-08-01","Verificada","JAM - Kingston","Jamaica","PetroJam (PCJ)","g. Fractionation","g.7 Cat Cracked Gasoline Splitter"]
[2012,"2011-08-01","Verificada","JAM - Kingston","Jamaica","PetroJam (PCJ)","h. Oxygenates","h.1 MTBE"]
[2012,"2011-08-01","Verificada","JAM - Kingston","Jamaica","PetroJam (PCJ)","h. Oxygenates","h.2 TAME"]
[2012,"2011-08-01","Verificada","JAM - Kingston","Jamaica","PetroJam (PCJ)","i. Tank Storage (bbl)","i.1 Crude Oil",1058400]
[2012,"2011-08-01","Verificada","JAM - Kingston","Jamaica","PetroJam (PCJ)","i. Tank Storage (bbl)","i.2 Gasoline",408741]
[2012,"2011-08-01","Verificada","JAM - Kingston","Jamaica","PetroJam (PCJ)","i. Tank Storage (bbl)","i.3 Diesel",307073]
[2012,"2011-08-01","Verificada","JAM - Kingston","Jamaica","PetroJam (PCJ)","j. Conversion Rate ","j.1 Conversion Rate ",0.85940000000000005]
[2012,"2011-08-01","Verificada","JAM - Kingston","Jamaica","PetroJam (PCJ)","k. Desulfurization Rate (%)","k.1 Desulfurization Rate (%)",{"$f":"SUM(I634:I638)/I618","v":0.66111111111111109}]
[2012,"2011-08-01","Verificada","NIC - MANREF","Nicaragua","PUMA Energy","a. Crude Distillation","a.1 Atmospheric Crude Distillation",21000]
[2012,"2011-08-01","Verificada","NIC - MANREF","Nicaragua","PUMA Energy","a. Crude Distillation","a.2 Vacuum Distillation",1600]
[2012,"2011-08-01","Verificada","NIC - MANREF","Nicaragua","PUMA Energy","b. Conversion","b.1 Catalytic Cracking"]
[2012,"2011-08-01","Verificada","NIC - MANREF","Nicaragua","PUMA Energy","b. Conversion","b.2 Resid Cat Cracking"]
[2012,"2011-08-01","Verificada","NIC - MANREF","Nicaragua","PUMA Energy","b. Conversion","b.3 Hydrocracking (Mild Conversion)"]
[2012,"2011-08-01","Verificada","NIC - MANREF","Nicaragua","PUMA Energy","b. Conversion","b.4 Coking -- Delayed"]
[2012,"2011-08-01","Verificada","NIC - MANREF","Nicaragua","PUMA Energy","b. Conversion","b.5 Coking -- Fluid"]
[2012,"2011-08-01","Verificada","NIC - MANREF","Nicaragua","PUMA Energy","b. Conversion","b.6 Visbreaking"]
[2012,"2011-08-01","Verificada","NIC - MANREF","Nicaragua","PUMA Energy","c. Upgrading","c.1 H-Oil"]
[2012,"2011-08-01","Verificada","NIC - MANREF","Nicaragua","PUMA Energy","c. Upgrading","c.2 HDH"]
[2012,"2011-08-01","Verificada","NIC - MANREF","Nicaragua","PUMA Energy","c. Upgrading","c.3 Alkylation (Product basis)"]
[2012,"2011-08-01","Verificada","NIC - MANREF","Nicaragua","PUMA Energy","c. Upgrading","c.4 Polymerization"]
[2012,"2011-08-01","Verificada","NIC - MANREF","Nicaragua","PUMA Energy","c. Upgrading","c.5 C5/C6 Isomerization"]
[2012,"2011-08-01","Verificada","NIC - MANREF","Nicaragua","PUMA Energy","c. Upgrading","c.6 Catalytic Reforming -- Low Pressure"]
[2012,"2011-08-01","Verificada","NIC - MANREF","Nicaragua","PUMA Energy","c. Upgrading","c.7 Catalytic Reforming -- Medium Pressure"]
[2012,"2011-08-01","Verificada","NIC - MANREF","Nicaragua","PUMA Energy","c. Upgrading","c.8 Catalytic Reforming -- High Pressure"]
[2012,"2011-08-01","Verificada","NIC - MANREF","Nicaragua","PUMA Energy","d. Hydrotreating","d.1 Gasoline/Naphtha Hydrotreating"]
[2012,"2011-08-01","Verificada","NIC - MANREF","Nicaragua","PUMA Energy","d. Hydrotreating","d.2 Kerosene Hydrotreating"]
[2012,"2011-08-01","Verificada","NIC - MANREF","Nicaragua","PUMA Energy","d. Hydrotreating","d.3 Distillate Hydrotreating"]
[2012,"2011-08-01","Verificada","NIC - MANREF","Nicaragua","PUMA Energy","d. Hydrotreating","d.4 Residual Desulfurization"]
[2012,"2011-08-01","Verificada","NIC - MANREF","Nicaragua","PUMA Energy","d. Hydrotreating","d.5 Gas Oil Desulfurization"]
[2012,"2011-08-01","Verificada","NIC - MANREF","Nicaragua","PUMA Energy","e. Hydrogen (k scf/d)","e.1 Hydrogen Generation"]
[2012,"2011-08-01","Verificada","NIC - MANREF","Nicaragua","PUMA Energy","e. Hydrogen (k scf/d)","e.2 Purification"]
[2012,"2011-08-01","Verificada","NIC - MANREF","Nicaragua","PUMA Energy","f. Other","f.1 Aromatic Solvent Extraction"]
[2012,"2011-08-01","Verificada","NIC - MANREF","Nicaragua","PUMA Energy","f. Other","f.2 Other Aromatic Process"]
[2012,"2011-08-01","Verificada","NIC - MANREF","Nicaragua","PUMA Energy","f. Other","f.3 C4 Isomerization"]
[2012,"2011-08-01","Verificada","NIC - MANREF","Nicaragua","PUMA Energy","f. Other","f.4 Solvent Desaphalting"]
[2012,"2011-08-01","Verificada","NIC - MANREF","Nicaragua","PUMA Energy","f. Other","f.5 Lubes & Waxes"]
[2012,"2011-08-01","Verificada","NIC - MANREF","Nicaragua","PUMA Energy","f. Other","f.6 Asphalt & Bitumen Manufacture"]
[2012,"2011-08-01","Verificada","NIC - MANREF","Nicaragua","PUMA Energy","f. Other","f.7 Sulfur Recovery Unit (tonnes/day)"]
[2012,"2011-08-01","Verificada","NIC - MANREF","Nicaragua","PUMA Energy","g. Fractionation","g.1 Propane/Propylene Splitter"]
[2012,"2011-08-01","Verificada","NIC - MANREF","Nicaragua","PUMA Energy","g. Fractionation","g.2 Deisobutanizer"]
[2012,"2011-08-01","Verificada","NIC - MANREF","Nicaragua","PUMA Energy","g. Fractionation","g.3 Deisopentanizer"]
[2012,"2011-08-01","Verificada","NIC - MANREF","Nicaragua","PUMA Energy","g. Fractionation","g.4 Deisohexanizer"]
[2012,"2011-08-01","Verificada","NIC - MANREF","Nicaragua","PUMA Energy","g. Fractionation","g.5 Alkylate Splitter"]
[2012,"2011-08-01","Verificada","NIC - MANREF","Nicaragua","PUMA Energy","g. Fractionation","g.6 Reformate Splitter"]
[2012,"2011-08-01","Verificada","NIC - MANREF","Nicaragua","PUMA Energy","g. Fractionation","g.7 Cat Cracked Gasoline Splitter"]
[2012,"2011-08-01","Verificada","NIC - MANREF","Nicaragua","PUMA Energy","h. Oxygenates","h.1 MTBE"]
[2012,"2011-08-01","Verificada","NIC - MANREF","Nicaragua","PUMA Energy","h. Oxygenates","h.2 TAME"]
[2012,"2011-08-01","Verificada","NIC - MANREF","Nicaragua","PUMA Energy","i. Tank Storage (bbl)","i.1 Crude Oil"]
[2012,"2011-08-01","Verificada","NIC - MANREF","Nicaragua","PUMA Energy","i. Tank Storage (bbl)","i.2 Gasoline"]
[2012,"2011-08-01","Verificada","NIC - MANREF","Nicaragua","PUMA Energy","i. Tank Storage (bbl)","i.3 Diesel"]
[2012,"2011-08-01","Verificada","NIC - MANREF","Nicaragua","PUMA Energy","j. Conversion Rate ","j.1 Conversion Rate ",0]
[2012,"2011-08-01","Verificada","NIC - MANREF","Nicaragua","PUMA Energy","k. Desulfurization Rate (%)","k.1 Desulfurization Rate (%)",{"$f":"SUM(I678:I682)/I662","v":0}]
[2012,"2011-08-01",null,"PAR - Paraguay","Paraguay","Petropar","a. Crude Distillation","a.1 Atmospheric Crude Distillation",7500]
[2012,"2011-08-01",null,"PAR - Paraguay","Paraguay","Petropar","a. Crude Distillation","a.2 Vacuum Distillation"]
[2012,"2011-08-01",null,"PAR - Paraguay","Paraguay","Petropar","b. Conversion","b.1 Catalytic Cracking"]
[2012,"2011-08-01","Verificada","PAR - Paraguay","Paraguay","Petropar","b. Conversion","b.2 Resid Cat Cracking"]
[2012,"2011-08-01","Verificada","PAR - Paraguay","Paraguay","Petropar","b. Conversion","b.3 Hydrocracking (Mild Conversion)"]
[2012,"2011-08-01","Verificada","PAR - Paraguay","Paraguay","Petropar","b. Conversion","b.4 Coking -- Delayed"]
[2012,"2011-08-01","Verificada","PAR - Paraguay","Paraguay","Petropar","b. Conversion","b.5 Coking -- Fluid"]
[2012,"2011-08-01","Verificada","PAR - Paraguay","Paraguay","Petropar","b. Conversion","b.6 Visbreaking"]
[2012,"2011-08-01","Verificada","PAR - Paraguay","Paraguay","Petropar","c. Upgrading","c.1 H-Oil"]
[2012,"2011-08-01","Verificada","PAR - Paraguay","Paraguay","Petropar","c. Upgrading","c.2 HDH"]
[2012,"2011-08-01","Verificada","PAR - Paraguay","Paraguay","Petropar","c. Upgrading","c.3 Alkylation (Product basis)"]
[2012,"2011-08-01","Verificada","PAR - Paraguay","Paraguay","Petropar","c. Upgrading","c.4 Polymerization"]
[2012,"2011-08-01","Verificada","PAR - Paraguay","Paraguay","Petropar","c. Upgrading","c.5 C5/C6 Isomerization"]
[2012,"2011-08-01","Verificada","PAR - Paraguay","Paraguay","Petropar","c. Upgrading","c.6 Catalytic Reforming -- Low Pressure"]
[2012,"2011-08-01","Verificada","PAR - Paraguay","Paraguay","Petropar","c. Upgrading","c.7 Catalytic Reforming -- Medium Pressure"]
[2012,"2011-08-01","Verificada","PAR - Paraguay","Paraguay","Petropar","c. Upgrading","c.8 Catalytic Reforming -- High Pressure"]
[2012,"2011-08-01","Verificada","PAR - Paraguay","Paraguay","Petropar","d. Hydrotreating","d.1 Gasoline/Naphtha Hydrotreating"]
[2012,"2011-08-01","Verificada","PAR - Paraguay","Paraguay","Petropar","d. Hydrotreating","d.2 Kerosene Hydrotreating"]
[2012,"2011-08-01","Verificada","PAR - Paraguay","Paraguay","Petropar","d. Hydrotreating","d.3 Distillate Hydrotreating"]
[2012,"2011-08-01","Verificada","PAR - Paraguay","Paraguay","Petropar","d. Hydrotreating","d.4 Residual Desulfurization"]
[2012,"2011-08-01","Verificada","PAR - Paraguay","Paraguay","Petropar","d. Hydrotreating","d.5 Gas Oil Desulfurization"]
[2012,"2011-08-01","Verificada","PAR - Paraguay","Paraguay","Petropar","e. Hydrogen (k scf/d)","e.1 Hydrogen Generation"]
[2012,"2011-08-01","Verificada","PAR - Paraguay","Paraguay","Petropar","e. Hydrogen (k scf/d)","e.2 Purification"]
[2012,"2011-08-01","Verificada","PAR - Paraguay","Paraguay","Petropar","f. Other","f.1 Aromatic Solvent Extraction"]
[2012,"2011-08-01","Verificada","PAR - Paraguay","Paraguay","Petropar","f. Other","f.2 Other Aromatic Process"]
[2012,"2011-08-01","Verificada","PAR - Paraguay","Paraguay","Petropar","f. Other","f.3 C4 Isomerization"]
[2012,"2011-08-01","Verificada","PAR - Paraguay","Paraguay","Petropar","f. Other","f.4 Solvent Desaphalting"]
[2012,"2011-08-01","Verificada","PAR - Paraguay","Paraguay","Petropar","f. Other","f.5 Lubes & Waxes"]
[2012,"2011-08-01","Verificada","PAR - Paraguay","Paraguay","Petropar","f. Other","f.6 Asphalt & Bitumen Manufacture"]
[2012,"2011-08-01","Verificada","PAR - Paraguay","Paraguay","Petropar","f. Other","f.7 Sulfur Recovery Unit (tonnes/day)"]
[2012,"2011-08-01","Verificada","PAR - Paraguay","Paraguay","Petropar","g. Fractionation","g.1 Propane/Propylene Splitter"]
[2012,"2011-08-01","Verificada","PAR - Paraguay","Paraguay","Petropar","g. Fractionation","g.2 Deisobutanizer"]
[2012,"2011-08-01","Verificada","PAR - Paraguay","Paraguay","Petropar","g. Fractionation","g.3 Deisopentanizer"]
[2012,"2011-08-01","Verificada","PAR - Paraguay","Paraguay","Petropar","g. Fractionation","g.4 Deisohexanizer"]
[2012,"2011-08-01","Verificada","PAR - Paraguay","Paraguay","Petropar","g. Fractionation","g.5 Alkylate Splitter"]
[2012,"2011-08-01","Verificada","PAR - Paraguay","Paraguay","Petropar","g. Fractionation","g.6 Reformate Splitter"]
[2012,"2011-08-01","Verificada","PAR - Paraguay","Paraguay","Petropar","g. Fractionation","g.7 Cat Cracked Gasoline Splitter"]
[2012,"2011-08-01","Verificada","PAR - Paraguay","Paraguay","Petropar","h. Oxygenates","h.1 MTBE"]
[2012,"2011-08-01","Verificada","PAR - Paraguay","Paraguay","Petropar","h. Oxygenates","h.2 TAME"]
[2012,"2011-08-01","Verificada","PAR - Paraguay","Paraguay","Petropar","i. Tank Storage (bbl)","i.1 Crude Oil",531000]
[2012,"2011-08-01","Verificada","PAR - Paraguay","Paraguay","Petropar","i. Tank Storage (bbl)","i.2 Gasoline",337000]
[2012,"2011-08-01","Verificada","PAR - Paraguay","Paraguay","Petropar","i. Tank Storage (bbl)","i.3 Diesel",1016400]
[2012,"2011-08-01","Verificada","PAR - Paraguay","Paraguay","Petropar","j. Conversion Rate ","j.1 Conversion Rate ",0]
[2012,"2011-08-01","Verificada","PAR - Paraguay","Paraguay","Petropar","k. Desulfurization Rate (%)","k.1 Desulfurization Rate (%)",{"$f":"SUM(I722:I726)/I706","v":0}]
[2012,"2011-08-01","Duda","PER - Talara","Perú","PetroPerú","a. Crude Distillation","a.1 Atmospheric Crude Distillation",62000,90000,24000,"2011-01-01"]
[2012,"2011-08-01","Duda","PER - Talara","Perú","PetroPerú","a. Crude Distillation","a.2 Vacuum Distillation",28200,72000,51300,"2011-01-01"]
[2012,"2011-08-01","Duda","PER - Talara","Perú","PetroPerú","b. Conversion","b.1 Catalytic Cracking",19000,19000,20000,"2011-01-01"]
[2012,"2011-08-01","Verificada","PER - Talara","Perú","PetroPerú","b. Conversion","b.2 Resid Cat Cracking"]
[2012,"2011-08-01","Verificada","PER - Talara","Perú","PetroPerú","b. Conversion","b.3 Hydrocracking (Mild Conversion)",null,29700,211000]
[2012,"2011-08-01","Duda","PER - Talara","Perú","PetroPerú","b. Conversion","b.4 Coking -- Delayed",null,31300,171000,"2011-01-01"]
[2012,"2011-08-01","Verificada","PER - Talara","Perú","PetroPerú","b. Conversion","b.5 Coking -- Fluid"]
[2012,"2011-08-01","Verificada","PER - Talara","Perú","PetroPerú","b. Conversion","b.6 Visbreaking"]
[2012,"2011-08-01","Verificada","PER - Talara","Perú","PetroPerú","c. Upgrading","c.1 H-Oil"]
[2012,"2011-08-01","Verificada","PER - Talara","Perú","PetroPerú","c. Upgrading","c.2 HDH"]
[2012,"2011-08-01","Verificada","PER - Talara","Perú","PetroPerú","c. Upgrading","c.3 Alkylation (Product basis)"]
[2012,"2011-08-01","Verificada","PER - Talara","Perú","PetroPerú","c. Upgrading","c.4 Polymerization"]
[2012,"2011-08-01","Verificada","PER - Talara","Perú","PetroPerú","c. Upgrading","c.5 C5/C6 Isomerization"]
[2012,"2011-08-01","Verificada","PER - Talara","Perú","PetroPerú","c. Upgrading","c.6 Catalytic Reforming -- Low Pressure"]
[2012,"2011-08-01","Duda","PER - Talara","Perú","PetroPerú","c. Upgrading","c.7 Catalytic Reforming -- Medium Pressure",null,9500,41000,"2011-01-01"]
[2012,"2011-08-01","Verificada","PER - Talara","Perú","PetroPerú","c. Upgrading","c.8 Catalytic Reforming -- High Pressure"]
[2012,"2011-08-01","Duda","PER - Talara","Perú","PetroPerú","d. Hydrotreating","d.1 Gasoline/Naphtha Hydrotreating",null,9500,30700,"2011-01-01"]
[2012,"2011-08-01","Verificada","PER - Talara","Perú","PetroPerú","d. Hydrotreating","d.2 Kerosene Hydrotreating"]
[2012,"2011-08-01","Duda","PER - Talara","Perú","PetroPerú","d. Hydrotreating","d.3 Distillate Hydrotreating",null,30000,51000,"2011-01-01"]
[2012,"2011-08-01","Verificada","PER - Talara","Perú","PetroPerú","d. Hydrotreating","d.4 Residual Desulfurization"]
[2012,"2011-08-01","Verificada","PER - Talara","Perú","PetroPerú","d. Hydrotreating","d.5 Gas Oil Desulfurization"]
[2012,"2011-08-01","Duda","PER - Talara","Perú","PetroPerú","e. Hydrogen (k scf/d)","e.1 Hydrogen Generation",null,48000,46200,"2011-01-01"]
[2012,"2011-08-01","Verificada","PER - Talara","Perú","PetroPerú","e. Hydrogen (k scf/d)","e.2 Purification"]
[2012,"2011-08-01","Verificada","PER - Talara","Perú","PetroPerú","f. Other","f.1 Aromatic Solvent Extraction"]
[2012,"2011-08-01","Verificada","PER - Talara","Perú","PetroPerú","f. Other","f.2 Other Aromatic Process"]
[2012,"2011-08-01","Verificada","PER - Talara","Perú","PetroPerú","f. Other","f.3 C4 Isomerization"]
[2012,"2011-08-01","Verificada","PER - Talara","Perú","PetroPerú","f. Other","f.4 Solvent Desaphalting"]
[2012,"2011-08-01","Verificada","PER - Talara","Perú","PetroPerú","f. Other","f.5 Lubes & Waxes"]
[2012,"2011-08-01","Verificada","PER - Talara","Perú","PetroPerú","f. Other","f.6 Asphalt & Bitumen Manufacture"]
[2012,"2011-08-01","Duda","PER - Talara","Perú","PetroPerú","f. Other","f.7 Sulfur Recovery Unit (tonnes/day)",null,187,118200,"2011-01-01"]
[2012,"2011-08-01","Verificada","PER - Talara","Perú","PetroPerú","g. Fractionation","g.1 Propane/Propylene Splitter"]
[2012,"2011-08-01","Verificada","PER - Talara","Perú","PetroPerú","g. Fractionation","g.2 Deisobutanizer"]
[2012,"2011-08-01","Verificada","PER - Talara","Perú","PetroPerú","g. Fractionation","g.3 Deisopentanizer"]
[2012,"2011-08-01","Verificada","PER - Talara","Perú","PetroPerú","g. Fractionation","g.4 Deisohexanizer"]
[2012,"2011-08-01","Verificada","PER - Talara","Perú","PetroPerú","g. Fractionation","g.5 Alkylate Splitter"]
[2012,"2011-08-01","Verificada","PER - Talara","Perú","PetroPerú","g. Fractionation","g.6 Reformate Splitter"]
[2012,"2011-08-01","Verificada","PER - Talara","Perú","PetroPerú","g. Fractionation","g.7 Cat Cracked Gasoline Splitter"]
[2012,"2011-08-01","Verificada","PER - Talara","Perú","PetroPerú","h. Oxygenates","h.1 MTBE"]
[2012,"2011-08-01","Verificada","PER - Talara","Perú","PetroPerú","h. Oxygenates","h.2 TAME"]
[2012,"2011-08-01","Duda","PER - Talara","Perú","PetroPerú","i. Tank Storage (bbl)","i.1 Crude Oil",637000,1162000,22471.119999999999,"2011-01-01"]
[2012,"2011-08-01","Duda","PER - Talara","Perú","PetroPerú","i. Tank Storage (bbl)","i.2 Gasoline",413160,489000,7056.7,"2011-01-01"]
[2012,"2011-08-01","Duda","PER - Talara","Perú","PetroPerú","i. Tank Storage (bbl)","i.3 Diesel",79460,326000,7056.7,"2011-01-01"]
[2012,"2011-08-01","Verificada","PER - Talara","Perú","PetroPerú","j. Conversion Rate ","j.1 Conversion Rate ",0.30649999999999999]
[2012,"2011-08-01","Verificada","PER - Talara","Perú","PetroPerú","k. Desulfurization Rate (%)","k.1 Desulfurization Rate (%)",{"$f":"SUM(I766:I770)/I750","v":0}]
[2012,"2011-08-01","Verificada","PER - Conchan","Perú","PetroPerú","a. Crude Distillation","a.1 Atmospheric Crude Distillation",13500,15500,4.5,"04/2012"]
[2012,"2011-08-01","Verificada","PER - Conchan","Perú","PetroPerú","a. Crude Distillation","a.2 Vacuum Distillation",9000]
[2012,"2011-08-01","Verificada","PER - Conchan","Perú","PetroPerú","b. Conversion","b.1 Catalytic Cracking"]
[2012,"2011-08-01","Verificada","PER - Conchan","Perú","PetroPerú","b. Conversion","b.2 Resid Cat Cracking"]
[2012,"2011-08-01","Verificada","PER - Conchan","Perú","PetroPerú","b. Conversion","b.3 Hydrocracking (Mild Conversion)"]
[2012,"2011-08-01","Verificada","PER - Conchan","Perú","PetroPerú","b. Conversion","b.4 Coking -- Delayed"]
[2012,"2011-08-01","Verificada","PER - Conchan","Perú","PetroPerú","b. Conversion","b.5 Coking -- Fluid"]
[2012,"2011-08-01","Verificada","PER - Conchan","Perú","PetroPerú","b. Conversion","b.6 Visbreaking"]
[2012,"2011-08-01","Verificada","PER - Conchan","Perú","PetroPerú","c. Upgrading","c.1 H-Oil"]
[2012,"2011-08-01","Verificada","PER - Conchan","Perú","PetroPerú","c. Upgrading","c.2 HDH"]
[2012,"2011-08-01","Verificada","PER - Conchan","Perú","PetroPerú","c. Upgrading","c.3 Alkylation (Product basis)"]
[2012,"2011-08-01","Verificada","PER - Conchan","Perú","PetroPerú","c. Upgrading","c.4 Polymerization"]
[2012,"2011-08-01","Verificada","PER - Conchan","Perú","PetroPerú","c. Upgrading","c.5 C5/C6 Isomerization"]
[2012,"2011-08-01","Verificada","PER - Conchan","Perú","PetroPerú","c. Upgrading","c.6 Catalytic Reforming -- Low Pressure"]
[2012,"2011-08-01","Verificada","PER - Conchan","Perú","PetroPerú","c. Upgrading","c.7 Catalytic Reforming -- Medium Pressure"]
[2012,"2011-08-01","Verificada","PER - Conchan","Perú","PetroPerú","c. Upgrading","c.8 Catalytic Reforming -- High Pressure"]
[2012,"2011-08-01","Verificada","PER - Conchan","Perú","PetroPerú","d. Hydrotreating","d.1 Gasoline/Naphtha Hydrotreating"]
[2012,"2011-08-01","Verificada","PER - Conchan","Perú","PetroPerú","d. Hydrotreating","d.2 Kerosene Hydrotreating"]
[2012,"2011-08-01","Verificada","PER - Conchan","Perú","PetroPerú","d. Hydrotreating","d.3 Distillate Hydrotreating"]
[2012,"2011-08-01","Verificada","PER - Conchan","Perú","PetroPerú","d. Hydrotreating","d.4 Residual Desulfurization"]
[2012,"2011-08-01","Verificada","PER - Conchan","Perú","PetroPerú","d. Hydrotreating","d.5 Gas Oil Desulfurization"]
[2012,"2011-08-01","Verificada","PER - Conchan","Perú","PetroPerú","e. Hydrogen (k scf/d)","e.1 Hydrogen Generation"]
[2012,"2011-08-01","Verificada","PER - Conchan","Perú","PetroPerú","e. Hydrogen (k scf/d)","e.2 Purification"]
[2012,"2011-08-01","Verificada","PER - Conchan","Perú","PetroPerú","f. Other","f.1 Aromatic Solvent Extraction"]
[2012,"2011-08-01","Verificada","PER - Conchan","Perú","PetroPerú","f. Other","f.2 Other Aromatic Process"]
[2012,"2011-08-01","Verificada","PER - Conchan","Perú","PetroPerú","f. Other","f.3 C4 Isomerization"]
[2012,"2011-08-01","Verificada","PER - Conchan","Perú","PetroPerú","f. Other","f.4 Solvent Desaphalting"]
[2012,"2011-08-01","Verificada","PER - Conchan","Perú","PetroPerú","f. Other","f.5 Lubes & Waxes"]
[2012,"2011-08-01","Verificada","PER - Conchan","Perú","PetroPerú","f. Other","f.6 Asphalt & Bitumen Manufacture"]
[2012,"2011-08-01","Verificada","PER - Conchan","Perú","PetroPerú","f. Other","f.7 Sulfur Recovery Unit (tonnes/day)"]
[2012,"2011-08-01","Verificada","PER - Conchan","Perú","PetroPerú","g. Fractionation","g.1 Propane/Propylene Splitter"]
[2012,"2011-08-01","Verificada","PER - Conchan","Perú","PetroPerú","g. Fractionation","g.2 Deisobutanizer"]
[2012,"2011-08-01","Verificada","PER - Conchan","Perú","PetroPerú","g. Fractionation","g.3 Deisopentanizer"]
[2012,"2011-08-01","Verificada","PER - Conchan","Perú","PetroPerú","g. Fractionation","g.4 Deisohexanizer"]
[2012,"2011-08-01","Verificada","PER - Conchan","Perú","PetroPerú","g. Fractionation","g.5 Alkylate Splitter"]
[2012,"2011-08-01","Verificada","PER - Conchan","Perú","PetroPerú","g. Fractionation","g.6 Reformate Splitter"]
[2012,"2011-08-01","Verificada","PER - Conchan","Perú","PetroPerú","g. Fractionation","g.7 Cat Cracked Gasoline Splitter"]
[2012,"2011-08-01","Verificada","PER - Conchan","Perú","PetroPerú","h. Oxygenates","h.1 MTBE"]
[2012,"2011-08-01","Verificada","PER - Conchan","Perú","PetroPerú","h. Oxygenates","h.2 TAME"]
[2012,"2011-08-01","Duda","PER - Conchan","Perú","PetroPerú","i. Tank Storage (bbl)","i.1 Crude Oil",343000,320000,8.6,"12/2012"]
[2012,"2011-08-01","Duda","PER - Conchan","Perú","PetroPerú","i. Tank Storage (bbl)","i.2 Gasoline",265500,120000,3,"12/2012"]
[2012,"2011-08-01","Duda","PER - Conchan","Perú","PetroPerú","i. Tank Storage (bbl)","i.3 Diesel",841200,360000,6.9,"12/2012"]
[2012,"2011-08-01","Verificada","PER - Conchan","Perú","PetroPerú","j. Conversion Rate ","j.1 Conversion Rate ",0]
[2012,"2011-08-01","Verificada","PER - Conchan","Perú","PetroPerú","k. Desulfurization Rate (%)","k.1 Desulfurization Rate (%)",{"$f":"SUM(I810:I814)/I794","v":0}]
[2012,"2011-08-01","Verificada","PER - Iquitos","Perú","PetroPerú","a. Crude Distillation","a.1 Atmospheric Crude Distillation",10500]
[2012,"2011-08-01","Verificada","PER - Iquitos","Perú","PetroPerú","a. Crude Distillation","a.2 Vacuum Distillation"]
[2012,"2011-08-01","Verificada","PER - Iquitos","Perú","PetroPerú","b. Conversion","b.1 Catalytic Cracking"]
[2012,"2011-08-01","Verificada","PER - Iquitos","Perú","PetroPerú","b. Conversion","b.2 Resid Cat Cracking"]
[2012,"2011-08-01","Verificada","PER - Iquitos","Perú","PetroPerú","b. Conversion","b.3 Hydrocracking (Mild Conversion)"]
[2012,"2011-08-01","Verificada","PER - Iquitos","Perú","PetroPerú","b. Conversion","b.4 Coking -- Delayed"]
[2012,"2011-08-01","Verificada","PER - Iquitos","Perú","PetroPerú","b. Conversion","b.5 Coking -- Fluid"]
[2012,"2011-08-01","Verificada","PER - Iquitos","Perú","PetroPerú","b. Conversion","b.6 Visbreaking"]
[2012,"2011-08-01","Verificada","PER - Iquitos","Perú","PetroPerú","c. Upgrading","c.1 H-Oil"]
[2012,"2011-08-01","Verificada","PER - Iquitos","Perú","PetroPerú","c. Upgrading","c.2 HDH"]
[2012,"2011-08-01","Verificada","PER - Iquitos","Perú","PetroPerú","c. Upgrading","c.3 Alkylation (Product basis)"]
[2012,"2011-08-01","Verificada","PER - Iquitos","Perú","PetroPerú","c. Upgrading","c.4 Polymerization"]
[2012,"2011-08-01","Verificada","PER - Iquitos","Perú","PetroPerú","c. Upgrading","c.5 C5/C6 Isomerization"]
[2012,"2011-08-01","Verificada","PER - Iquitos","Perú","PetroPerú","c. Upgrading","c.6 Catalytic Reforming -- Low Pressure"]
[2012,"2011-08-01","Verificada","PER - Iquitos","Perú","PetroPerú","c. Upgrading","c.7 Catalytic Reforming -- Medium Pressure"]
[2012,"2011-08-01","Verificada","PER - Iquitos","Perú","PetroPerú","c. Upgrading","c.8 Catalytic Reforming -- High Pressure"]
[2012,"2011-08-01","Verificada","PER - Iquitos","Perú","PetroPerú","d. Hydrotreating","d.1 Gasoline/Naphtha Hydrotreating"]
[2012,"2011-08-01","Verificada","PER - Iquitos","Perú","PetroPerú","d. Hydrotreating","d.2 Kerosene Hydrotreating"]
[2012,"2011-08-01","Verificada","PER - Iquitos","Perú","PetroPerú","d. Hydrotreating","d.3 Distillate Hydrotreating"]
[2012,"2011-08-01","Verificada","PER - Iquitos","Perú","PetroPerú","d. Hydrotreating","d.4 Residual Desulfurization"]
[2012,"2011-08-01","Verificada","PER - Iquitos","Perú","PetroPerú","d. Hydrotreating","d.5 Gas Oil Desulfurization"]
[2012,"2011-08-01","Verificada","PER - Iquitos","Perú","PetroPerú","e. Hydrogen (k scf/d)","e.1 Hydrogen Generation"]
[2012,"2011-08-01","Verificada","PER - Iquitos","Perú","PetroPerú","e. Hydrogen (k scf/d)","e.2 Purification"]
[2012,"2011-08-01","Verificada","PER - Iquitos","Perú","PetroPerú","f. Other","f.1 Aromatic Solvent Extraction"]
[2012,"2011-08-01","Verificada","PER - Iquitos","Perú","PetroPerú","f. Other","f.2 Other Aromatic Process"]
[2012,"2011-08-01","Verificada","PER - Iquitos","Perú","PetroPerú","f. Other","f.3 C4 Isomerization"]
[2012,"2011-08-01","Verificada","PER - Iquitos","Perú","PetroPerú","f. Other","f.4 Solvent Desaphalting"]
[2012,"2011-08-01","Verificada","PER - Iquitos","Perú","PetroPerú","f. Other","f.5 Lubes & Waxes"]
[2012,"2011-08-01","Verificada","PER - Iquitos","Perú","PetroPerú","f. Other","f.6 Asphalt & Bitumen Manufacture"]
[2012,"2011-08-01","Verificada","PER - Iquitos","Perú","PetroPerú","f. Other","f.7 Sulfur Recovery Unit (tonnes/day)"]
[2012,"2011-08-01","Verificada","PER - Iquitos","Perú","PetroPerú","g. Fractionation","g.1 Propane/Propylene Splitter"]
[2012,"2011-08-01","Verificada","PER - Iquitos","Perú","PetroPerú","g. Fractionation","g.2 Deisobutanizer"]
[2012,"2011-08-01","Verificada","PER - Iquitos","Perú","PetroPerú","g. Fractionation","g.3 Deisopentanizer"]
[2012,"2011-08-01","Verificada","PER - Iquitos","Perú","PetroPerú","g. Fractionation","g.4 Deisohexanizer"]
[2012,"2011-08-01","Verificada","PER - Iquitos","Perú","PetroPerú","g. Fractionation","g.5 Alkylate Splitter"]
[2012,"2011-08-01","Verificada","PER - Iquitos","Perú","PetroPerú","g. Fractionation","g.6 Reformate Splitter"]
[2012,"2011-08-01","Verificada","PER - Iquitos","Perú","PetroPerú","g. Fractionation","g.7 Cat Cracked Gasoline Splitter"]
[2012,"2011-08-01","Verificada","PER - Iquitos","Perú","PetroPerú","h. Oxygenates","h.1 MTBE"]
[2012,"2011-08-01","Verificada","PER - Iquitos","Perú","PetroPerú","h. Oxygenates","h.2 TAME"]
[2012,"2011-08-01","Duda","PER - Iquitos","Perú","PetroPerú","i. Tank Storage (bbl)","i.1 Crude Oil",216300]
[2012,"2011-08-01","Duda","PER - Iquitos","Perú","PetroPerú","i. Tank Storage (bbl)","i.2 Gasoline",63800,80000,1978.28447339848,"12/2008"]
[2012,"2011-08-01","Duda","PER - Iquitos","Perú","PetroPerú","i. Tank Storage (bbl)","i.3 Diesel",58400,40000,989.14223669924002,"12/2008"]
[2012,"2011-08-01","Verificada","PER - Iquitos","Perú","PetroPerú","j. Conversion Rate ","j.1 Conversion Rate ",0]
[2012,"2011-08-01","Verificada","PER - Iquitos","Perú","PetroPerú","k. Desulfurization Rate (%)","k.1 Desulfurization Rate (%)",{"$f":"SUM(I854:I858)/I838","v":0}]
[2012,"2011-08-01","Verificada","PER - El Milagro","Perú","PetroPerú","a. Crude Distillation","a.1 Atmospheric Crude Distillation",1700]
[2012,"2011-08-01","Verificada","PER - El Milagro","Perú","PetroPerú","a. Crude Distillation","a.2 Vacuum Distillation"]
[2012,"2011-08-01","Verificada","PER - El Milagro","Perú","PetroPerú","b. Conversion","b.1 Catalytic Cracking"]
[2012,"2011-08-01","Verificada","PER - El Milagro","Perú","PetroPerú","b. Conversion","b.2 Resid Cat Cracking"]
[2012,"2011-08-01","Verificada","PER - El Milagro","Perú","PetroPerú","b. Conversion","b.3 Hydrocracking (Mild Conversion)"]
[2012,"2011-08-01","Verificada","PER - El Milagro","Perú","PetroPerú","b. Conversion","b.4 Coking -- Delayed"]
[2012,"2011-08-01","Verificada","PER - El Milagro","Perú","PetroPerú","b. Conversion","b.5 Coking -- Fluid"]
[2012,"2011-08-01","Verificada","PER - El Milagro","Perú","PetroPerú","b. Conversion","b.6 Visbreaking"]
[2012,"2011-08-01","Verificada","PER - El Milagro","Perú","PetroPerú","c. Upgrading","c.1 H-Oil"]
[2012,"2011-08-01","Verificada","PER - El Milagro","Perú","PetroPerú","c. Upgrading","c.2 HDH"]
[2012,"2011-08-01","Verificada","PER - El Milagro","Perú","PetroPerú","c. Upgrading","c.3 Alkylation (Product basis)"]
[2012,"2011-08-01","Verificada","PER - El Milagro","Perú","PetroPerú","c. Upgrading","c.4 Polymerization"]
[2012,"2011-08-01","Verificada","PER - El Milagro","Perú","PetroPerú","c. Upgrading","c.5 C5/C6 Isomerization"]
[2012,"2011-08-01","Verificada","PER - El Milagro","Perú","PetroPerú","c. Upgrading","c.6 Catalytic Reforming -- Low Pressure"]
[2012,"2011-08-01","Verificada","PER - El Milagro","Perú","PetroPerú","c. Upgrading","c.7 Catalytic Reforming -- Medium Pressure"]
[2012,"2011-08-01","Verificada","PER - El Milagro","Perú","PetroPerú","c. Upgrading","c.8 Catalytic Reforming -- High Pressure"]
[2012,"2011-08-01","Verificada","PER - El Milagro","Perú","PetroPerú","d. Hydrotreating","d.1 Gasoline/Naphtha Hydrotreating"]
[2012,"2011-08-01","Verificada","PER - El Milagro","Perú","PetroPerú","d. Hydrotreating","d.2 Kerosene Hydrotreating"]
[2012,"2011-08-01","Verificada","PER - El Milagro","Perú","PetroPerú","d. Hydrotreating","d.3 Distillate Hydrotreating"]
[2012,"2011-08-01","Verificada","PER - El Milagro","Perú","PetroPerú","d. Hydrotreating","d.4 Residual Desulfurization"]
[2012,"2011-08-01","Verificada","PER - El Milagro","Perú","PetroPerú","d. Hydrotreating","d.5 Gas Oil Desulfurization"]
[2012,"2011-08-01","Verificada","PER - El Milagro","Perú","PetroPerú","e. Hydrogen (k scf/d)","e.1 Hydrogen Generation"]
[2012,"2011-08-01","Verificada","PER - El Milagro","Perú","PetroPerú","e. Hydrogen (k scf/d)","e.2 Purification"]
[2012,"2011-08-01","Verificada","PER - El Milagro","Perú","PetroPerú","f. Other","f.1 Aromatic Solvent Extraction"]
[2012,"2011-08-01","Verificada","PER - El Milagro","Perú","PetroPerú","f. Other","f.2 Other Aromatic Process"]
[2012,"2011-08-01","Verificada","PER - El Milagro","Perú","PetroPerú","f. Other","f.3 C4 Isomerization"]
[2012,"2011-08-01","Verificada","PER - El Milagro","Perú","PetroPerú","f. Other","f.4 Solvent Desaphalting"]
[2012,"2011-08-01","Verificada","PER - El Milagro","Perú","PetroPerú","f. Other","f.5 Lubes & Waxes"]
[2012,"2011-08-01","Verificada","PER - El Milagro","Perú","PetroPerú","f. Other","f.6 Asphalt & Bitumen Manufacture"]
[2012,"2011-08-01","Verificada","PER - El Milagro","Perú","PetroPerú","f. Other","f.7 Sulfur Recovery Unit (tonnes/day)"]
[2012,"2011-08-01","Verificada","PER - El Milagro","Perú","PetroPerú","g. Fractionation","g.1 Propane/Propylene Splitter"]
[2012,"2011-08-01","Verificada","PER - El Milagro","Perú","PetroPerú","g. Fractionation","g.2 Deisobutanizer"]
[2012,"2011-08-01","Verificada","PER - El Milagro","Perú","PetroPerú","g. Fractionation","g.3 Deisopentanizer"]
[2012,"2011-08-01","Verificada","PER - El Milagro","Perú","PetroPerú","g. Fractionation","g.4 Deisohexanizer"]
[2012,"2011-08-01","Verificada","PER - El Milagro","Perú","PetroPerú","g. Fractionation","g.5 Alkylate Splitter"]
[2012,"2011-08-01","Verificada","PER - El Milagro","Perú","PetroPerú","g. Fractionation","g.6 Reformate Splitter"]
[2012,"2011-08-01","Verificada","PER - El Milagro","Perú","PetroPerú","g. Fractionation","g.7 Cat Cracked Gasoline Splitter"]
[2012,"2011-08-01","Verificada","PER - El Milagro","Perú","PetroPerú","h. Oxygenates","h.1 MTBE"]
[2012,"2011-08-01","Verificada","PER - El Milagro","Perú","PetroPerú","h. Oxygenates","h.2 TAME"]
[2012,"2011-08-01","Verificada","PER - El Milagro","Perú","PetroPerú","i. Tank Storage (bbl)","i.1 Crude Oil",24500]
[2012,"2011-08-01","Verificada","PER - El Milagro","Perú","PetroPerú","i. Tank Storage (bbl)","i.2 Gasoline",7800]
[2012,"2011-08-01","Verificada","PER - El Milagro","Perú","PetroPerú","i. Tank Storage (bbl)","i.3 Diesel",7000]
[2012,"2011-08-01","Verificada","PER - El Milagro","Perú","PetroPerú","j. Conversion Rate ","j.1 Conversion Rate ",0]
[2012,"2011-08-01","Verificada","PER - El Milagro","Perú","PetroPerú","k. Desulfurization Rate (%)","k.1 Desulfurization Rate (%)",{"$f":"SUM(I898:I902)/I882","v":0}]
[2012,"2011-08-01","Verificada","PER - La Pampilla","Perú","Repsol","a. Crude Distillation","a.1 Atmospheric Crude Distillation",107000]
[2012,"2011-08-01","Verificada","PER - La Pampilla","Perú","Repsol","a. Crude Distillation","a.2 Vacuum Distillation",60000]
[2012,"2011-08-01","Verificada","PER - La Pampilla","Perú","Repsol","b. Conversion","b.1 Catalytic Cracking",13500]
[2012,"2011-08-01","Verificada","PER - La Pampilla","Perú","Repsol","b. Conversion","b.2 Resid Cat Cracking"]
[2012,"2011-08-01","Verificada","PER - La Pampilla","Perú","Repsol","b. Conversion","b.3 Hydrocracking (Mild Conversion)"]
[2012,"2011-08-01","Verificada","PER - La Pampilla","Perú","Repsol","b. Conversion","b.4 Coking -- Delayed"]
[2012,"2011-08-01","Verificada","PER - La Pampilla","Perú","Repsol","b. Conversion","b.5 Coking -- Fluid"]
[2012,"2011-08-01","Verificada","PER - La Pampilla","Perú","Repsol","b. Conversion","b.6 Visbreaking",27000]
[2012,"2011-08-01","Verificada","PER - La Pampilla","Perú","Repsol","c. Upgrading","c.1 H-Oil"]
[2012,"2011-08-01","Verificada","PER - La Pampilla","Perú","Repsol","c. Upgrading","c.2 HDH"]
[2012,"2011-08-01","Verificada","PER - La Pampilla","Perú","Repsol","c. Upgrading","c.3 Alkylation (Product basis)"]
[2012,"2011-08-01","Verificada","PER - La Pampilla","Perú","Repsol","c. Upgrading","c.4 Polymerization"]
[2012,"2011-08-01","Duda","PER - La Pampilla","Perú","Repsol","c. Upgrading","c.5 C5/C6 Isomerization",null,2500,18.2,"jan/13"]
[2012,"2011-08-01","Verificada","PER - La Pampilla","Perú","Repsol","c. Upgrading","c.6 Catalytic Reforming -- Low Pressure"]
[2012,"2011-08-01","Verificada","PER - La Pampilla","Perú","Repsol","c. Upgrading","c.7 Catalytic Reforming -- Medium Pressure"]
[2012,"2011-08-01","Duda","PER - La Pampilla","Perú","Repsol","c. Upgrading","c.8 Catalytic Reforming -- High Pressure",1700,7600,43.1,"jan/13"]
[2012,"2011-08-01","Duda","PER - La Pampilla","Perú","Repsol","d. Hydrotreating","d.1 Gasoline/Naphtha Hydrotreating",2700,11500,55.9,"jan/13"]
[2012,"2011-08-01","Verificada","PER - La Pampilla","Perú","Repsol","d. Hydrotreating","d.2 Kerosene Hydrotreating"]
[2012,"2011-08-01","Duda","PER - La Pampilla","Perú","Repsol","d. Hydrotreating","d.3 Distillate Hydrotreating",null,36500,112.9,"jan/12"]
[2012,"2011-08-01","Verificada","PER - La Pampilla","Perú","Repsol","d. Hydrotreating","d.4 Residual Desulfurization"]
[2012,"2011-08-01","Verificada","PER - La Pampilla","Perú","Repsol","d. Hydrotreating","d.5 Gas Oil Desulfurization"]
[2012,"2011-08-01","Duda","PER - La Pampilla","Perú","Repsol","e. Hydrogen (k scf/d)","e.1 Hydrogen Generation",null,50,23.4,"jan/12"]
[2012,"2011-08-01","Verificada","PER - La Pampilla","Perú","Repsol","e. Hydrogen (k scf/d)","e.2 Purification"]
[2012,"2011-08-01","Verificada","PER - La Pampilla","Perú","Repsol","f. Other","f.1 Aromatic Solvent Extraction"]
[2012,"2011-08-01","Verificada","PER - La Pampilla","Perú","Repsol","f. Other","f.2 Other Aromatic Process"]
[2012,"2011-08-01","Verificada","PER - La Pampilla","Perú","Repsol","f. Other","f.3 C4 Isomerization"]
[2012,"2011-08-01","Verificada","PER - La Pampilla","Perú","Repsol","f. Other","f.4 Solvent Desaphalting"]
[2012,"2011-08-01","Verificada","PER - La Pampilla","Perú","Repsol","f. Other","f.5 Lubes & Waxes"]
[2012,"2011-08-01","Verificada","PER - La Pampilla","Perú","Repsol","f. Other","f.6 Asphalt & Bitumen Manufacture"]
[2012,"2011-08-01","Duda","PER - La Pampilla","Perú","Repsol","f. Other","f.7 Sulfur Recovery Unit (tonnes/day)",null,72,22.9,"jan/12"]
[2012,"2011-08-01","Verificada","PER - La Pampilla","Perú","Repsol","g. Fractionation","g.1 Propane/Propylene Splitter"]
[2012,"2011-08-01","Verificada","PER - La Pampilla","Perú","Repsol","g. Fractionation","g.2 Deisobutanizer"]
[2012,"2011-08-01","Verificada","PER - La Pampilla","Perú","Repsol","g. Fractionation","g.3 Deisopentanizer"]
[2012,"2011-08-01","Verificada","PER - La Pampilla","Perú","Repsol","g. Fractionation","g.4 Deisohexanizer"]
[2012,"2011-08-01","Verificada","PER - La Pampilla","Perú","Repsol","g. Fractionation","g.5 Alkylate Splitter"]
[2012,"2011-08-01","Duda","PER - La Pampilla","Perú","Repsol","g. Fractionation","g.6 Reformate Splitter",null,7600,null,"jan/13"]
[2012,"2011-08-01","Duda","PER - La Pampilla","Perú","Repsol","g. Fractionation","g.7 Cat Cracked Gasoline Splitter",null,5760,29.200000000000003,"jan/13"]
[2012,"2011-08-01","Verificada","PER - La Pampilla","Perú","Repsol","h. Oxygenates","h.1 MTBE"]
[2012,"2011-08-01","Verificada","PER - La Pampilla","Perú","Repsol","h. Oxygenates","h.2 TAME"]
[2012,"2011-08-01","Duda","PER - La Pampilla","Perú","Repsol","i. Tank Storage (bbl)","i.1 Crude Oil",2807000,2987000,null,"jan/11"]
[2012,"2011-08-01","Verificada","PER - La Pampilla","Perú","Repsol","i. Tank Storage (bbl)","i.2 Gasoline",470400]
[2012,"2011-08-01","Verificada","PER - La Pampilla","Perú","Repsol","i. Tank Storage (bbl)","i.3 Diesel",956500]
[2012,"2011-08-01","Verificada","PER - La Pampilla","Perú","Repsol","j. Conversion Rate ","j.1 Conversion Rate ",0.2422]
[2012,"2011-08-01","Verificada","PER - La Pampilla","Perú","Repsol","k. Desulfurization Rate (%)","k.1 Desulfurization Rate (%)",{"$f":"SUM(I942:I946)/I926","v":2.5233644859813085E-2},44.859813084112147]
[2012,"2011-06-01","Verificada","RDO - Haina","República Dominicana","Refidomsa","a. Crude Distillation","a.1 Atmospheric Crude Distillation",33861]
[2012,"2011-06-01","Verificada","RDO - Haina","República Dominicana","Refidomsa","a. Crude Distillation","a.2 Vacuum Distillation"]
[2012,"2011-06-01","Verificada","RDO - Haina","República Dominicana","Refidomsa","b. Conversion","b.1 Catalytic Cracking"]
[2012,"2011-06-01","Verificada","RDO - Haina","República Dominicana","Refidomsa","b. Conversion","b.2 Resid Cat Cracking"]
[2012,"2011-06-01","Verificada","RDO - Haina","República Dominicana","Refidomsa","b. Conversion","b.3 Hydrocracking (Mild Conversion)"]
[2012,"2011-06-01","Verificada","RDO - Haina","República Dominicana","Refidomsa","b. Conversion","b.4 Coking -- Delayed"]
[2012,"2011-06-01","Verificada","RDO - Haina","República Dominicana","Refidomsa","b. Conversion","b.5 Coking -- Fluid"]
[2012,"2011-06-01","Verificada","RDO - Haina","República Dominicana","Refidomsa","b. Conversion","b.6 Visbreaking"]
[2012,"2011-06-01","Verificada","RDO - Haina","República Dominicana","Refidomsa","c. Upgrading","c.1 H-Oil"]
[2012,"2011-06-01","Verificada","RDO - Haina","República Dominicana","Refidomsa","c. Upgrading","c.2 HDH"]
[2012,"2011-06-01","Verificada","RDO - Haina","República Dominicana","Refidomsa","c. Upgrading","c.3 Alkylation (Product basis)"]
[2012,"2011-06-01","Verificada","RDO - Haina","República Dominicana","Refidomsa","c. Upgrading","c.4 Polymerization"]
[2012,"2011-06-01","Verificada","RDO - Haina","República Dominicana","Refidomsa","c. Upgrading","c.5 C5/C6 Isomerization"]
[2012,"2011-06-01","Verificada","RDO - Haina","República Dominicana","Refidomsa","c. Upgrading","c.6 Catalytic Reforming -- Low Pressure"]
[2012,"2011-06-01","Verificada","RDO - Haina","República Dominicana","Refidomsa","c. Upgrading","c.7 Catalytic Reforming -- Medium Pressure"]
[2012,"2011-06-01","Verificada","RDO - Haina","República Dominicana","Refidomsa","c. Upgrading","c.8 Catalytic Reforming -- High Pressure",6239]
[2012,"2011-06-01","Verificada","RDO - Haina","República Dominicana","Refidomsa","d. Hydrotreating","d.1 Gasoline/Naphtha Hydrotreating"]
[2012,"2011-06-01","Verificada","RDO - Haina","República Dominicana","Refidomsa","d. Hydrotreating","d.2 Kerosene Hydrotreating",14665]
[2012,"2011-06-01","Verificada","RDO - Haina","República Dominicana","Refidomsa","d. Hydrotreating","d.3 Distillate Hydrotreating"]
[2012,"2011-06-01","Verificada","RDO - Haina","República Dominicana","Refidomsa","d. Hydrotreating","d.4 Residual Desulfurization"]
[2012,"2011-06-01","Verificada","RDO - Haina","República Dominicana","Refidomsa","d. Hydrotreating","d.5 Gas Oil Desulfurization"]
[2012,"2011-06-01","Verificada","RDO - Haina","República Dominicana","Refidomsa","e. Hydrogen (k scf/d)","e.1 Hydrogen Generation"]
[2012,"2011-06-01","Verificada","RDO - Haina","República Dominicana","Refidomsa","e. Hydrogen (k scf/d)","e.2 Purification",3050]
[2012,"2011-06-01","Verificada","RDO - Haina","República Dominicana","Refidomsa","f. Other","f.1 Aromatic Solvent Extraction"]
[2012,"2011-06-01","Verificada","RDO - Haina","República Dominicana","Refidomsa","f. Other","f.2 Other Aromatic Process"]
[2012,"2011-06-01","Verificada","RDO - Haina","República Dominicana","Refidomsa","f. Other","f.3 C4 Isomerization"]
[2012,"2011-06-01","Verificada","RDO - Haina","República Dominicana","Refidomsa","f. Other","f.4 Solvent Desaphalting"]
[2012,"2011-06-01","Verificada","RDO - Haina","República Dominicana","Refidomsa","f. Other","f.5 Lubes & Waxes"]
[2012,"2011-06-01","Verificada","RDO - Haina","República Dominicana","Refidomsa","f. Other","f.6 Asphalt & Bitumen Manufacture"]
[2012,"2011-06-01","Verificada","RDO - Haina","República Dominicana","Refidomsa","f. Other","f.7 Sulfur Recovery Unit (tonnes/day)"]
[2012,"2011-06-01","Verificada","RDO - Haina","República Dominicana","Refidomsa","g. Fractionation","g.1 Propane/Propylene Splitter"]
[2012,"2011-06-01","Verificada","RDO - Haina","República Dominicana","Refidomsa","g. Fractionation","g.2 Deisobutanizer"]
[2012,"2011-06-01","Verificada","RDO - Haina","República Dominicana","Refidomsa","g. Fractionation","g.3 Deisopentanizer"]
[2012,"2011-06-01","Verificada","RDO - Haina","República Dominicana","Refidomsa","g. Fractionation","g.4 Deisohexanizer"]
[2012,"2011-06-01","Verificada","RDO - Haina","República Dominicana","Refidomsa","g. Fractionation","g.5 Alkylate Splitter"]
[2012,"2011-06-01","Verificada","RDO - Haina","República Dominicana","Refidomsa","g. Fractionation","g.6 Reformate Splitter"]
[2012,"2011-06-01","Verificada","RDO - Haina","República Dominicana","Refidomsa","g. Fractionation","g.7 Cat Cracked Gasoline Splitter"]
[2012,"2011-06-01","Verificada","RDO - Haina","República Dominicana","Refidomsa","h. Oxygenates","h.1 MTBE"]
[2012,"2011-06-01","Verificada","RDO - Haina","República Dominicana","Refidomsa","h. Oxygenates","h.2 TAME"]
[2012,"2011-06-01","Verificada","RDO - Haina","República Dominicana","Refidomsa","i. Tank Storage (bbl)","i.1 Crude Oil",781000]
[2012,"2011-06-01","Verificada","RDO - Haina","República Dominicana","Refidomsa","i. Tank Storage (bbl)","i.2 Gasoline",369000]
[2012,"2011-06-01","Verificada","RDO - Haina","República Dominicana","Refidomsa","i. Tank Storage (bbl)","i.3 Diesel",425000]
[2012,"2011-06-01","Verificada","RDO - Haina","República Dominicana","Refidomsa","j. Conversion Rate ","j.1 Conversion Rate ",0.56299999999999994]
[2012,"2011-06-01","Verificada","RDO - Haina","República Dominicana","Refidomsa","k. Desulfurization Rate (%)","k.1 Desulfurization Rate (%)",{"$f":"SUM(I986:I990)/I970","v":0.4330941200791471}]
[2012,"2011-08-01","Verificada","SUR - Paramaribo","Suriname","Staatsolie","a. Crude Distillation","a.1 Atmospheric Crude Distillation",7000,15000,null,"2014-07-01"]
[2012,"2011-08-01","Verificada","SUR - Paramaribo","Suriname","Staatsolie","a. Crude Distillation","a.2 Vacuum Distillation"]
[2012,"2011-08-01","Verificada","SUR - Paramaribo","Suriname","Staatsolie","b. Conversion","b.1 Catalytic Cracking"]
[2012,"2011-08-01","Verificada","SUR - Paramaribo","Suriname","Staatsolie","b. Conversion","b.2 Resid Cat Cracking"]
[2012,"2011-08-01","Verificada","SUR - Paramaribo","Suriname","Staatsolie","b. Conversion","b.3 Hydrocracking (Mild Conversion)",null,10040,null,"2014-07-01"]
[2012,"2011-08-01","Verificada","SUR - Paramaribo","Suriname","Staatsolie","b. Conversion","b.4 Coking -- Delayed"]
[2012,"2011-08-01","Verificada","SUR - Paramaribo","Suriname","Staatsolie","b. Conversion","b.5 Coking -- Fluid"]
[2012,"2011-08-01","Verificada","SUR - Paramaribo","Suriname","Staatsolie","b. Conversion","b.6 Visbreaking",2700]
[2012,"2011-08-01","Verificada","SUR - Paramaribo","Suriname","Staatsolie","c. Upgrading","c.1 H-Oil"]
[2012,"2011-08-01","Verificada","SUR - Paramaribo","Suriname","Staatsolie","c. Upgrading","c.2 HDH"]
[2012,"2011-08-01","Verificada","SUR - Paramaribo","Suriname","Staatsolie","c. Upgrading","c.3 Alkylation (Product basis)"]
[2012,"2011-08-01","Verificada","SUR - Paramaribo","Suriname","Staatsolie","c. Upgrading","c.4 Polymerization"]
[2012,"2011-08-01","Verificada","SUR - Paramaribo","Suriname","Staatsolie","c. Upgrading","c.5 C5/C6 Isomerization"]
[2012,"2011-08-01","Verificada","SUR - Paramaribo","Suriname","Staatsolie","c. Upgrading","c.6 Catalytic Reforming -- Low Pressure"]
[2012,"2011-08-01","Verificada","SUR - Paramaribo","Suriname","Staatsolie","c. Upgrading","c.7 Catalytic Reforming -- Medium Pressure",null,3100,null,"2014-07-01"]
[2012,"2011-08-01","Verificada","SUR - Paramaribo","Suriname","Staatsolie","c. Upgrading","c.8 Catalytic Reforming -- High Pressure"]
[2012,"2011-08-01","Verificada","SUR - Paramaribo","Suriname","Staatsolie","d. Hydrotreating","d.1 Gasoline/Naphtha Hydrotreating"]
[2012,"2011-08-01","Verificada","SUR - Paramaribo","Suriname","Staatsolie","d. Hydrotreating","d.2 Kerosene Hydrotreating"]
[2012,"2011-08-01","Verificada","SUR - Paramaribo","Suriname","Staatsolie","d. Hydrotreating","d.3 Distillate Hydrotreating"]
[2012,"2011-08-01","Verificada","SUR - Paramaribo","Suriname","Staatsolie","d. Hydrotreating","d.4 Residual Desulfurization"]
[2012,"2011-08-01","Verificada","SUR - Paramaribo","Suriname","Staatsolie","d. Hydrotreating","d.5 Gas Oil Desulfurization"]
[2012,"2011-08-01","Duda","SUR - Paramaribo","Suriname","Staatsolie","e. Hydrogen (k scf/d)","e.1 Hydrogen Generation",null,21300,null,"2014-07-01"]
[2012,"2011-08-01","Verificada","SUR - Paramaribo","Suriname","Staatsolie","e. Hydrogen (k scf/d)","e.2 Purification"]
[2012,"2011-08-01","Verificada","SUR - Paramaribo","Suriname","Staatsolie","f. Other","f.1 Aromatic Solvent Extraction"]
[2012,"2011-08-01","Verificada","SUR - Paramaribo","Suriname","Staatsolie","f. Other","f.2 Other Aromatic Process"]
[2012,"2011-08-01","Verificada","SUR - Paramaribo","Suriname","Staatsolie","f. Other","f.3 C4 Isomerization"]
[2012,"2011-08-01","Verificada","SUR - Paramaribo","Suriname","Staatsolie","f. Other","f.4 Solvent Desaphalting"]
[2012,"2011-08-01","Verificada","SUR - Paramaribo","Suriname","Staatsolie","f. Other","f.5 Lubes & Waxes"]
[2012,"2011-08-01","Verificada","SUR - Paramaribo","Suriname","Staatsolie","f. Other","f.6 Asphalt & Bitumen Manufacture",100]
[2012,"2011-08-01","Verificada","SUR - Paramaribo","Suriname","Staatsolie","f. Other","f.7 Sulfur Recovery Unit (tonnes/day)",null,34,null,"2014-07-01"]
[2012,"2011-08-01","Verificada","SUR - Paramaribo","Suriname","Staatsolie","g. Fractionation","g.1 Propane/Propylene Splitter"]
[2012,"2011-08-01","Verificada","SUR - Paramaribo","Suriname","Staatsolie","g. Fractionation","g.2 Deisobutanizer"]
[2012,"2011-08-01","Verificada","SUR - Paramaribo","Suriname","Staatsolie","g. Fractionation","g.3 Deisopentanizer"]
[2012,"2011-08-01","Verificada","SUR - Paramaribo","Suriname","Staatsolie","g. Fractionation","g.4 Deisohexanizer"]
[2012,"2011-08-01","Verificada","SUR - Paramaribo","Suriname","Staatsolie","g. Fractionation","g.5 Alkylate Splitter"]
[2012,"2011-08-01","Verificada","SUR - Paramaribo","Suriname","Staatsolie","g. Fractionation","g.6 Reformate Splitter"]
[2012,"2011-08-01","Verificada","SUR - Paramaribo","Suriname","Staatsolie","g. Fractionation","g.7 Cat Cracked Gasoline Splitter"]
[2012,"2011-08-01","Verificada","SUR - Paramaribo","Suriname","Staatsolie","h. Oxygenates","h.1 MTBE"]
[2012,"2011-08-01","Verificada","SUR - Paramaribo","Suriname","Staatsolie","h. Oxygenates","h.2 TAME"]
[2012,"2011-08-01","Verificada","SUR - Paramaribo","Suriname","Staatsolie","i. Tank Storage (bbl)","i.1 Crude Oil",60000,225000,null,"2014-12-01"]
[2012,"2011-08-01","Verificada","SUR - Paramaribo","Suriname","Staatsolie","i. Tank Storage (bbl)","i.2 Gasoline",null,37000,null,"2014-07-01"]
[2012,"2011-08-01","Verificada","SUR - Paramaribo","Suriname","Staatsolie","i. Tank Storage (bbl)","i.3 Diesel",10000,82000,null,"2014-07-01"]
[2012,"2011-08-01","Verificada","SUR - Paramaribo","Suriname","Staatsolie","j. Conversion Rate ","j.1 Conversion Rate ",0.1273]
[2012,"2011-08-01","Verificada","SUR - Paramaribo","Suriname","Staatsolie","k. Desulfurization Rate (%)","k.1 Desulfurization Rate (%)",{"$f":"SUM(I1030:I1034)/I1014","v":0}]
[2012,"2011-08-01","Verificada","T&T - Pointe-à-Pierre","Trinidad&Tobago","Petrotrin","a. Crude Distillation","a.1 Atmospheric Crude Distillation",175000]
[2012,"2011-08-01","Verificada","T&T - Pointe-à-Pierre","Trinidad&Tobago","Petrotrin","a. Crude Distillation","a.2 Vacuum Distillation",131000]
[2012,"2011-08-01","Duda","T&T - Pointe-à-Pierre","Trinidad&Tobago","Petrotrin","b. Conversion","b.1 Catalytic Cracking",35000]
[2012,"2011-08-01","Verificada","T&T - Pointe-à-Pierre","Trinidad&Tobago","Petrotrin","b. Conversion","b.2 Resid Cat Cracking"]
[2012,"2011-08-01","Verificada","T&T - Pointe-à-Pierre","Trinidad&Tobago","Petrotrin","b. Conversion","b.3 Hydrocracking (Mild Conversion)",55000]
[2012,"2011-08-01","Verificada","T&T - Pointe-à-Pierre","Trinidad&Tobago","Petrotrin","b. Conversion","b.4 Coking -- Delayed"]
[2012,"2011-08-01","Verificada","T&T - Pointe-à-Pierre","Trinidad&Tobago","Petrotrin","b. Conversion","b.5 Coking -- Fluid"]
[2012,"2011-08-01","Verificada","T&T - Pointe-à-Pierre","Trinidad&Tobago","Petrotrin","b. Conversion","b.6 Visbreaking",30000]
[2012,"2011-08-01","Verificada","T&T - Pointe-à-Pierre","Trinidad&Tobago","Petrotrin","c. Upgrading","c.1 H-Oil"]
[2012,"2011-08-01","Verificada","T&T - Pointe-à-Pierre","Trinidad&Tobago","Petrotrin","c. Upgrading","c.2 HDH"]
[2012,"2011-08-01","Duda","T&T - Pointe-à-Pierre","Trinidad&Tobago","Petrotrin","c. Upgrading","c.3 Alkylation (Product basis)",8700,null,null,null,"FCCU is upgrade of old unit with original capacity 27000 bbl/d"]
[2012,"2011-08-01","Verificada","T&T - Pointe-à-Pierre","Trinidad&Tobago","Petrotrin","c. Upgrading","c.4 Polymerization"]
[2012,"2011-08-01","Verificada","T&T - Pointe-à-Pierre","Trinidad&Tobago","Petrotrin","c. Upgrading","c.5 C5/C6 Isomerization",7400]
[2012,"2011-08-01","Verificada","T&T - Pointe-à-Pierre","Trinidad&Tobago","Petrotrin","c. Upgrading","c.6 Catalytic Reforming -- Low Pressure",28000]
[2012,"2011-08-01","Verificada","T&T - Pointe-à-Pierre","Trinidad&Tobago","Petrotrin","c. Upgrading","c.7 Catalytic Reforming -- Medium Pressure"]
[2012,"2011-08-01","Verificada","T&T - Pointe-à-Pierre","Trinidad&Tobago","Petrotrin","c. Upgrading","c.8 Catalytic Reforming -- High Pressure"]
[2012,"2011-08-01","Verificada","T&T - Pointe-à-Pierre","Trinidad&Tobago","Petrotrin","d. Hydrotreating","d.1 Gasoline/Naphtha Hydrotreating",28000]
[2012,"2011-08-01","Verificada","T&T - Pointe-à-Pierre","Trinidad&Tobago","Petrotrin","d. Hydrotreating","d.2 Kerosene Hydrotreating",18000]
[2012,"2011-08-01","Verificada","T&T - Pointe-à-Pierre","Trinidad&Tobago","Petrotrin","d. Hydrotreating","d.3 Distillate Hydrotreating",12000]
[2012,"2011-08-01","Verificada","T&T - Pointe-à-Pierre","Trinidad&Tobago","Petrotrin","d. Hydrotreating","d.4 Residual Desulfurization"]
[2012,"2011-08-01","Duda","T&T - Pointe-à-Pierre","Trinidad&Tobago","Petrotrin","d. Hydrotreating","d.5 Gas Oil Desulfurization",40000,null,null,null,"Ultra-Low Sulfur Diesel Dehydrogenator"]
[2012,"2011-08-01","Verificada","T&T - Pointe-à-Pierre","Trinidad&Tobago","Petrotrin","e. Hydrogen (k scf/d)","e.1 Hydrogen Generation",30000]
[2012,"2011-08-01","Verificada","T&T - Pointe-à-Pierre","Trinidad&Tobago","Petrotrin","e. Hydrogen (k scf/d)","e.2 Purification"]
[2012,"2011-08-01","Verificada","T&T - Pointe-à-Pierre","Trinidad&Tobago","Petrotrin","f. Other","f.1 Aromatic Solvent Extraction"]
[2012,"2011-08-01","Verificada","T&T - Pointe-à-Pierre","Trinidad&Tobago","Petrotrin","f. Other","f.2 Other Aromatic Process"]
[2012,"2011-08-01","Verificada","T&T - Pointe-à-Pierre","Trinidad&Tobago","Petrotrin","f. Other","f.3 C4 Isomerization"]
[2012,"2011-08-01","Verificada","T&T - Pointe-à-Pierre","Trinidad&Tobago","Petrotrin","f. Other","f.4 Solvent Desaphalting"]
[2012,"2011-08-01","Verificada","T&T - Pointe-à-Pierre","Trinidad&Tobago","Petrotrin","f. Other","f.5 Lubes & Waxes"]
[2012,"2011-08-01","Verificada","T&T - Pointe-à-Pierre","Trinidad&Tobago","Petrotrin","f. Other","f.6 Asphalt & Bitumen Manufacture"]
[2012,"2011-08-01","Verificada","T&T - Pointe-à-Pierre","Trinidad&Tobago","Petrotrin","f. Other","f.7 Sulfur Recovery Unit (tonnes/day)",100]
[2012,"2011-08-01","Verificada","T&T - Pointe-à-Pierre","Trinidad&Tobago","Petrotrin","g. Fractionation","g.1 Propane/Propylene Splitter"]
[2012,"2011-08-01","Verificada","T&T - Pointe-à-Pierre","Trinidad&Tobago","Petrotrin","g. Fractionation","g.2 Deisobutanizer"]
[2012,"2011-08-01","Verificada","T&T - Pointe-à-Pierre","Trinidad&Tobago","Petrotrin","g. Fractionation","g.3 Deisopentanizer"]
[2012,"2011-08-01","Verificada","T&T - Pointe-à-Pierre","Trinidad&Tobago","Petrotrin","g. Fractionation","g.4 Deisohexanizer"]
[2012,"2011-08-01","Verificada","T&T - Pointe-à-Pierre","Trinidad&Tobago","Petrotrin","g. Fractionation","g.5 Alkylate Splitter"]
[2012,"2011-08-01","Verificada","T&T - Pointe-à-Pierre","Trinidad&Tobago","Petrotrin","g. Fractionation","g.6 Reformate Splitter"]
[2012,"2011-08-01","Verificada","T&T - Pointe-à-Pierre","Trinidad&Tobago","Petrotrin","g. Fractionation","g.7 Cat Cracked Gasoline Splitter"]
[2012,"2011-08-01","Verificada","T&T - Pointe-à-Pierre","Trinidad&Tobago","Petrotrin","h. Oxygenates","h.1 MTBE",1000]
[2012,"2011-08-01","Verificada","T&T - Pointe-à-Pierre","Trinidad&Tobago","Petrotrin","h. Oxygenates","h.2 TAME"]
[2012,"2011-08-01","Verificada","T&T - Pointe-à-Pierre","Trinidad&Tobago","Petrotrin","i. Tank Storage (bbl)","i.1 Crude Oil",2470842]
[2012,"2011-08-01","Verificada","T&T - Pointe-à-Pierre","Trinidad&Tobago","Petrotrin","i. Tank Storage (bbl)","i.2 Gasoline",1623996]
[2012,"2011-08-01","Verificada","T&T - Pointe-à-Pierre","Trinidad&Tobago","Petrotrin","i. Tank Storage (bbl)","i.3 Diesel",1365524]
[2012,"2011-08-01","Duda","T&T - Pointe-à-Pierre","Trinidad&Tobago","Petrotrin","j. Conversion Rate ","j.1 Conversion Rate ",0.68740000000000001]
[2012,"2011-08-01","Duda","T&T - Pointe-à-Pierre","Trinidad&Tobago","Petrotrin","k. Desulfurization Rate (%)","k.1 Desulfurization Rate (%)",{"$f":"SUM(I1074:I1078)/I1058","v":0.56000000000000005}]
[2012,"2012-06-01","Verificada","URU - La Teja","Uruguay","ANCAP","a. Crude Distillation","a.1 Atmospheric Crude Distillation",50000]
[2012,"2012-06-01","Verificada","URU - La Teja","Uruguay","ANCAP","a. Crude Distillation","a.2 Vacuum Distillation",20000]
[2012,"2012-06-01","Verificada","URU - La Teja","Uruguay","ANCAP","b. Conversion","b.1 Catalytic Cracking"]
[2012,"2012-06-01","Verificada","URU - La Teja","Uruguay","ANCAP","b. Conversion","b.2 Resid Cat Cracking",12000]
[2012,"2012-06-01","Verificada","URU - La Teja","Uruguay","ANCAP","b. Conversion","b.3 Hydrocracking (Mild Conversion)"]
[2012,"2012-06-01","Verificada","URU - La Teja","Uruguay","ANCAP","b. Conversion","b.4 Coking -- Delayed"]
[2012,"2012-06-01","Verificada","URU - La Teja","Uruguay","ANCAP","b. Conversion","b.5 Coking -- Fluid"]
[2012,"2012-06-01","Verificada","URU - La Teja","Uruguay","ANCAP","b. Conversion","b.6 Visbreaking",7000]
[2012,"2012-06-01","Verificada","URU - La Teja","Uruguay","ANCAP","c. Upgrading","c.1 H-Oil"]
[2012,"2012-06-01","Verificada","URU - La Teja","Uruguay","ANCAP","c. Upgrading","c.2 HDH"]
[2012,"2012-06-01","Verificada","URU - La Teja","Uruguay","ANCAP","c. Upgrading","c.3 Alkylation (Product basis)"]
[2012,"2012-06-01","Verificada","URU - La Teja","Uruguay","ANCAP","c. Upgrading","c.4 Polymerization"]
[2012,"2012-06-01","Verificada","URU - La Teja","Uruguay","ANCAP","c. Upgrading","c.5 C5/C6 Isomerization",6000]
[2012,"2012-06-01","Verificada","URU - La Teja","Uruguay","ANCAP","c. Upgrading","c.6 Catalytic Reforming -- Low Pressure",12000]
[2012,"2012-06-01","Verificada","URU - La Teja","Uruguay","ANCAP","c. Upgrading","c.7 Catalytic Reforming -- Medium Pressure"]
[2012,"2012-06-01","Verificada","URU - La Teja","Uruguay","ANCAP","c. Upgrading","c.8 Catalytic Reforming -- High Pressure"]
[2012,"2012-06-01","Verificada","URU - La Teja","Uruguay","ANCAP","d. Hydrotreating","d.1 Gasoline/Naphtha Hydrotreating",18000,5000,60,"2013-03-01","Only Process Units investment is shown (DCS Upgrade, Offsites and Utilities Upgrade are not shown here)."]
[2012,"2012-06-01","Verificada","URU - La Teja","Uruguay","ANCAP","d. Hydrotreating","d.2 Kerosene Hydrotreating"]
[2012,"2012-06-01","Verificada","URU - La Teja","Uruguay","ANCAP","d. Hydrotreating","d.3 Distillate Hydrotreating",4500,18000,120,"2013-03-01","Only Process Units investment is shown (DCS Upgrade, Offsites and Utilities Upgrade are not shown here)."]
[2012,"2012-06-01","Verificada","URU - La Teja","Uruguay","ANCAP","d. Hydrotreating","d.4 Residual Desulfurization"]
[2012,"2012-06-01","Verificada","URU - La Teja","Uruguay","ANCAP","d. Hydrotreating","d.5 Gas Oil Desulfurization"]
[2012,"2012-06-01","Verificada","URU - La Teja","Uruguay","ANCAP","e. Hydrogen (k scf/d)","e.1 Hydrogen Generation"]
[2012,"2012-06-01","Verificada","URU - La Teja","Uruguay","ANCAP","e. Hydrogen (k scf/d)","e.2 Purification"]
[2012,"2012-06-01","Verificada","URU - La Teja","Uruguay","ANCAP","f. Other","f.1 Aromatic Solvent Extraction"]
[2012,"2012-06-01","Verificada","URU - La Teja","Uruguay","ANCAP","f. Other","f.2 Other Aromatic Process"]
[2012,"2012-06-01","Verificada","URU - La Teja","Uruguay","ANCAP","f. Other","f.3 C4 Isomerization"]
[2012,"2012-06-01","Verificada","URU - La Teja","Uruguay","ANCAP","f. Other","f.4 Solvent Desaphalting"]
[2012,"2012-06-01","Verificada","URU - La Teja","Uruguay","ANCAP","f. Other","f.5 Lubes & Waxes"]
[2012,"2012-06-01","Verificada","URU - La Teja","Uruguay","ANCAP","f. Other","f.6 Asphalt & Bitumen Manufacture"]
[2012,"2012-06-01","Verificada","URU - La Teja","Uruguay","ANCAP","f. Other","f.7 Sulfur Recovery Unit (tonnes/day)",null,40,40,"2013-03-01","Only Process Units investment is shown (DCS Upgrade, Offsites and Utilities Upgrade are not shown here)."]
[2012,"2012-06-01","Verificada","URU - La Teja","Uruguay","ANCAP","g. Fractionation","g.1 Propane/Propylene Splitter"]
[2012,"2012-06-01","Verificada","URU - La Teja","Uruguay","ANCAP","g. Fractionation","g.2 Deisobutanizer"]
[2012,"2012-06-01","Verificada","URU - La Teja","Uruguay","ANCAP","g. Fractionation","g.3 Deisopentanizer"]
[2012,"2012-06-01","Verificada","URU - La Teja","Uruguay","ANCAP","g. Fractionation","g.4 Deisohexanizer"]
[2012,"2012-06-01","Verificada","URU - La Teja","Uruguay","ANCAP","g. Fractionation","g.5 Alkylate Splitter"]
[2012,"2012-06-01","Verificada","URU - La Teja","Uruguay","ANCAP","g. Fractionation","g.6 Reformate Splitter"]
[2012,"2012-06-01","Verificada","URU - La Teja","Uruguay","ANCAP","g. Fractionation","g.7 Cat Cracked Gasoline Splitter"]
[2012,"2012-06-01","Verificada","URU - La Teja","Uruguay","ANCAP","h. Oxygenates","h.1 MTBE"]
[2012,"2012-06-01","Verificada","URU - La Teja","Uruguay","ANCAP","h. Oxygenates","h.2 TAME"]
[2012,"2012-06-01","Verificada","URU - La Teja","Uruguay","ANCAP","i. Tank Storage (bbl)","i.1 Crude Oil",3800000,null,null,null,"Buoy Terminal Tanks are included together with Refinery Site Crude Tanks (these being 13% of whole crude capacity). Crude pipeline & slop tanks are not included."]
[2012,"2012-06-01","Verificada","URU - La Teja","Uruguay","ANCAP","i. Tank Storage (bbl)","i.2 Gasoline",930000,null,null,null,"Naphta and all gasoline grades are included, Heavy Naphta being 28 % of the Refinery capacities shown here."]
[2012,"2012-06-01","Verificada","URU - La Teja","Uruguay","ANCAP","i. Tank Storage (bbl)","i.3 Diesel",570000,null,null,null,"No other distillate (Jet Fuel, Kerosene, Solvents) are included here, just Gas Oil & Diesel Oil capacities at Refinery are shown."]
[2012,"2012-06-01","Verificada","URU - La Teja","Uruguay","ANCAP","j. Conversion Rate ","j.1 Conversion Rate ",0.87119999999999997]
[2012,"2012-06-01","Verificada","URU - La Teja","Uruguay","ANCAP","k. Desulfurization Rate (%)","k.1 Desulfurization Rate (%)",{"$f":"SUM(I1118:I1122)/I1102","v":0.45}]
[2012,"2012-10-01","Verificada","COL - Barrancabermeja","Colombia","Ecopetrol","a. Crude Distillation","a.1 Atmospheric Crude Distillation",250000]
[2012,"2012-10-01","Verificada","COL - Barrancabermeja","Colombia","Ecopetrol","a. Crude Distillation","a.2 Vacuum Distillation",108000]
[2012,"2012-10-01","Verificada","COL - Barrancabermeja","Colombia","Ecopetrol","b. Conversion","b.1 Catalytic Cracking",105000]
[2012,"2012-10-01","Verificada","COL - Barrancabermeja","Colombia","Ecopetrol","b. Conversion","b.2 Resid Cat Cracking"]
[2012,"2012-10-01","Verificada","COL - Barrancabermeja","Colombia","Ecopetrol","b. Conversion","b.3 Hydrocracking (Mild Conversion)"]
[2012,"2012-10-01","Verificada","COL - Barrancabermeja","Colombia","Ecopetrol","b. Conversion","b.4 Coking -- Delayed"]
[2012,"2012-10-01","Verificada","COL - Barrancabermeja","Colombia","Ecopetrol","b. Conversion","b.5 Coking -- Fluid"]
[2012,"2012-10-01","Verificada","COL - Barrancabermeja","Colombia","Ecopetrol","b. Conversion","b.6 Visbreaking",24000]
[2012,"2012-10-01","Verificada","COL - Barrancabermeja","Colombia","Ecopetrol","c. Upgrading","c.1 H-Oil"]
[2012,"2012-10-01","Verificada","COL - Barrancabermeja","Colombia","Ecopetrol","c. Upgrading","c.2 HDH"]
[2012,"2012-10-01","Verificada","COL - Barrancabermeja","Colombia","Ecopetrol","c. Upgrading","c.3 Alkylation (Product basis)",4500]
[2012,"2012-10-01","Verificada","COL - Barrancabermeja","Colombia","Ecopetrol","c. Upgrading","c.4 Polymerization"]
[2012,"2012-10-01","Verificada","COL - Barrancabermeja","Colombia","Ecopetrol","c. Upgrading","c.5 C5/C6 Isomerization"]
[2012,"2012-10-01","Verificada","COL - Barrancabermeja","Colombia","Ecopetrol","c. Upgrading","c.6 Catalytic Reforming -- Low Pressure",9500]
[2012,"2012-10-01","Verificada","COL - Barrancabermeja","Colombia","Ecopetrol","c. Upgrading","c.7 Catalytic Reforming -- Medium Pressure"]
[2012,"2012-10-01","Verificada","COL - Barrancabermeja","Colombia","Ecopetrol","c. Upgrading","c.8 Catalytic Reforming -- High Pressure"]
[2012,"2012-10-01","Verificada","COL - Barrancabermeja","Colombia","Ecopetrol","d. Hydrotreating","d.1 Gasoline/Naphtha Hydrotreating"]
[2012,"2012-10-01","Verificada","COL - Barrancabermeja","Colombia","Ecopetrol","d. Hydrotreating","d.2 Kerosene Hydrotreating"]
[2012,"2012-10-01","Verificada","COL - Barrancabermeja","Colombia","Ecopetrol","d. Hydrotreating","d.3 Distillate Hydrotreating"]
[2012,"2012-10-01","Verificada","COL - Barrancabermeja","Colombia","Ecopetrol","d. Hydrotreating","d.4 Residual Desulfurization"]
[2012,"2012-10-01","Verificada","COL - Barrancabermeja","Colombia","Ecopetrol","d. Hydrotreating","d.5 Gas Oil Desulfurization",23000]
[2012,"2012-10-01","Verificada","COL - Barrancabermeja","Colombia","Ecopetrol","e. Hydrogen (k scf/d)","e.1 Hydrogen Generation",22000]
[2012,"2012-10-01","Verificada","COL - Barrancabermeja","Colombia","Ecopetrol","e. Hydrogen (k scf/d)","e.2 Purification"]
[2012,"2012-10-01","Verificada","COL - Barrancabermeja","Colombia","Ecopetrol","f. Other","f.1 Aromatic Solvent Extraction",5000]
[2012,"2012-10-01","Verificada","COL - Barrancabermeja","Colombia","Ecopetrol","f. Other","f.2 Other Aromatic Process",4000]
[2012,"2012-10-01","Verificada","COL - Barrancabermeja","Colombia","Ecopetrol","f. Other","f.3 C4 Isomerization"]
[2012,"2012-10-01","Verificada","COL - Barrancabermeja","Colombia","Ecopetrol","f. Other","f.4 Solvent Desaphalting",45000]
[2012,"2012-10-01","Verificada","COL - Barrancabermeja","Colombia","Ecopetrol","f. Other","f.5 Lubes & Waxes",2553.3333333333335]
[2012,"2012-10-01","Verificada","COL - Barrancabermeja","Colombia","Ecopetrol","f. Other","f.6 Asphalt & Bitumen Manufacture",9000]
[2012,"2012-10-01","Verificada","COL - Barrancabermeja","Colombia","Ecopetrol","f. Other","f.7 Sulfur Recovery Unit (tonnes/day)",64]
[2012,"2012-10-01","Verificada","COL - Barrancabermeja","Colombia","Ecopetrol","g. Fractionation","g.1 Propane/Propylene Splitter"]
[2012,"2012-10-01","Verificada","COL - Barrancabermeja","Colombia","Ecopetrol","g. Fractionation","g.2 Deisobutanizer"]
[2012,"2012-10-01","Verificada","COL - Barrancabermeja","Colombia","Ecopetrol","g. Fractionation","g.3 Deisopentanizer"]
[2012,"2012-10-01","Verificada","COL - Barrancabermeja","Colombia","Ecopetrol","g. Fractionation","g.4 Deisohexanizer"]
[2012,"2012-10-01","Verificada","COL - Barrancabermeja","Colombia","Ecopetrol","g. Fractionation","g.5 Alkylate Splitter"]
[2012,"2012-10-01","Verificada","COL - Barrancabermeja","Colombia","Ecopetrol","g. Fractionation","g.6 Reformate Splitter"]
[2012,"2012-10-01","Verificada","COL - Barrancabermeja","Colombia","Ecopetrol","g. Fractionation","g.7 Cat Cracked Gasoline Splitter"]
[2012,"2012-10-01","Verificada","COL - Barrancabermeja","Colombia","Ecopetrol","h. Oxygenates","h.1 MTBE"]
[2012,"2012-10-01","Verificada","COL - Barrancabermeja","Colombia","Ecopetrol","h. Oxygenates","h.2 TAME"]
[2012,"2012-10-01","Verificada","COL - Barrancabermeja","Colombia","Ecopetrol","i. Tank Storage (bbl)","i.1 Crude Oil",2000000]
[2012,"2012-10-01","Verificada","COL - Barrancabermeja","Colombia","Ecopetrol","i. Tank Storage (bbl)","i.2 Gasoline",1100000]
[2012,"2012-10-01","Verificada","COL - Barrancabermeja","Colombia","Ecopetrol","i. Tank Storage (bbl)","i.3 Diesel",450000]
[2012,"2012-10-01","Verificada","COL - Barrancabermeja","Colombia","Ecopetrol","j. Conversion Rate ","j.1 Conversion Rate ",0.45169999999999999]
[2012,"2012-10-01","Verificada","COL - Barrancabermeja","Colombia","Ecopetrol","k. Desulfurization Rate (%)","k.1 Desulfurization Rate (%)",{"$f":"SUM(I1162:I1166)/I1146","v":9.1999999999999998E-2}]
[2012,"2012-10-01","Verificada","COL - Cartagena","Colombia","Ecopetrol","a. Crude Distillation","a.1 Atmospheric Crude Distillation",80000,165000,null,2014]
[2012,"2012-10-01","Verificada","COL - Cartagena","Colombia","Ecopetrol","a. Crude Distillation","a.2 Vacuum Distillation",null,92000,null,2014]
[2012,"2012-10-01","Verificada","COL - Cartagena","Colombia","Ecopetrol","b. Conversion","b.1 Catalytic Cracking",29000,35000,null,2014]
[2012,"2012-10-01","Verificada","COL - Cartagena","Colombia","Ecopetrol","b. Conversion","b.2 Resid Cat Cracking"]
[2012,"2012-10-01","Verificada","COL - Cartagena","Colombia","Ecopetrol","b. Conversion","b.3 Hydrocracking (Mild Conversion)",null,35000,null,2014]
[2012,"2012-10-01","Verificada","COL - Cartagena","Colombia","Ecopetrol","b. Conversion","b.4 Coking -- Delayed",null,40000,null,2014]
[2012,"2012-10-01","Verificada","COL - Cartagena","Colombia","Ecopetrol","b. Conversion","b.5 Coking -- Fluid"]
[2012,"2012-10-01","Verificada","COL - Cartagena","Colombia","Ecopetrol","b. Conversion","b.6 Visbreaking",25000]
[2012,"2012-10-01","Verificada","COL - Cartagena","Colombia","Ecopetrol","c. Upgrading","c.1 H-Oil"]
[2012,"2012-10-01","Verificada","COL - Cartagena","Colombia","Ecopetrol","c. Upgrading","c.2 HDH"]
[2012,"2012-10-01","Verificada","COL - Cartagena","Colombia","Ecopetrol","c. Upgrading","c.3 Alkylation (Product basis)",null,5000,null,2014]
[2012,"2012-10-01","Verificada","COL - Cartagena","Colombia","Ecopetrol","c. Upgrading","c.4 Polymerization"]
[2012,"2012-10-01","Verificada","COL - Cartagena","Colombia","Ecopetrol","c. Upgrading","c.5 C5/C6 Isomerization"]
[2012,"2012-10-01","Verificada","COL - Cartagena","Colombia","Ecopetrol","c. Upgrading","c.6 Catalytic Reforming -- Low Pressure"]
[2012,"2012-10-01","Verificada","COL - Cartagena","Colombia","Ecopetrol","c. Upgrading","c.7 Catalytic Reforming -- Medium Pressure"]
[2012,"2012-10-01","Verificada","COL - Cartagena","Colombia","Ecopetrol","c. Upgrading","c.8 Catalytic Reforming -- High Pressure"]
[2012,"2012-10-01","Verificada","COL - Cartagena","Colombia","Ecopetrol","d. Hydrotreating","d.1 Gasoline/Naphtha Hydrotreating",null,40000,null,2014]
[2012,"2012-10-01","Verificada","COL - Cartagena","Colombia","Ecopetrol","d. Hydrotreating","d.2 Kerosene Hydrotreating"]
[2012,"2012-10-01","Verificada","COL - Cartagena","Colombia","Ecopetrol","d. Hydrotreating","d.3 Distillate Hydrotreating",null,70000,null,2014]
[2012,"2012-10-01","Verificada","COL - Cartagena","Colombia","Ecopetrol","d. Hydrotreating","d.4 Residual Desulfurization"]
[2012,"2012-10-01","Verificada","COL - Cartagena","Colombia","Ecopetrol","d. Hydrotreating","d.5 Gas Oil Desulfurization"]
[2012,"2012-10-01","Verificada","COL - Cartagena","Colombia","Ecopetrol","e. Hydrogen (k scf/d)","e.1 Hydrogen Generation",null,90000,null,2014]
[2012,"2012-10-01","Verificada","COL - Cartagena","Colombia","Ecopetrol","e. Hydrogen (k scf/d)","e.2 Purification"]
[2012,"2012-10-01","Verificada","COL - Cartagena","Colombia","Ecopetrol","f. Other","f.1 Aromatic Solvent Extraction"]
[2012,"2012-10-01","Verificada","COL - Cartagena","Colombia","Ecopetrol","f. Other","f.2 Other Aromatic Process"]
[2012,"2012-10-01","Verificada","COL - Cartagena","Colombia","Ecopetrol","f. Other","f.3 C4 Isomerization",null,1000,null,2014]
[2012,"2012-10-01","Verificada","COL - Cartagena","Colombia","Ecopetrol","f. Other","f.4 Solvent Desaphalting"]
[2012,"2012-10-01","Verificada","COL - Cartagena","Colombia","Ecopetrol","f. Other","f.5 Lubes & Waxes"]
[2012,"2012-10-01","Verificada","COL - Cartagena","Colombia","Ecopetrol","f. Other","f.6 Asphalt & Bitumen Manufacture"]
[2012,"2012-10-01","Verificada","COL - Cartagena","Colombia","Ecopetrol","f. Other","f.7 Sulfur Recovery Unit (tonnes/day)",30,270,null,2014]
[2012,"2012-10-01","Verificada","COL - Cartagena","Colombia","Ecopetrol","g. Fractionation","g.1 Propane/Propylene Splitter"]
[2012,"2012-10-01","Verificada","COL - Cartagena","Colombia","Ecopetrol","g. Fractionation","g.2 Deisobutanizer"]
[2012,"2012-10-01","Verificada","COL - Cartagena","Colombia","Ecopetrol","g. Fractionation","g.3 Deisopentanizer"]
[2012,"2012-10-01","Verificada","COL - Cartagena","Colombia","Ecopetrol","g. Fractionation","g.4 Deisohexanizer"]
[2012,"2012-10-01","Verificada","COL - Cartagena","Colombia","Ecopetrol","g. Fractionation","g.5 Alkylate Splitter"]
[2012,"2012-10-01","Verificada","COL - Cartagena","Colombia","Ecopetrol","g. Fractionation","g.6 Reformate Splitter"]
[2012,"2012-10-01","Verificada","COL - Cartagena","Colombia","Ecopetrol","g. Fractionation","g.7 Cat Cracked Gasoline Splitter"]
[2012,"2012-10-01","Verificada","COL - Cartagena","Colombia","Ecopetrol","h. Oxygenates","h.1 MTBE"]
[2012,"2012-10-01","Verificada","COL - Cartagena","Colombia","Ecopetrol","h. Oxygenates","h.2 TAME"]
[2012,"2012-10-01","Verificada","COL - Cartagena","Colombia","Ecopetrol","i. Tank Storage (bbl)","i.1 Crude Oil"]
[2012,"2012-10-01","Verificada","COL - Cartagena","Colombia","Ecopetrol","i. Tank Storage (bbl)","i.2 Gasoline"]
[2012,"2012-10-01","Verificada","COL - Cartagena","Colombia","Ecopetrol","i. Tank Storage (bbl)","i.3 Diesel"]
[2012,"2012-10-01","Verificada","COL - Cartagena","Colombia","Ecopetrol","j. Conversion Rate ","j.1 Conversion Rate ",0.46560000000000001]
[2012,"2012-10-01","Verificada","COL - Cartagena","Colombia","Ecopetrol","k. Desulfurization Rate (%)","k.1 Desulfurization Rate (%)",{"$f":"SUM(I1206:I1210)/I1190","v":0}]
[2012,"2012-10-01","Verificada","COL - Apiay","Colombia","Ecopetrol","a. Crude Distillation","a.1 Atmospheric Crude Distillation",2500]
[2012,"2012-10-01","Verificada","COL - Apiay","Colombia","Ecopetrol","a. Crude Distillation","a.2 Vacuum Distillation"]
[2012,"2012-10-01","Verificada","COL - Apiay","Colombia","Ecopetrol","b. Conversion","b.1 Catalytic Cracking"]
[2012,"2012-10-01","Verificada","COL - Apiay","Colombia","Ecopetrol","b. Conversion","b.2 Resid Cat Cracking"]
[2012,"2012-10-01","Verificada","COL - Apiay","Colombia","Ecopetrol","b. Conversion","b.3 Hydrocracking (Mild Conversion)"]
[2012,"2012-10-01","Verificada","COL - Apiay","Colombia","Ecopetrol","b. Conversion","b.4 Coking -- Delayed"]
[2012,"2012-10-01","Verificada","COL - Apiay","Colombia","Ecopetrol","b. Conversion","b.5 Coking -- Fluid"]
[2012,"2012-10-01","Verificada","COL - Apiay","Colombia","Ecopetrol","b. Conversion","b.6 Visbreaking"]
[2012,"2012-10-01","Verificada","COL - Apiay","Colombia","Ecopetrol","c. Upgrading","c.1 H-Oil"]
[2012,"2012-10-01","Verificada","COL - Apiay","Colombia","Ecopetrol","c. Upgrading","c.2 HDH"]
[2012,"2012-10-01","Verificada","COL - Apiay","Colombia","Ecopetrol","c. Upgrading","c.3 Alkylation (Product basis)"]
[2012,"2012-10-01","Verificada","COL - Apiay","Colombia","Ecopetrol","c. Upgrading","c.4 Polymerization"]
[2012,"2012-10-01","Verificada","COL - Apiay","Colombia","Ecopetrol","c. Upgrading","c.5 C5/C6 Isomerization"]
[2012,"2012-10-01","Verificada","COL - Apiay","Colombia","Ecopetrol","c. Upgrading","c.6 Catalytic Reforming -- Low Pressure"]
[2012,"2012-10-01","Verificada","COL - Apiay","Colombia","Ecopetrol","c. Upgrading","c.7 Catalytic Reforming -- Medium Pressure"]
[2012,"2012-10-01","Verificada","COL - Apiay","Colombia","Ecopetrol","c. Upgrading","c.8 Catalytic Reforming -- High Pressure"]
[2012,"2012-10-01","Verificada","COL - Apiay","Colombia","Ecopetrol","d. Hydrotreating","d.1 Gasoline/Naphtha Hydrotreating"]
[2012,"2012-10-01","Verificada","COL - Apiay","Colombia","Ecopetrol","d. Hydrotreating","d.2 Kerosene Hydrotreating"]
[2012,"2012-10-01","Verificada","COL - Apiay","Colombia","Ecopetrol","d. Hydrotreating","d.3 Distillate Hydrotreating"]
[2012,"2012-10-01","Verificada","COL - Apiay","Colombia","Ecopetrol","d. Hydrotreating","d.4 Residual Desulfurization"]
[2012,"2012-10-01","Verificada","COL - Apiay","Colombia","Ecopetrol","d. Hydrotreating","d.5 Gas Oil Desulfurization"]
[2012,"2012-10-01","Verificada","COL - Apiay","Colombia","Ecopetrol","e. Hydrogen (k scf/d)","e.1 Hydrogen Generation"]
[2012,"2012-10-01","Verificada","COL - Apiay","Colombia","Ecopetrol","e. Hydrogen (k scf/d)","e.2 Purification"]
[2012,"2012-10-01","Verificada","COL - Apiay","Colombia","Ecopetrol","f. Other","f.1 Aromatic Solvent Extraction"]
[2012,"2012-10-01","Verificada","COL - Apiay","Colombia","Ecopetrol","f. Other","f.2 Other Aromatic Process"]
[2012,"2012-10-01","Verificada","COL - Apiay","Colombia","Ecopetrol","f. Other","f.3 C4 Isomerization"]
[2012,"2012-10-01","Verificada","COL - Apiay","Colombia","Ecopetrol","f. Other","f.4 Solvent Desaphalting"]
[2012,"2012-10-01","Verificada","COL - Apiay","Colombia","Ecopetrol","f. Other","f.5 Lubes & Waxes"]
[2012,"2012-10-01","Verificada","COL - Apiay","Colombia","Ecopetrol","f. Other","f.6 Asphalt & Bitumen Manufacture"]
[2012,"2012-10-01","Verificada","COL - Apiay","Colombia","Ecopetrol","f. Other","f.7 Sulfur Recovery Unit (tonnes/day)"]
[2012,"2012-10-01","Verificada","COL - Apiay","Colombia","Ecopetrol","g. Fractionation","g.1 Propane/Propylene Splitter"]
[2012,"2012-10-01","Verificada","COL - Apiay","Colombia","Ecopetrol","g. Fractionation","g.2 Deisobutanizer"]
[2012,"2012-10-01","Verificada","COL - Apiay","Colombia","Ecopetrol","g. Fractionation","g.3 Deisopentanizer"]
[2012,"2012-10-01","Verificada","COL - Apiay","Colombia","Ecopetrol","g. Fractionation","g.4 Deisohexanizer"]
[2012,"2012-10-01","Verificada","COL - Apiay","Colombia","Ecopetrol","g. Fractionation","g.5 Alkylate Splitter"]
[2012,"2012-10-01","Verificada","COL - Apiay","Colombia","Ecopetrol","g. Fractionation","g.6 Reformate Splitter"]
[2012,"2012-10-01","Verificada","COL - Apiay","Colombia","Ecopetrol","g. Fractionation","g.7 Cat Cracked Gasoline Splitter"]
[2012,"2012-10-01","Verificada","COL - Apiay","Colombia","Ecopetrol","h. Oxygenates","h.1 MTBE"]
[2012,"2012-10-01","Verificada","COL - Apiay","Colombia","Ecopetrol","h. Oxygenates","h.2 TAME"]
[2012,"2012-10-01","Verificada","COL - Apiay","Colombia","Ecopetrol","i. Tank Storage (bbl)","i.1 Crude Oil"]
[2012,"2012-10-01","Verificada","COL - Apiay","Colombia","Ecopetrol","i. Tank Storage (bbl)","i.2 Gasoline"]
[2012,"2012-10-01","Verificada","COL - Apiay","Colombia","Ecopetrol","i. Tank Storage (bbl)","i.3 Diesel"]
[2012,"2012-10-01","Verificada","COL - Apiay","Colombia","Ecopetrol","j. Conversion Rate ","j.1 Conversion Rate ",0]
[2012,"2012-10-01","Verificada","COL - Apiay","Colombia","Ecopetrol","k. Desulfurization Rate (%)","k.1 Desulfurization Rate (%)",{"$f":"SUM(I1250:I1254)/I1234","v":0}]
[2012,"2012-10-01","Verificada","COL - Orito","Colombia","Ecopetrol","a. Crude Distillation","a.1 Atmospheric Crude Distillation",1800]
[2012,"2012-10-01","Verificada","COL - Orito","Colombia","Ecopetrol","a. Crude Distillation","a.2 Vacuum Distillation"]
[2012,"2012-10-01","Verificada","COL - Orito","Colombia","Ecopetrol","b. Conversion","b.1 Catalytic Cracking"]
[2012,"2012-10-01","Verificada","COL - Orito","Colombia","Ecopetrol","b. Conversion","b.2 Resid Cat Cracking"]
[2012,"2012-10-01","Verificada","COL - Orito","Colombia","Ecopetrol","b. Conversion","b.3 Hydrocracking (Mild Conversion)"]
[2012,"2012-10-01","Verificada","COL - Orito","Colombia","Ecopetrol","b. Conversion","b.4 Coking -- Delayed"]
[2012,"2012-10-01","Verificada","COL - Orito","Colombia","Ecopetrol","b. Conversion","b.5 Coking -- Fluid"]
[2012,"2012-10-01","Verificada","COL - Orito","Colombia","Ecopetrol","b. Conversion","b.6 Visbreaking"]
[2012,"2012-10-01","Verificada","COL - Orito","Colombia","Ecopetrol","c. Upgrading","c.1 H-Oil"]
[2012,"2012-10-01","Verificada","COL - Orito","Colombia","Ecopetrol","c. Upgrading","c.2 HDH"]
[2012,"2012-10-01","Verificada","COL - Orito","Colombia","Ecopetrol","c. Upgrading","c.3 Alkylation (Product basis)"]
[2012,"2012-10-01","Verificada","COL - Orito","Colombia","Ecopetrol","c. Upgrading","c.4 Polymerization"]
[2012,"2012-10-01","Verificada","COL - Orito","Colombia","Ecopetrol","c. Upgrading","c.5 C5/C6 Isomerization"]
[2012,"2012-10-01","Verificada","COL - Orito","Colombia","Ecopetrol","c. Upgrading","c.6 Catalytic Reforming -- Low Pressure"]
[2012,"2012-10-01","Verificada","COL - Orito","Colombia","Ecopetrol","c. Upgrading","c.7 Catalytic Reforming -- Medium Pressure"]
[2012,"2012-10-01","Verificada","COL - Orito","Colombia","Ecopetrol","c. Upgrading","c.8 Catalytic Reforming -- High Pressure"]
[2012,"2012-10-01","Verificada","COL - Orito","Colombia","Ecopetrol","d. Hydrotreating","d.1 Gasoline/Naphtha Hydrotreating"]
[2012,"2012-10-01","Verificada","COL - Orito","Colombia","Ecopetrol","d. Hydrotreating","d.2 Kerosene Hydrotreating"]
[2012,"2012-10-01","Verificada","COL - Orito","Colombia","Ecopetrol","d. Hydrotreating","d.3 Distillate Hydrotreating"]
[2012,"2012-10-01","Verificada","COL - Orito","Colombia","Ecopetrol","d. Hydrotreating","d.4 Residual Desulfurization"]
[2012,"2012-10-01","Verificada","COL - Orito","Colombia","Ecopetrol","d. Hydrotreating","d.5 Gas Oil Desulfurization"]
[2012,"2012-10-01","Verificada","COL - Orito","Colombia","Ecopetrol","e. Hydrogen (k scf/d)","e.1 Hydrogen Generation"]
[2012,"2012-10-01","Verificada","COL - Orito","Colombia","Ecopetrol","e. Hydrogen (k scf/d)","e.2 Purification"]
[2012,"2012-10-01","Verificada","COL - Orito","Colombia","Ecopetrol","f. Other","f.1 Aromatic Solvent Extraction"]
[2012,"2012-10-01","Verificada","COL - Orito","Colombia","Ecopetrol","f. Other","f.2 Other Aromatic Process"]
[2012,"2012-10-01","Verificada","COL - Orito","Colombia","Ecopetrol","f. Other","f.3 C4 Isomerization"]
[2012,"2012-10-01","Verificada","COL - Orito","Colombia","Ecopetrol","f. Other","f.4 Solvent Desaphalting"]
[2012,"2012-10-01","Verificada","COL - Orito","Colombia","Ecopetrol","f. Other","f.5 Lubes & Waxes"]
[2012,"2012-10-01","Verificada","COL - Orito","Colombia","Ecopetrol","f. Other","f.6 Asphalt & Bitumen Manufacture"]
[2012,"2012-10-01","Verificada","COL - Orito","Colombia","Ecopetrol","f. Other","f.7 Sulfur Recovery Unit (tonnes/day)"]
[2012,"2012-10-01","Verificada","COL - Orito","Colombia","Ecopetrol","g. Fractionation","g.1 Propane/Propylene Splitter"]
[2012,"2012-10-01","Verificada","COL - Orito","Colombia","Ecopetrol","g. Fractionation","g.2 Deisobutanizer"]
[2012,"2012-10-01","Verificada","COL - Orito","Colombia","Ecopetrol","g. Fractionation","g.3 Deisopentanizer"]
[2012,"2012-10-01","Verificada","COL - Orito","Colombia","Ecopetrol","g. Fractionation","g.4 Deisohexanizer"]
[2012,"2012-10-01","Verificada","COL - Orito","Colombia","Ecopetrol","g. Fractionation","g.5 Alkylate Splitter"]
[2012,"2012-10-01","Verificada","COL - Orito","Colombia","Ecopetrol","g. Fractionation","g.6 Reformate Splitter"]
[2012,"2012-10-01","Verificada","COL - Orito","Colombia","Ecopetrol","g. Fractionation","g.7 Cat Cracked Gasoline Splitter"]
[2012,"2012-10-01","Verificada","COL - Orito","Colombia","Ecopetrol","h. Oxygenates","h.1 MTBE"]
[2012,"2012-10-01","Verificada","COL - Orito","Colombia","Ecopetrol","h. Oxygenates","h.2 TAME"]
[2012,"2012-10-01","Verificada","COL - Orito","Colombia","Ecopetrol","i. Tank Storage (bbl)","i.1 Crude Oil"]
[2012,"2012-10-01","Verificada","COL - Orito","Colombia","Ecopetrol","i. Tank Storage (bbl)","i.2 Gasoline"]
[2012,"2012-10-01","Verificada","COL - Orito","Colombia","Ecopetrol","i. Tank Storage (bbl)","i.3 Diesel"]
[2012,"2012-10-01","Verificada","COL - Orito","Colombia","Ecopetrol","j. Conversion Rate ","j.1 Conversion Rate ",0]
[2012,"2012-10-01","Verificada","COL - Orito","Colombia","Ecopetrol","k. Desulfurization Rate (%)","k.1 Desulfurization Rate (%)",{"$f":"SUM(I1294:I1298)/I1278","v":0}]
[2012,"2012-10-01","Verificada","MEX - Guanajuato","México","PEMEX","a. Crude Distillation","a.1 Atmospheric Crude Distillation",245000]
[2012,"2012-10-01","Verificada","MEX - Guanajuato","México","PEMEX","a. Crude Distillation","a.2 Vacuum Distillation",137500]
[2012,"2012-10-01","Verificada","MEX - Guanajuato","México","PEMEX","b. Conversion","b.1 Catalytic Cracking",40000]
[2012,"2012-10-01","Verificada","MEX - Guanajuato","México","PEMEX","b. Conversion","b.2 Resid Cat Cracking"]
[2012,"2012-10-01","Verificada","MEX - Guanajuato","México","PEMEX","b. Conversion","b.3 Hydrocracking (Mild Conversion)"]
[2012,"2012-10-01","Verificada","MEX - Guanajuato","México","PEMEX","b. Conversion","b.4 Coking -- Delayed"]
[2012,"2012-10-01","Verificada","MEX - Guanajuato","México","PEMEX","b. Conversion","b.5 Coking -- Fluid"]
[2012,"2012-10-01","Verificada","MEX - Guanajuato","México","PEMEX","b. Conversion","b.6 Visbreaking"]
[2012,"2012-10-01","Verificada","MEX - Guanajuato","México","PEMEX","c. Upgrading","c.1 H-Oil",18500]
[2012,"2012-10-01","Verificada","MEX - Guanajuato","México","PEMEX","c. Upgrading","c.2 HDH"]
[2012,"2012-10-01","Verificada","MEX - Guanajuato","México","PEMEX","c. Upgrading","c.3 Alkylation (Product basis)",3400]
[2012,"2012-10-01","Verificada","MEX - Guanajuato","México","PEMEX","c. Upgrading","c.4 Polymerization"]
[2012,"2012-10-01","Verificada","MEX - Guanajuato","México","PEMEX","c. Upgrading","c.5 C5/C6 Isomerization",12000]
[2012,"2012-10-01","Verificada","MEX - Guanajuato","México","PEMEX","c. Upgrading","c.6 Catalytic Reforming -- Low Pressure",47300]
[2012,"2012-10-01","Verificada","MEX - Guanajuato","México","PEMEX","c. Upgrading","c.7 Catalytic Reforming -- Medium Pressure"]
[2012,"2012-10-01","Verificada","MEX - Guanajuato","México","PEMEX","c. Upgrading","c.8 Catalytic Reforming -- High Pressure"]
[2012,"2012-10-01","Verificada","MEX - Guanajuato","México","PEMEX","d. Hydrotreating","d.1 Gasoline/Naphtha Hydrotreating",61500]
[2012,"2012-10-01","Verificada","MEX - Guanajuato","México","PEMEX","d. Hydrotreating","d.2 Kerosene Hydrotreating"]
[2012,"2012-10-01","Verificada","MEX - Guanajuato","México","PEMEX","d. Hydrotreating","d.3 Distillate Hydrotreating",53000]
[2012,"2012-10-01","Verificada","MEX - Guanajuato","México","PEMEX","d. Hydrotreating","d.4 Residual Desulfurization"]
[2012,"2012-10-01","Verificada","MEX - Guanajuato","México","PEMEX","d. Hydrotreating","d.5 Gas Oil Desulfurization"]
[2012,"2012-10-01","Verificada","MEX - Guanajuato","México","PEMEX","e. Hydrogen (k scf/d)","e.1 Hydrogen Generation",16500]
[2012,"2012-10-01","Verificada","MEX - Guanajuato","México","PEMEX","e. Hydrogen (k scf/d)","e.2 Purification"]
[2012,"2012-10-01","Verificada","MEX - Guanajuato","México","PEMEX","f. Other","f.1 Aromatic Solvent Extraction"]
[2012,"2012-10-01","Verificada","MEX - Guanajuato","México","PEMEX","f. Other","f.2 Other Aromatic Process"]
[2012,"2012-10-01","Verificada","MEX - Guanajuato","México","PEMEX","f. Other","f.3 C4 Isomerization"]
[2012,"2012-10-01","Verificada","MEX - Guanajuato","México","PEMEX","f. Other","f.4 Solvent Desaphalting"]
[2012,"2012-10-01","Verificada","MEX - Guanajuato","México","PEMEX","f. Other","f.5 Lubes & Waxes",30500]
[2012,"2012-10-01","Verificada","MEX - Guanajuato","México","PEMEX","f. Other","f.6 Asphalt & Bitumen Manufacture"]
[2012,"2012-10-01","Verificada","MEX - Guanajuato","México","PEMEX","f. Other","f.7 Sulfur Recovery Unit (tonnes/day)",240]
[2012,"2012-10-01","Verificada","MEX - Guanajuato","México","PEMEX","g. Fractionation","g.1 Propane/Propylene Splitter",4000]
[2012,"2012-10-01","Verificada","MEX - Guanajuato","México","PEMEX","g. Fractionation","g.2 Deisobutanizer"]
[2012,"2012-10-01","Verificada","MEX - Guanajuato","México","PEMEX","g. Fractionation","g.3 Deisopentanizer"]
[2012,"2012-10-01","Verificada","MEX - Guanajuato","México","PEMEX","g. Fractionation","g.4 Deisohexanizer"]
[2012,"2012-10-01","Verificada","MEX - Guanajuato","México","PEMEX","g. Fractionation","g.5 Alkylate Splitter"]
[2012,"2012-10-01","Verificada","MEX - Guanajuato","México","PEMEX","g. Fractionation","g.6 Reformate Splitter"]
[2012,"2012-10-01","Verificada","MEX - Guanajuato","México","PEMEX","g. Fractionation","g.7 Cat Cracked Gasoline Splitter"]
[2012,"2012-10-01","Verificada","MEX - Guanajuato","México","PEMEX","h. Oxygenates","h.1 MTBE",1100]
[2012,"2012-10-01","Verificada","MEX - Guanajuato","México","PEMEX","h. Oxygenates","h.2 TAME"]
[2012,"2012-10-01","Verificada","MEX - Guanajuato","México","PEMEX","i. Tank Storage (bbl)","i.1 Crude Oil",825000]
[2012,"2012-10-01","Verificada","MEX - Guanajuato","México","PEMEX","i. Tank Storage (bbl)","i.2 Gasoline",793000]
[2012,"2012-10-01","Verificada","MEX - Guanajuato","México","PEMEX","i. Tank Storage (bbl)","i.3 Diesel",231000]
[2012,"2012-10-01","Verificada","MEX - Guanajuato","México","PEMEX","j. Conversion Rate ","j.1 Conversion Rate ",{"$f":"(+I1324+(I1338+I1339+I1340)*1.33+I1329*0.33+(I1327+I1328)*1.7)/I1322","v":0.7848367346938776},null,null,null,null,"Conversion Rate % (FCC equiv) = (Cap. FCC x 1 + Cap. HYD x 1,3 + Cap. VISB x 0,33 + Cap. Coking x 1,7.)*100/Distillation Capacity"]
[2012,"2012-10-01","Verificada","MEX - Guanajuato","México","PEMEX","k. Desulfurization Rate (%)","k.1 Desulfurization Rate (%)",{"$f":"SUM(I1338:I1342)/I1322","v":0.4673469387755102}]
[2012,"2012-10-01","Verificada","MEX - Oaxaca","México","PEMEX","a. Crude Distillation","a.1 Atmospheric Crude Distillation",330000]
[2012,"2012-10-01","Verificada","MEX - Oaxaca","México","PEMEX","a. Crude Distillation","a.2 Vacuum Distillation",180000]
[2012,"2012-10-01","Verificada","MEX - Oaxaca","México","PEMEX","b. Conversion","b.1 Catalytic Cracking",80000]
[2012,"2012-10-01","Verificada","MEX - Oaxaca","México","PEMEX","b. Conversion","b.2 Resid Cat Cracking"]
[2012,"2012-10-01","Verificada","MEX - Oaxaca","México","PEMEX","b. Conversion","b.3 Hydrocracking (Mild Conversion)"]
[2012,"2012-10-01","Verificada","MEX - Oaxaca","México","PEMEX","b. Conversion","b.4 Coking -- Delayed"]
[2012,"2012-10-01","Verificada","MEX - Oaxaca","México","PEMEX","b. Conversion","b.5 Coking -- Fluid"]
[2012,"2012-10-01","Verificada","MEX - Oaxaca","México","PEMEX","b. Conversion","b.6 Visbreaking",50000]
[2012,"2012-10-01","Verificada","MEX - Oaxaca","México","PEMEX","c. Upgrading","c.1 H-Oil"]
[2012,"2012-10-01","Verificada","MEX - Oaxaca","México","PEMEX","c. Upgrading","c.2 HDH"]
[2012,"2012-10-01","Verificada","MEX - Oaxaca","México","PEMEX","c. Upgrading","c.3 Alkylation (Product basis)",14500]
[2012,"2012-10-01","Verificada","MEX - Oaxaca","México","PEMEX","c. Upgrading","c.4 Polymerization"]
[2012,"2012-10-01","Verificada","MEX - Oaxaca","México","PEMEX","c. Upgrading","c.5 C5/C6 Isomerization",15000]
[2012,"2012-10-01","Verificada","MEX - Oaxaca","México","PEMEX","c. Upgrading","c.6 Catalytic Reforming -- Low Pressure",20000]
[2012,"2012-10-01","Verificada","MEX - Oaxaca","México","PEMEX","c. Upgrading","c.7 Catalytic Reforming -- Medium Pressure",30000]
[2012,"2012-10-01","Verificada","MEX - Oaxaca","México","PEMEX","c. Upgrading","c.8 Catalytic Reforming -- High Pressure"]
[2012,"2012-10-01","Verificada","MEX - Oaxaca","México","PEMEX","d. Hydrotreating","d.1 Gasoline/Naphtha Hydrotreating",65000]
[2012,"2012-10-01","Verificada","MEX - Oaxaca","México","PEMEX","d. Hydrotreating","d.2 Kerosene Hydrotreating",50000]
[2012,"2012-10-01","Verificada","MEX - Oaxaca","México","PEMEX","d. Hydrotreating","d.3 Distillate Hydrotreating",50000]
[2012,"2012-10-01","Verificada","MEX - Oaxaca","México","PEMEX","d. Hydrotreating","d.4 Residual Desulfurization"]
[2012,"2012-10-01","Verificada","MEX - Oaxaca","México","PEMEX","d. Hydrotreating","d.5 Gas Oil Desulfurization"]
[2012,"2012-10-01","Verificada","MEX - Oaxaca","México","PEMEX","e. Hydrogen (k scf/d)","e.1 Hydrogen Generation"]
[2012,"2012-10-01","Verificada","MEX - Oaxaca","México","PEMEX","e. Hydrogen (k scf/d)","e.2 Purification"]
[2012,"2012-10-01","Verificada","MEX - Oaxaca","México","PEMEX","f. Other","f.1 Aromatic Solvent Extraction"]
[2012,"2012-10-01","Verificada","MEX - Oaxaca","México","PEMEX","f. Other","f.2 Other Aromatic Process"]
[2012,"2012-10-01","Verificada","MEX - Oaxaca","México","PEMEX","f. Other","f.3 C4 Isomerization"]
[2012,"2012-10-01","Verificada","MEX - Oaxaca","México","PEMEX","f. Other","f.4 Solvent Desaphalting"]
[2012,"2012-10-01","Verificada","MEX - Oaxaca","México","PEMEX","f. Other","f.5 Lubes & Waxes"]
[2012,"2012-10-01","Verificada","MEX - Oaxaca","México","PEMEX","f. Other","f.6 Asphalt & Bitumen Manufacture"]
[2012,"2012-10-01","Verificada","MEX - Oaxaca","México","PEMEX","f. Other","f.7 Sulfur Recovery Unit (tonnes/day)",240]
[2012,"2012-10-01","Verificada","MEX - Oaxaca","México","PEMEX","g. Fractionation","g.1 Propane/Propylene Splitter"]
[2012,"2012-10-01","Verificada","MEX - Oaxaca","México","PEMEX","g. Fractionation","g.2 Deisobutanizer"]
[2012,"2012-10-01","Verificada","MEX - Oaxaca","México","PEMEX","g. Fractionation","g.3 Deisopentanizer"]
[2012,"2012-10-01","Verificada","MEX - Oaxaca","México","PEMEX","g. Fractionation","g.4 Deisohexanizer"]
[2012,"2012-10-01","Verificada","MEX - Oaxaca","México","PEMEX","g. Fractionation","g.5 Alkylate Splitter"]
[2012,"2012-10-01","Verificada","MEX - Oaxaca","México","PEMEX","g. Fractionation","g.6 Reformate Splitter"]
[2012,"2012-10-01","Verificada","MEX - Oaxaca","México","PEMEX","g. Fractionation","g.7 Cat Cracked Gasoline Splitter"]
[2012,"2012-10-01","Verificada","MEX - Oaxaca","México","PEMEX","h. Oxygenates","h.1 MTBE",800]
[2012,"2012-10-01","Verificada","MEX - Oaxaca","México","PEMEX","h. Oxygenates","h.2 TAME",1500]
[2012,"2012-10-01","Verificada","MEX - Oaxaca","México","PEMEX","i. Tank Storage (bbl)","i.1 Crude Oil",2931000]
[2012,"2012-10-01","Verificada","MEX - Oaxaca","México","PEMEX","i. Tank Storage (bbl)","i.2 Gasoline",1115000]
[2012,"2012-10-01","Verificada","MEX - Oaxaca","México","PEMEX","i. Tank Storage (bbl)","i.3 Diesel",585000]
[2012,"2012-10-01","Verificada","MEX - Oaxaca","México","PEMEX","j. Conversion Rate ","j.1 Conversion Rate ",{"$f":"(+I1368+(I1382+I1383+I1384)*1.33+I1373*0.33+(I1371+I1372)*1.7)/I1366","v":0.9574242424242424}]
[2012,"2012-10-01","Verificada","MEX - Oaxaca","México","PEMEX","k. Desulfurization Rate (%)","k.1 Desulfurization Rate (%)",{"$f":"SUM(I1382:I1386)/I1366","v":0.5}]
[2012,"2012-10-01","Verificada","MEX - Hidalgo","México","PEMEX","a. Crude Distillation","a.1 Atmospheric Crude Distillation",315000]
[2012,"2012-10-01","Verificada","MEX - Hidalgo","México","PEMEX","a. Crude Distillation","a.2 Vacuum Distillation",136800]
[2012,"2012-10-01","Verificada","MEX - Hidalgo","México","PEMEX","b. Conversion","b.1 Catalytic Cracking",80000]
[2012,"2012-10-01","Verificada","MEX - Hidalgo","México","PEMEX","b. Conversion","b.2 Resid Cat Cracking"]
[2012,"2012-10-01","Verificada","MEX - Hidalgo","México","PEMEX","b. Conversion","b.3 Hydrocracking (Mild Conversion)"]
[2012,"2012-10-01","Verificada","MEX - Hidalgo","México","PEMEX","b. Conversion","b.4 Coking -- Delayed"]
[2012,"2012-10-01","Verificada","MEX - Hidalgo","México","PEMEX","b. Conversion","b.5 Coking -- Fluid"]
[2012,"2012-10-01","Verificada","MEX - Hidalgo","México","PEMEX","b. Conversion","b.6 Visbreaking",41000]
[2012,"2012-10-01","Verificada","MEX - Hidalgo","México","PEMEX","c. Upgrading","c.1 H-Oil",50000]
[2012,"2012-10-01","Verificada","MEX - Hidalgo","México","PEMEX","c. Upgrading","c.2 HDH"]
[2012,"2012-10-01","Verificada","MEX - Hidalgo","México","PEMEX","c. Upgrading","c.3 Alkylation (Product basis)",7700]
[2012,"2012-10-01","Verificada","MEX - Hidalgo","México","PEMEX","c. Upgrading","c.4 Polymerization"]
[2012,"2012-10-01","Verificada","MEX - Hidalgo","México","PEMEX","c. Upgrading","c.5 C5/C6 Isomerization",15000]
[2012,"2012-10-01","Verificada","MEX - Hidalgo","México","PEMEX","c. Upgrading","c.6 Catalytic Reforming -- Low Pressure",35000]
[2012,"2012-10-01","Verificada","MEX - Hidalgo","México","PEMEX","c. Upgrading","c.7 Catalytic Reforming -- Medium Pressure",30000]
[2012,"2012-10-01","Verificada","MEX - Hidalgo","México","PEMEX","c. Upgrading","c.8 Catalytic Reforming -- High Pressure"]
[2012,"2012-10-01","Verificada","MEX - Hidalgo","México","PEMEX","d. Hydrotreating","d.1 Gasoline/Naphtha Hydrotreating",73000]
[2012,"2012-10-01","Verificada","MEX - Hidalgo","México","PEMEX","d. Hydrotreating","d.2 Kerosene Hydrotreating",100000]
[2012,"2012-10-01","Verificada","MEX - Hidalgo","México","PEMEX","d. Hydrotreating","d.3 Distillate Hydrotreating",48000]
[2012,"2012-10-01","Verificada","MEX - Hidalgo","México","PEMEX","d. Hydrotreating","d.4 Residual Desulfurization"]
[2012,"2012-10-01","Verificada","MEX - Hidalgo","México","PEMEX","d. Hydrotreating","d.5 Gas Oil Desulfurization"]
[2012,"2012-10-01","Verificada","MEX - Hidalgo","México","PEMEX","e. Hydrogen (k scf/d)","e.1 Hydrogen Generation"]
[2012,"2012-10-01","Verificada","MEX - Hidalgo","México","PEMEX","e. Hydrogen (k scf/d)","e.2 Purification"]
[2012,"2012-10-01","Verificada","MEX - Hidalgo","México","PEMEX","f. Other","f.1 Aromatic Solvent Extraction"]
[2012,"2012-10-01","Verificada","MEX - Hidalgo","México","PEMEX","f. Other","f.2 Other Aromatic Process"]
[2012,"2012-10-01","Verificada","MEX - Hidalgo","México","PEMEX","f. Other","f.3 C4 Isomerization",2500]
[2012,"2012-10-01","Verificada","MEX - Hidalgo","México","PEMEX","f. Other","f.4 Solvent Desaphalting"]
[2012,"2012-10-01","Verificada","MEX - Hidalgo","México","PEMEX","f. Other","f.5 Lubes & Waxes"]
[2012,"2012-10-01","Verificada","MEX - Hidalgo","México","PEMEX","f. Other","f.6 Asphalt & Bitumen Manufacture",5000]
[2012,"2012-10-01","Verificada","MEX - Hidalgo","México","PEMEX","f. Other","f.7 Sulfur Recovery Unit (tonnes/day)",1000]
[2012,"2012-10-01","Verificada","MEX - Hidalgo","México","PEMEX","g. Fractionation","g.1 Propane/Propylene Splitter"]
[2012,"2012-10-01","Verificada","MEX - Hidalgo","México","PEMEX","g. Fractionation","g.2 Deisobutanizer"]
[2012,"2012-10-01","Verificada","MEX - Hidalgo","México","PEMEX","g. Fractionation","g.3 Deisopentanizer"]
[2012,"2012-10-01","Verificada","MEX - Hidalgo","México","PEMEX","g. Fractionation","g.4 Deisohexanizer"]
[2012,"2012-10-01","Verificada","MEX - Hidalgo","México","PEMEX","g. Fractionation","g.5 Alkylate Splitter"]
[2012,"2012-10-01","Verificada","MEX - Hidalgo","México","PEMEX","g. Fractionation","g.6 Reformate Splitter"]
[2012,"2012-10-01","Verificada","MEX - Hidalgo","México","PEMEX","g. Fractionation","g.7 Cat Cracked Gasoline Splitter"]
[2012,"2012-10-01","Verificada","MEX - Hidalgo","México","PEMEX","h. Oxygenates","h.1 MTBE",2200]
[2012,"2012-10-01","Verificada","MEX - Hidalgo","México","PEMEX","h. Oxygenates","h.2 TAME",2200]
[2012,"2012-10-01","Verificada","MEX - Hidalgo","México","PEMEX","i. Tank Storage (bbl)","i.1 Crude Oil",1147000]
[2012,"2012-10-01","Verificada","MEX - Hidalgo","México","PEMEX","i. Tank Storage (bbl)","i.2 Gasoline",466000]
[2012,"2012-10-01","Verificada","MEX - Hidalgo","México","PEMEX","i. Tank Storage (bbl)","i.3 Diesel",599000]
[2012,"2012-10-01","Verificada","MEX - Hidalgo","México","PEMEX","j. Conversion Rate ","j.1 Conversion Rate ",{"$f":"(+I1412+(I1426+I1427+I1428)*1.33+I1417*0.33+(I1415+I1416)*1.7)/I1410","v":1.230031746031746}]
[2012,"2012-10-01","Verificada","MEX - Hidalgo","México","PEMEX","k. Desulfurization Rate (%)","k.1 Desulfurization Rate (%)",{"$f":"SUM(I1426:I1430)/I1410","v":0.70158730158730154}]
[2012,"2012-10-01","Verificada","MEX - Nuevo León","México","PEMEX","a. Crude Distillation","a.1 Atmospheric Crude Distillation",275000]
[2012,"2012-10-01","Verificada","MEX - Nuevo León","México","PEMEX","a. Crude Distillation","a.2 Vacuum Distillation",128000]
[2012,"2012-10-01","Verificada","MEX - Nuevo León","México","PEMEX","b. Conversion","b.1 Catalytic Cracking",90000]
[2012,"2012-10-01","Verificada","MEX - Nuevo León","México","PEMEX","b. Conversion","b.2 Resid Cat Cracking"]
[2012,"2012-10-01","Verificada","MEX - Nuevo León","México","PEMEX","b. Conversion","b.3 Hydrocracking (Mild Conversion)"]
[2012,"2012-10-01","Verificada","MEX - Nuevo León","México","PEMEX","b. Conversion","b.4 Coking -- Delayed",54000]
[2012,"2012-10-01","Verificada","MEX - Nuevo León","México","PEMEX","b. Conversion","b.5 Coking -- Fluid"]
[2012,"2012-10-01","Verificada","MEX - Nuevo León","México","PEMEX","b. Conversion","b.6 Visbreaking"]
[2012,"2012-10-01","Verificada","MEX - Nuevo León","México","PEMEX","c. Upgrading","c.1 H-Oil"]
[2012,"2012-10-01","Verificada","MEX - Nuevo León","México","PEMEX","c. Upgrading","c.2 HDH"]
[2012,"2012-10-01","Verificada","MEX - Nuevo León","México","PEMEX","c. Upgrading","c.3 Alkylation (Product basis)",11100]
[2012,"2012-10-01","Verificada","MEX - Nuevo León","México","PEMEX","c. Upgrading","c.4 Polymerization"]
[2012,"2012-10-01","Verificada","MEX - Nuevo León","México","PEMEX","c. Upgrading","c.5 C5/C6 Isomerization",12000]
[2012,"2012-10-01","Verificada","MEX - Nuevo León","México","PEMEX","c. Upgrading","c.6 Catalytic Reforming -- Low Pressure",46000]
[2012,"2012-10-01","Verificada","MEX - Nuevo León","México","PEMEX","c. Upgrading","c.7 Catalytic Reforming -- Medium Pressure"]
[2012,"2012-10-01","Verificada","MEX - Nuevo León","México","PEMEX","c. Upgrading","c.8 Catalytic Reforming -- High Pressure"]
[2012,"2012-10-01","Verificada","MEX - Nuevo León","México","PEMEX","d. Hydrotreating","d.1 Gasoline/Naphtha Hydrotreating",61500]
[2012,"2012-10-01","Verificada","MEX - Nuevo León","México","PEMEX","d. Hydrotreating","d.2 Kerosene Hydrotreating",25000]
[2012,"2012-10-01","Verificada","MEX - Nuevo León","México","PEMEX","d. Hydrotreating","d.3 Distillate Hydrotreating",60000]
[2012,"2012-10-01","Verificada","MEX - Nuevo León","México","PEMEX","d. Hydrotreating","d.4 Residual Desulfurization"]
[2012,"2012-10-01","Verificada","MEX - Nuevo León","México","PEMEX","d. Hydrotreating","d.5 Gas Oil Desulfurization",40000]
[2012,"2012-10-01","Verificada","MEX - Nuevo León","México","PEMEX","e. Hydrogen (k scf/d)","e.1 Hydrogen Generation",588]
[2012,"2012-10-01","Verificada","MEX - Nuevo León","México","PEMEX","e. Hydrogen (k scf/d)","e.2 Purification"]
[2012,"2012-10-01","Verificada","MEX - Nuevo León","México","PEMEX","f. Other","f.1 Aromatic Solvent Extraction"]
[2012,"2012-10-01","Verificada","MEX - Nuevo León","México","PEMEX","f. Other","f.2 Other Aromatic Process"]
[2012,"2012-10-01","Verificada","MEX - Nuevo León","México","PEMEX","f. Other","f.3 C4 Isomerization"]
[2012,"2012-10-01","Verificada","MEX - Nuevo León","México","PEMEX","f. Other","f.4 Solvent Desaphalting"]
[2012,"2012-10-01","Verificada","MEX - Nuevo León","México","PEMEX","f. Other","f.5 Lubes & Waxes"]
[2012,"2012-10-01","Verificada","MEX - Nuevo León","México","PEMEX","f. Other","f.6 Asphalt & Bitumen Manufacture",15000]
[2012,"2012-10-01","Verificada","MEX - Nuevo León","México","PEMEX","f. Other","f.7 Sulfur Recovery Unit (tonnes/day)",600]
[2012,"2012-10-01","Verificada","MEX - Nuevo León","México","PEMEX","g. Fractionation","g.1 Propane/Propylene Splitter",7500]
[2012,"2012-10-01","Verificada","MEX - Nuevo León","México","PEMEX","g. Fractionation","g.2 Deisobutanizer"]
[2012,"2012-10-01","Verificada","MEX - Nuevo León","México","PEMEX","g. Fractionation","g.3 Deisopentanizer"]
[2012,"2012-10-01","Verificada","MEX - Nuevo León","México","PEMEX","g. Fractionation","g.4 Deisohexanizer"]
[2012,"2012-10-01","Verificada","MEX - Nuevo León","México","PEMEX","g. Fractionation","g.5 Alkylate Splitter"]
[2012,"2012-10-01","Verificada","MEX - Nuevo León","México","PEMEX","g. Fractionation","g.6 Reformate Splitter"]
[2012,"2012-10-01","Verificada","MEX - Nuevo León","México","PEMEX","g. Fractionation","g.7 Cat Cracked Gasoline Splitter"]
[2012,"2012-10-01","Verificada","MEX - Nuevo León","México","PEMEX","h. Oxygenates","h.1 MTBE",3000]
[2012,"2012-10-01","Verificada","MEX - Nuevo León","México","PEMEX","h. Oxygenates","h.2 TAME"]
[2012,"2012-10-01","Verificada","MEX - Nuevo León","México","PEMEX","i. Tank Storage (bbl)","i.1 Crude Oil",1319000]
[2012,"2012-10-01","Verificada","MEX - Nuevo León","México","PEMEX","i. Tank Storage (bbl)","i.2 Gasoline",762000]
[2012,"2012-10-01","Verificada","MEX - Nuevo León","México","PEMEX","i. Tank Storage (bbl)","i.3 Diesel",515000]
[2012,"2012-10-01","Verificada","MEX - Nuevo León","México","PEMEX","j. Conversion Rate ","j.1 Conversion Rate ",{"$f":"(+I1456+(I1470+I1471+I1472)*1.33+I1461*0.33+(I1459+I1460)*1.7)/I1454","v":1.3696181818181818}]
[2012,"2012-10-01","Verificada","MEX - Nuevo León","México","PEMEX","k. Desulfurization Rate (%)","k.1 Desulfurization Rate (%)",{"$f":"SUM(I1470:I1474)/I1454","v":0.67818181818181822}]
[2012,"2012-10-01","Verificada","MEX - Tamaulipas","México","PEMEX","a. Crude Distillation","a.1 Atmospheric Crude Distillation",190000]
[2012,"2012-10-01","Verificada","MEX - Tamaulipas","México","PEMEX","a. Crude Distillation","a.2 Vacuum Distillation",128500]
[2012,"2012-10-01","Verificada","MEX - Tamaulipas","México","PEMEX","b. Conversion","b.1 Catalytic Cracking",60500]
[2012,"2012-10-01","Verificada","MEX - Tamaulipas","México","PEMEX","b. Conversion","b.2 Resid Cat Cracking"]
[2012,"2012-10-01","Verificada","MEX - Tamaulipas","México","PEMEX","b. Conversion","b.3 Hydrocracking (Mild Conversion)"]
[2012,"2012-10-01","Verificada","MEX - Tamaulipas","México","PEMEX","b. Conversion","b.4 Coking -- Delayed",50000]
[2012,"2012-10-01","Verificada","MEX - Tamaulipas","México","PEMEX","b. Conversion","b.5 Coking -- Fluid"]
[2012,"2012-10-01","Verificada","MEX - Tamaulipas","México","PEMEX","b. Conversion","b.6 Visbreaking"]
[2012,"2012-10-01","Verificada","MEX - Tamaulipas","México","PEMEX","c. Upgrading","c.1 H-Oil"]
[2012,"2012-10-01","Verificada","MEX - Tamaulipas","México","PEMEX","c. Upgrading","c.2 HDH"]
[2012,"2012-10-01","Verificada","MEX - Tamaulipas","México","PEMEX","c. Upgrading","c.3 Alkylation (Product basis)",9000]
[2012,"2012-10-01","Verificada","MEX - Tamaulipas","México","PEMEX","c. Upgrading","c.4 Polymerization"]
[2012,"2012-10-01","Verificada","MEX - Tamaulipas","México","PEMEX","c. Upgrading","c.5 C5/C6 Isomerization",10600]
[2012,"2012-10-01","Verificada","MEX - Tamaulipas","México","PEMEX","c. Upgrading","c.6 Catalytic Reforming -- Low Pressure",30000]
[2012,"2012-10-01","Verificada","MEX - Tamaulipas","México","PEMEX","c. Upgrading","c.7 Catalytic Reforming -- Medium Pressure"]
[2012,"2012-10-01","Verificada","MEX - Tamaulipas","México","PEMEX","c. Upgrading","c.8 Catalytic Reforming -- High Pressure"]
[2012,"2012-10-01","Verificada","MEX - Tamaulipas","México","PEMEX","d. Hydrotreating","d.1 Gasoline/Naphtha Hydrotreating",52000]
[2012,"2012-10-01","Verificada","MEX - Tamaulipas","México","PEMEX","d. Hydrotreating","d.2 Kerosene Hydrotreating",15000]
[2012,"2012-10-01","Verificada","MEX - Tamaulipas","México","PEMEX","d. Hydrotreating","d.3 Distillate Hydrotreating",25000]
[2012,"2012-10-01","Verificada","MEX - Tamaulipas","México","PEMEX","d. Hydrotreating","d.4 Residual Desulfurization"]
[2012,"2012-10-01","Verificada","MEX - Tamaulipas","México","PEMEX","d. Hydrotreating","d.5 Gas Oil Desulfurization",49800]
[2012,"2012-10-01","Verificada","MEX - Tamaulipas","México","PEMEX","e. Hydrogen (k scf/d)","e.1 Hydrogen Generation",420]
[2012,"2012-10-01","Verificada","MEX - Tamaulipas","México","PEMEX","e. Hydrogen (k scf/d)","e.2 Purification"]
[2012,"2012-10-01","Verificada","MEX - Tamaulipas","México","PEMEX","f. Other","f.1 Aromatic Solvent Extraction"]
[2012,"2012-10-01","Verificada","MEX - Tamaulipas","México","PEMEX","f. Other","f.2 Other Aromatic Process"]
[2012,"2012-10-01","Verificada","MEX - Tamaulipas","México","PEMEX","f. Other","f.3 C4 Isomerization",2600]
[2012,"2012-10-01","Verificada","MEX - Tamaulipas","México","PEMEX","f. Other","f.4 Solvent Desaphalting"]
[2012,"2012-10-01","Verificada","MEX - Tamaulipas","México","PEMEX","f. Other","f.5 Lubes & Waxes"]
[2012,"2012-10-01","Verificada","MEX - Tamaulipas","México","PEMEX","f. Other","f.6 Asphalt & Bitumen Manufacture",18000]
[2012,"2012-10-01","Verificada","MEX - Tamaulipas","México","PEMEX","f. Other","f.7 Sulfur Recovery Unit (tonnes/day)",710]
[2012,"2012-10-01","Verificada","MEX - Tamaulipas","México","PEMEX","g. Fractionation","g.1 Propane/Propylene Splitter"]
[2012,"2012-10-01","Verificada","MEX - Tamaulipas","México","PEMEX","g. Fractionation","g.2 Deisobutanizer"]
[2012,"2012-10-01","Verificada","MEX - Tamaulipas","México","PEMEX","g. Fractionation","g.3 Deisopentanizer"]
[2012,"2012-10-01","Verificada","MEX - Tamaulipas","México","PEMEX","g. Fractionation","g.4 Deisohexanizer"]
[2012,"2012-10-01","Verificada","MEX - Tamaulipas","México","PEMEX","g. Fractionation","g.5 Alkylate Splitter"]
[2012,"2012-10-01","Verificada","MEX - Tamaulipas","México","PEMEX","g. Fractionation","g.6 Reformate Splitter"]
[2012,"2012-10-01","Verificada","MEX - Tamaulipas","México","PEMEX","g. Fractionation","g.7 Cat Cracked Gasoline Splitter"]
[2012,"2012-10-01","Verificada","MEX - Tamaulipas","México","PEMEX","h. Oxygenates","h.1 MTBE",2500]
[2012,"2012-10-01","Verificada","MEX - Tamaulipas","México","PEMEX","h. Oxygenates","h.2 TAME",2600]
[2012,"2012-10-01","Verificada","MEX - Tamaulipas","México","PEMEX","i. Tank Storage (bbl)","i.1 Crude Oil",1250000]
[2012,"2012-10-01","Verificada","MEX - Tamaulipas","México","PEMEX","i. Tank Storage (bbl)","i.2 Gasoline",788000]
[2012,"2012-10-01","Verificada","MEX - Tamaulipas","México","PEMEX","i. Tank Storage (bbl)","i.3 Diesel",342000]
[2012,"2012-10-01","Verificada","MEX - Tamaulipas","México","PEMEX","j. Conversion Rate ","j.1 Conversion Rate ",{"$f":"(+I1500+(I1514+I1515+I1516)*1.33+I1505*0.33+(I1503+I1504)*1.7)/I1498","v":1.4097894736842105}]
[2012,"2012-10-01","Verificada","MEX - Tamaulipas","México","PEMEX","k. Desulfurization Rate (%)","k.1 Desulfurization Rate (%)",{"$f":"SUM(I1514:I1518)/I1498","v":0.74631578947368427}]
[2012,"2012-10-01","Verificada","MEX - Veracruz","México","PEMEX","a. Crude Distillation","a.1 Atmospheric Crude Distillation",335000]
[2012,"2012-10-01","Verificada","MEX - Veracruz","México","PEMEX","a. Crude Distillation","a.2 Vacuum Distillation",152000]
[2012,"2012-10-01","Verificada","MEX - Veracruz","México","PEMEX","b. Conversion","b.1 Catalytic Cracking",72000]
[2012,"2012-10-01","Verificada","MEX - Veracruz","México","PEMEX","b. Conversion","b.2 Resid Cat Cracking"]
[2012,"2012-10-01","Verificada","MEX - Veracruz","México","PEMEX","b. Conversion","b.3 Hydrocracking (Mild Conversion)"]
[2012,"2012-10-01","Verificada","MEX - Veracruz","México","PEMEX","b. Conversion","b.4 Coking -- Delayed",55800]
[2012,"2012-10-01","Verificada","MEX - Veracruz","México","PEMEX","b. Conversion","b.5 Coking -- Fluid"]
[2012,"2012-10-01","Verificada","MEX - Veracruz","México","PEMEX","b. Conversion","b.6 Visbreaking"]
[2012,"2012-10-01","Verificada","MEX - Veracruz","México","PEMEX","c. Upgrading","c.1 H-Oil"]
[2012,"2012-10-01","Verificada","MEX - Veracruz","México","PEMEX","c. Upgrading","c.2 HDH"]
[2012,"2012-10-01","Verificada","MEX - Veracruz","México","PEMEX","c. Upgrading","c.3 Alkylation (Product basis)",26800]
[2012,"2012-10-01","Verificada","MEX - Veracruz","México","PEMEX","c. Upgrading","c.4 Polymerization",2200]
[2012,"2012-10-01","Verificada","MEX - Veracruz","México","PEMEX","c. Upgrading","c.5 C5/C6 Isomerization",15000]
[2012,"2012-10-01","Verificada","MEX - Veracruz","México","PEMEX","c. Upgrading","c.6 Catalytic Reforming -- Low Pressure",20000]
[2012,"2012-10-01","Verificada","MEX - Veracruz","México","PEMEX","c. Upgrading","c.7 Catalytic Reforming -- Medium Pressure",27000]
[2012,"2012-10-01","Verificada","MEX - Veracruz","México","PEMEX","c. Upgrading","c.8 Catalytic Reforming -- High Pressure"]
[2012,"2012-10-01","Verificada","MEX - Veracruz","México","PEMEX","d. Hydrotreating","d.1 Gasoline/Naphtha Hydrotreating",63400]
[2012,"2012-10-01","Verificada","MEX - Veracruz","México","PEMEX","d. Hydrotreating","d.2 Kerosene Hydrotreating"]
[2012,"2012-10-01","Verificada","MEX - Veracruz","México","PEMEX","d. Hydrotreating","d.3 Distillate Hydrotreating",76000]
[2012,"2012-10-01","Verificada","MEX - Veracruz","México","PEMEX","d. Hydrotreating","d.4 Residual Desulfurization"]
[2012,"2012-10-01","Verificada","MEX - Veracruz","México","PEMEX","d. Hydrotreating","d.5 Gas Oil Desulfurization",50000]
[2012,"2012-10-01","Verificada","MEX - Veracruz","México","PEMEX","e. Hydrogen (k scf/d)","e.1 Hydrogen Generation",480]
[2012,"2012-10-01","Verificada","MEX - Veracruz","México","PEMEX","e. Hydrogen (k scf/d)","e.2 Purification"]
[2012,"2012-10-01","Verificada","MEX - Veracruz","México","PEMEX","f. Other","f.1 Aromatic Solvent Extraction"]
[2012,"2012-10-01","Verificada","MEX - Veracruz","México","PEMEX","f. Other","f.2 Other Aromatic Process"]
[2012,"2012-10-01","Verificada","MEX - Veracruz","México","PEMEX","f. Other","f.3 C4 Isomerization"]
[2012,"2012-10-01","Verificada","MEX - Veracruz","México","PEMEX","f. Other","f.4 Solvent Desaphalting"]
[2012,"2012-10-01","Verificada","MEX - Veracruz","México","PEMEX","f. Other","f.5 Lubes & Waxes"]
[2012,"2012-10-01","Verificada","MEX - Veracruz","México","PEMEX","f. Other","f.6 Asphalt & Bitumen Manufacture"]
[2012,"2012-10-01","Verificada","MEX - Veracruz","México","PEMEX","f. Other","f.7 Sulfur Recovery Unit (tonnes/day)",680]
[2012,"2012-10-01","Verificada","MEX - Veracruz","México","PEMEX","g. Fractionation","g.1 Propane/Propylene Splitter"]
[2012,"2012-10-01","Verificada","MEX - Veracruz","México","PEMEX","g. Fractionation","g.2 Deisobutanizer",70000]
[2012,"2012-10-01","Verificada","MEX - Veracruz","México","PEMEX","g. Fractionation","g.3 Deisopentanizer"]
[2012,"2012-10-01","Verificada","MEX - Veracruz","México","PEMEX","g. Fractionation","g.4 Deisohexanizer"]
[2012,"2012-10-01","Verificada","MEX - Veracruz","México","PEMEX","g. Fractionation","g.5 Alkylate Splitter"]
[2012,"2012-10-01","Verificada","MEX - Veracruz","México","PEMEX","g. Fractionation","g.6 Reformate Splitter"]
[2012,"2012-10-01","Verificada","MEX - Veracruz","México","PEMEX","g. Fractionation","g.7 Cat Cracked Gasoline Splitter"]
[2012,"2012-10-01","Verificada","MEX - Veracruz","México","PEMEX","h. Oxygenates","h.1 MTBE"]
[2012,"2012-10-01","Verificada","MEX - Veracruz","México","PEMEX","h. Oxygenates","h.2 TAME"]
[2012,"2012-10-01","Verificada","MEX - Veracruz","México","PEMEX","i. Tank Storage (bbl)","i.1 Crude Oil",1046000]
[2012,"2012-10-01","Verificada","MEX - Veracruz","México","PEMEX","i. Tank Storage (bbl)","i.2 Gasoline",707000]
[2012,"2012-10-01","Verificada","MEX - Veracruz","México","PEMEX","i. Tank Storage (bbl)","i.3 Diesel",488000]
[2012,"2012-10-01","Verificada","MEX - Veracruz","México","PEMEX","j. Conversion Rate ","j.1 Conversion Rate ",{"$f":"(+I1544+(I1558+I1559+I1560)*1.33+I1549*0.33+(I1547+I1548)*1.7)/I1542","v":1.0515283582089552}]
[2012,"2012-10-01","Verificada","MEX - Veracruz","México","PEMEX","k. Desulfurization Rate (%)","k.1 Desulfurization Rate (%)",{"$f":"SUM(I1558:I1562)/I1542","v":0.56537313432835823}]
[2012,"2012-12-01","Verificada","BRA - REMAN","Brasil","Petrobras","a. Crude Distillation","a.1 Atmospheric Crude Distillation",45911]
[2012,"2012-12-01","Verificada","BRA - REMAN","Brasil","Petrobras","a. Crude Distillation","a.2 Vacuum Distillation",8679]
[2012,"2012-12-01","Verificada","BRA - REMAN","Brasil","Petrobras","b. Conversion","b.1 Catalytic Cracking",3147]
[2012,"2012-12-01","Verificada","BRA - REMAN","Brasil","Petrobras","b. Conversion","b.2 Resid Cat Cracking"]
[2012,"2012-12-01","Verificada","BRA - REMAN","Brasil","Petrobras","b. Conversion","b.3 Hydrocracking (Mild Conversion)"]
[2012,"2012-12-01","Verificada","BRA - REMAN","Brasil","Petrobras","b. Conversion","b.4 Coking -- Delayed"]
[2012,"2012-12-01","Verificada","BRA - REMAN","Brasil","Petrobras","b. Conversion","b.5 Coking -- Fluid"]
[2012,"2012-12-01","Verificada","BRA - REMAN","Brasil","Petrobras","b. Conversion","b.6 Visbreaking"]
[2012,"2012-12-01","Verificada","BRA - REMAN","Brasil","Petrobras","c. Upgrading","c.1 H-Oil"]
[2012,"2012-12-01","Verificada","BRA - REMAN","Brasil","Petrobras","c. Upgrading","c.2 HDH"]
[2012,"2012-12-01","Verificada","BRA - REMAN","Brasil","Petrobras","c. Upgrading","c.3 Alkylation (Product basis)"]
[2012,"2012-12-01","Verificada","BRA - REMAN","Brasil","Petrobras","c. Upgrading","c.4 Polymerization"]
[2012,"2012-12-01","Verificada","BRA - REMAN","Brasil","Petrobras","c. Upgrading","c.5 C5/C6 Isomerization"]
[2012,"2012-12-01","Verificada","BRA - REMAN","Brasil","Petrobras","c. Upgrading","c.6 Catalytic Reforming -- Low Pressure"]
[2012,"2012-12-01","Verificada","BRA - REMAN","Brasil","Petrobras","c. Upgrading","c.7 Catalytic Reforming -- Medium Pressure"]
[2012,"2012-12-01","Verificada","BRA - REMAN","Brasil","Petrobras","c. Upgrading","c.8 Catalytic Reforming -- High Pressure"]
[2012,"2012-12-01","Verificada","BRA - REMAN","Brasil","Petrobras","d. Hydrotreating","d.1 Gasoline/Naphtha Hydrotreating"]
[2012,"2012-12-01","Verificada","BRA - REMAN","Brasil","Petrobras","d. Hydrotreating","d.2 Kerosene Hydrotreating"]
[2012,"2012-12-01","Verificada","BRA - REMAN","Brasil","Petrobras","d. Hydrotreating","d.3 Distillate Hydrotreating"]
[2012,"2012-12-01","Verificada","BRA - REMAN","Brasil","Petrobras","d. Hydrotreating","d.4 Residual Desulfurization"]
[2012,"2012-12-01","Verificada","BRA - REMAN","Brasil","Petrobras","d. Hydrotreating","d.5 Gas Oil Desulfurization"]
[2012,"2012-12-01","Verificada","BRA - REMAN","Brasil","Petrobras","e. Hydrogen (k scf/d)","e.1 Hydrogen Generation"]
[2012,"2012-12-01","Verificada","BRA - REMAN","Brasil","Petrobras","e. Hydrogen (k scf/d)","e.2 Purification"]
[2012,"2012-12-01","Verificada","BRA - REMAN","Brasil","Petrobras","f. Other","f.1 Aromatic Solvent Extraction"]
[2012,"2012-12-01","Verificada","BRA - REMAN","Brasil","Petrobras","f. Other","f.2 Other Aromatic Process"]
[2012,"2012-12-01","Verificada","BRA - REMAN","Brasil","Petrobras","f. Other","f.3 C4 Isomerization"]
[2012,"2012-12-01","Verificada","BRA - REMAN","Brasil","Petrobras","f. Other","f.4 Solvent Desaphalting"]
[2012,"2012-12-01","Verificada","BRA - REMAN","Brasil","Petrobras","f. Other","f.5 Lubes & Waxes"]
[2012,"2012-12-01","Verificada","BRA - REMAN","Brasil","Petrobras","f. Other","f.6 Asphalt & Bitumen Manufacture"]
[2012,"2012-12-01","Verificada","BRA - REMAN","Brasil","Petrobras","f. Other","f.7 Sulfur Recovery Unit (tonnes/day)"]
[2012,"2012-12-01","Verificada","BRA - REMAN","Brasil","Petrobras","g. Fractionation","g.1 Propane/Propylene Splitter"]
[2012,"2012-12-01","Verificada","BRA - REMAN","Brasil","Petrobras","g. Fractionation","g.2 Deisobutanizer"]
[2012,"2012-12-01","Verificada","BRA - REMAN","Brasil","Petrobras","g. Fractionation","g.3 Deisopentanizer"]
[2012,"2012-12-01","Verificada","BRA - REMAN","Brasil","Petrobras","g. Fractionation","g.4 Deisohexanizer"]
[2012,"2012-12-01","Verificada","BRA - REMAN","Brasil","Petrobras","g. Fractionation","g.5 Alkylate Splitter"]
[2012,"2012-12-01","Verificada","BRA - REMAN","Brasil","Petrobras","g. Fractionation","g.6 Reformate Splitter"]
[2012,"2012-12-01","Verificada","BRA - REMAN","Brasil","Petrobras","g. Fractionation","g.7 Cat Cracked Gasoline Splitter"]
[2012,"2012-12-01","Verificada","BRA - REMAN","Brasil","Petrobras","h. Oxygenates","h.1 MTBE"]
[2012,"2012-12-01","Verificada","BRA - REMAN","Brasil","Petrobras","h. Oxygenates","h.2 TAME"]
[2012,"2012-12-01","Verificada","BRA - REMAN","Brasil","Petrobras","i. Tank Storage (bbl)","i.1 Crude Oil",940000]
[2012,"2012-12-01","Verificada","BRA - REMAN","Brasil","Petrobras","i. Tank Storage (bbl)","i.2 Gasoline",372000]
[2012,"2012-12-01","Verificada","BRA - REMAN","Brasil","Petrobras","i. Tank Storage (bbl)","i.3 Diesel",567000]
[2012,"2012-12-01","Verificada","BRA - REMAN","Brasil","Petrobras","j. Conversion Rate ","j.1 Conversion Rate ",{"$f":"(+I1588+I1589+(I1602+I1603+I1604)*1.3+I1593*0.33+(I1591+I1592)*1.7)/I1586","v":6.8545664437716453E-2}]
[2012,"2012-12-01","Verificada","BRA - REMAN","Brasil","Petrobras","k. Desulfurization Rate (%)","k.1 Desulfurization Rate (%)",{"$f":"SUM(I1602:I1606)/I1586","v":0}]
[2012,"2012-12-01","Verificada","BRA - LUBNOR","Brasil","Petrobras","a. Crude Distillation","a.1 Atmospheric Crude Distillation",7552]
[2012,"2012-12-01","Verificada","BRA - LUBNOR","Brasil","Petrobras","a. Crude Distillation","a.2 Vacuum Distillation"]
[2012,"2012-12-01","Verificada","BRA - LUBNOR","Brasil","Petrobras","b. Conversion","b.1 Catalytic Cracking"]
[2012,"2012-12-01","Verificada","BRA - LUBNOR","Brasil","Petrobras","b. Conversion","b.2 Resid Cat Cracking"]
[2012,"2012-12-01","Verificada","BRA - LUBNOR","Brasil","Petrobras","b. Conversion","b.3 Hydrocracking (Mild Conversion)"]
[2012,"2012-12-01","Verificada","BRA - LUBNOR","Brasil","Petrobras","b. Conversion","b.4 Coking -- Delayed"]
[2012,"2012-12-01","Verificada","BRA - LUBNOR","Brasil","Petrobras","b. Conversion","b.5 Coking -- Fluid"]
[2012,"2012-12-01","Verificada","BRA - LUBNOR","Brasil","Petrobras","b. Conversion","b.6 Visbreaking"]
[2012,"2012-12-01","Verificada","BRA - LUBNOR","Brasil","Petrobras","c. Upgrading","c.1 H-Oil"]
[2012,"2012-12-01","Verificada","BRA - LUBNOR","Brasil","Petrobras","c. Upgrading","c.2 HDH"]
[2012,"2012-12-01","Verificada","BRA - LUBNOR","Brasil","Petrobras","c. Upgrading","c.3 Alkylation (Product basis)"]
[2012,"2012-12-01","Verificada","BRA - LUBNOR","Brasil","Petrobras","c. Upgrading","c.4 Polymerization"]
[2012,"2012-12-01","Verificada","BRA - LUBNOR","Brasil","Petrobras","c. Upgrading","c.5 C5/C6 Isomerization"]
[2012,"2012-12-01","Verificada","BRA - LUBNOR","Brasil","Petrobras","c. Upgrading","c.6 Catalytic Reforming -- Low Pressure"]
[2012,"2012-12-01","Verificada","BRA - LUBNOR","Brasil","Petrobras","c. Upgrading","c.7 Catalytic Reforming -- Medium Pressure"]
[2012,"2012-12-01","Verificada","BRA - LUBNOR","Brasil","Petrobras","c. Upgrading","c.8 Catalytic Reforming -- High Pressure"]
[2012,"2012-12-01","Verificada","BRA - LUBNOR","Brasil","Petrobras","d. Hydrotreating","d.1 Gasoline/Naphtha Hydrotreating"]
[2012,"2012-12-01","Verificada","BRA - LUBNOR","Brasil","Petrobras","d. Hydrotreating","d.2 Kerosene Hydrotreating"]
[2012,"2012-12-01","Verificada","BRA - LUBNOR","Brasil","Petrobras","d. Hydrotreating","d.3 Distillate Hydrotreating"]
[2012,"2012-12-01","Verificada","BRA - LUBNOR","Brasil","Petrobras","d. Hydrotreating","d.4 Residual Desulfurization"]
[2012,"2012-12-01","Verificada","BRA - LUBNOR","Brasil","Petrobras","d. Hydrotreating","d.5 Gas Oil Desulfurization"]
[2012,"2012-12-01","Verificada","BRA - LUBNOR","Brasil","Petrobras","e. Hydrogen (k scf/d)","e.1 Hydrogen Generation",1236]
[2012,"2012-12-01","Verificada","BRA - LUBNOR","Brasil","Petrobras","e. Hydrogen (k scf/d)","e.2 Purification"]
[2012,"2012-12-01","Verificada","BRA - LUBNOR","Brasil","Petrobras","f. Other","f.1 Aromatic Solvent Extraction"]
[2012,"2012-12-01","Verificada","BRA - LUBNOR","Brasil","Petrobras","f. Other","f.2 Other Aromatic Process"]
[2012,"2012-12-01","Verificada","BRA - LUBNOR","Brasil","Petrobras","f. Other","f.3 C4 Isomerization"]
[2012,"2012-12-01","Verificada","BRA - LUBNOR","Brasil","Petrobras","f. Other","f.4 Solvent Desaphalting"]
[2012,"2012-12-01","Verificada","BRA - LUBNOR","Brasil","Petrobras","f. Other","f.5 Lubes & Waxes",1076]
[2012,"2012-12-01","Verificada","BRA - LUBNOR","Brasil","Petrobras","f. Other","f.6 Asphalt & Bitumen Manufacture"]
[2012,"2012-12-01","Verificada","BRA - LUBNOR","Brasil","Petrobras","f. Other","f.7 Sulfur Recovery Unit (tonnes/day)"]
[2012,"2012-12-01","Verificada","BRA - LUBNOR","Brasil","Petrobras","g. Fractionation","g.1 Propane/Propylene Splitter"]
[2012,"2012-12-01","Verificada","BRA - LUBNOR","Brasil","Petrobras","g. Fractionation","g.2 Deisobutanizer"]
[2012,"2012-12-01","Verificada","BRA - LUBNOR","Brasil","Petrobras","g. Fractionation","g.3 Deisopentanizer"]
[2012,"2012-12-01","Verificada","BRA - LUBNOR","Brasil","Petrobras","g. Fractionation","g.4 Deisohexanizer"]
[2012,"2012-12-01","Verificada","BRA - LUBNOR","Brasil","Petrobras","g. Fractionation","g.5 Alkylate Splitter"]
[2012,"2012-12-01","Verificada","BRA - LUBNOR","Brasil","Petrobras","g. Fractionation","g.6 Reformate Splitter"]
[2012,"2012-12-01","Verificada","BRA - LUBNOR","Brasil","Petrobras","g. Fractionation","g.7 Cat Cracked Gasoline Splitter"]
[2012,"2012-12-01","Verificada","BRA - LUBNOR","Brasil","Petrobras","h. Oxygenates","h.1 MTBE"]
[2012,"2012-12-01","Verificada","BRA - LUBNOR","Brasil","Petrobras","h. Oxygenates","h.2 TAME"]
[2012,"2012-12-01","Verificada","BRA - LUBNOR","Brasil","Petrobras","i. Tank Storage (bbl)","i.1 Crude Oil",255000]
[2012,"2012-12-01","Verificada","BRA - LUBNOR","Brasil","Petrobras","i. Tank Storage (bbl)","i.2 Gasoline",28000]
[2012,"2012-12-01","Verificada","BRA - LUBNOR","Brasil","Petrobras","i. Tank Storage (bbl)","i.3 Diesel",104000]
[2012,"2012-12-01","Verificada","BRA - LUBNOR","Brasil","Petrobras","j. Conversion Rate ","j.1 Conversion Rate ",{"$f":"(+I1632+I1633+(I1646+I1647+I1648)*1.3+I1637*0.33+(I1635+I1636)*1.7)/I1630","v":0}]
[2012,"2012-12-01","Verificada","BRA - LUBNOR","Brasil","Petrobras","k. Desulfurization Rate (%)","k.1 Desulfurization Rate (%)",{"$f":"SUM(I1646:I1650)/I1630","v":0}]
[2012,"2012-12-01","Verificada","BRA - RLAM","Brasil","Petrobras","a. Crude Distillation","a.1 Atmospheric Crude Distillation",286153]
[2012,"2012-12-01","Verificada","BRA - RLAM","Brasil","Petrobras","a. Crude Distillation","a.2 Vacuum Distillation",132777]
[2012,"2012-12-01","Verificada","BRA - RLAM","Brasil","Petrobras","b. Conversion","b.1 Catalytic Cracking",31446]
[2012,"2012-12-01","Verificada","BRA - RLAM","Brasil","Petrobras","b. Conversion","b.2 Resid Cat Cracking",62890]
[2012,"2012-12-01","Verificada","BRA - RLAM","Brasil","Petrobras","b. Conversion","b.3 Hydrocracking (Mild Conversion)"]
[2012,"2012-12-01","Verificada","BRA - RLAM","Brasil","Petrobras","b. Conversion","b.4 Coking -- Delayed"]
[2012,"2012-12-01","Verificada","BRA - RLAM","Brasil","Petrobras","b. Conversion","b.5 Coking -- Fluid"]
[2012,"2012-12-01","Verificada","BRA - RLAM","Brasil","Petrobras","b. Conversion","b.6 Visbreaking"]
[2012,"2012-12-01","Verificada","BRA - RLAM","Brasil","Petrobras","c. Upgrading","c.1 H-Oil"]
[2012,"2012-12-01","Verificada","BRA - RLAM","Brasil","Petrobras","c. Upgrading","c.2 HDH"]
[2012,"2012-12-01","Verificada","BRA - RLAM","Brasil","Petrobras","c. Upgrading","c.3 Alkylation (Product basis)"]
[2012,"2012-12-01","Verificada","BRA - RLAM","Brasil","Petrobras","c. Upgrading","c.4 Polymerization"]
[2012,"2012-12-01","Verificada","BRA - RLAM","Brasil","Petrobras","c. Upgrading","c.5 C5/C6 Isomerization"]
[2012,"2012-12-01","Verificada","BRA - RLAM","Brasil","Petrobras","c. Upgrading","c.6 Catalytic Reforming -- Low Pressure"]
[2012,"2012-12-01","Verificada","BRA - RLAM","Brasil","Petrobras","c. Upgrading","c.7 Catalytic Reforming -- Medium Pressure"]
[2012,"2012-12-01","Verificada","BRA - RLAM","Brasil","Petrobras","c. Upgrading","c.8 Catalytic Reforming -- High Pressure"]
[2012,"2012-12-01","Verificada","BRA - RLAM","Brasil","Petrobras","d. Hydrotreating","d.1 Gasoline/Naphtha Hydrotreating"]
[2012,"2012-12-01","Verificada","BRA - RLAM","Brasil","Petrobras","d. Hydrotreating","d.2 Kerosene Hydrotreating"]
[2012,"2012-12-01","Verificada","BRA - RLAM","Brasil","Petrobras","d. Hydrotreating","d.3 Distillate Hydrotreating"]
[2012,"2012-12-01","Verificada","BRA - RLAM","Brasil","Petrobras","d. Hydrotreating","d.4 Residual Desulfurization"]
[2012,"2012-12-01","Verificada","BRA - RLAM","Brasil","Petrobras","d. Hydrotreating","d.5 Gas Oil Desulfurization"]
[2012,"2012-12-01","Verificada","BRA - RLAM","Brasil","Petrobras","e. Hydrogen (k scf/d)","e.1 Hydrogen Generation",892]
[2012,"2012-12-01","Verificada","BRA - RLAM","Brasil","Petrobras","e. Hydrogen (k scf/d)","e.2 Purification"]
[2012,"2012-12-01","Verificada","BRA - RLAM","Brasil","Petrobras","f. Other","f.1 Aromatic Solvent Extraction"]
[2012,"2012-12-01","Verificada","BRA - RLAM","Brasil","Petrobras","f. Other","f.2 Other Aromatic Process"]
[2012,"2012-12-01","Verificada","BRA - RLAM","Brasil","Petrobras","f. Other","f.3 C4 Isomerization"]
[2012,"2012-12-01","Verificada","BRA - RLAM","Brasil","Petrobras","f. Other","f.4 Solvent Desaphalting",3773]
[2012,"2012-12-01","Verificada","BRA - RLAM","Brasil","Petrobras","f. Other","f.5 Lubes & Waxes",5221]
[2012,"2012-12-01","Verificada","BRA - RLAM","Brasil","Petrobras","f. Other","f.6 Asphalt & Bitumen Manufacture"]
[2012,"2012-12-01","Verificada","BRA - RLAM","Brasil","Petrobras","f. Other","f.7 Sulfur Recovery Unit (tonnes/day)",72]
[2012,"2012-12-01","Verificada","BRA - RLAM","Brasil","Petrobras","g. Fractionation","g.1 Propane/Propylene Splitter"]
[2012,"2012-12-01","Verificada","BRA - RLAM","Brasil","Petrobras","g. Fractionation","g.2 Deisobutanizer"]
[2012,"2012-12-01","Verificada","BRA - RLAM","Brasil","Petrobras","g. Fractionation","g.3 Deisopentanizer"]
[2012,"2012-12-01","Verificada","BRA - RLAM","Brasil","Petrobras","g. Fractionation","g.4 Deisohexanizer",9254]
[2012,"2012-12-01","Verificada","BRA - RLAM","Brasil","Petrobras","g. Fractionation","g.5 Alkylate Splitter"]
[2012,"2012-12-01","Verificada","BRA - RLAM","Brasil","Petrobras","g. Fractionation","g.6 Reformate Splitter"]
[2012,"2012-12-01","Verificada","BRA - RLAM","Brasil","Petrobras","g. Fractionation","g.7 Cat Cracked Gasoline Splitter"]
[2012,"2012-12-01","Verificada","BRA - RLAM","Brasil","Petrobras","h. Oxygenates","h.1 MTBE"]
[2012,"2012-12-01","Verificada","BRA - RLAM","Brasil","Petrobras","h. Oxygenates","h.2 TAME"]
[2012,"2012-12-01","Verificada","BRA - RLAM","Brasil","Petrobras","i. Tank Storage (bbl)","i.1 Crude Oil",4661295]
[2012,"2012-12-01","Verificada","BRA - RLAM","Brasil","Petrobras","i. Tank Storage (bbl)","i.2 Gasoline",1054000]
[2012,"2012-12-01","Verificada","BRA - RLAM","Brasil","Petrobras","i. Tank Storage (bbl)","i.3 Diesel",867000]
[2012,"2012-12-01","Verificada","BRA - RLAM","Brasil","Petrobras","j. Conversion Rate ","j.1 Conversion Rate ",{"$f":"(+I1676+I1677+(I1690+I1691+I1692)*1.3+I1681*0.33+(I1679+I1680)*1.7)/I1674","v":0.32966979203433128}]
[2012,"2012-12-01","Verificada","BRA - RLAM","Brasil","Petrobras","k. Desulfurization Rate (%)","k.1 Desulfurization Rate (%)",{"$f":"SUM(I1690:I1694)/I1674","v":0}]
[2012,"2012-12-01","Verificada","BRA - RGAP","Brasil","Petrobras","a. Crude Distillation","a.1 Atmospheric Crude Distillation",150994]
[2012,"2012-12-01","Verificada","BRA - RGAP","Brasil","Petrobras","a. Crude Distillation","a.2 Vacuum Distillation",81760]
[2012,"2012-12-01","Verificada","BRA - RGAP","Brasil","Petrobras","b. Conversion","b.1 Catalytic Cracking",42769]
[2012,"2012-12-01","Verificada","BRA - RGAP","Brasil","Petrobras","b. Conversion","b.2 Resid Cat Cracking"]
[2012,"2012-12-01","Verificada","BRA - RGAP","Brasil","Petrobras","b. Conversion","b.3 Hydrocracking (Mild Conversion)"]
[2012,"2012-12-01","Verificada","BRA - RGAP","Brasil","Petrobras","b. Conversion","b.4 Coking -- Delayed",23902]
[2012,"2012-12-01","Verificada","BRA - RGAP","Brasil","Petrobras","b. Conversion","b.5 Coking -- Fluid"]
[2012,"2012-12-01","Verificada","BRA - RGAP","Brasil","Petrobras","b. Conversion","b.6 Visbreaking"]
[2012,"2012-12-01","Verificada","BRA - RGAP","Brasil","Petrobras","c. Upgrading","c.1 H-Oil"]
[2012,"2012-12-01","Verificada","BRA - RGAP","Brasil","Petrobras","c. Upgrading","c.2 HDH"]
[2012,"2012-12-01","Verificada","BRA - RGAP","Brasil","Petrobras","c. Upgrading","c.3 Alkylation (Product basis)"]
[2012,"2012-12-01","Verificada","BRA - RGAP","Brasil","Petrobras","c. Upgrading","c.4 Polymerization"]
[2012,"2012-12-01","Verificada","BRA - RGAP","Brasil","Petrobras","c. Upgrading","c.5 C5/C6 Isomerization"]
[2012,"2012-12-01","Verificada","BRA - RGAP","Brasil","Petrobras","c. Upgrading","c.6 Catalytic Reforming -- Low Pressure"]
[2012,"2012-12-01","Verificada","BRA - RGAP","Brasil","Petrobras","c. Upgrading","c.7 Catalytic Reforming -- Medium Pressure"]
[2012,"2012-12-01","Verificada","BRA - RGAP","Brasil","Petrobras","c. Upgrading","c.8 Catalytic Reforming -- High Pressure"]
[2012,"2012-12-01","Verificada","BRA - RGAP","Brasil","Petrobras","d. Hydrotreating","d.1 Gasoline/Naphtha Hydrotreating"]
[2012,"2012-12-01","Verificada","BRA - RGAP","Brasil","Petrobras","d. Hydrotreating","d.2 Kerosene Hydrotreating",11321]
[2012,"2012-12-01","Verificada","BRA - RGAP","Brasil","Petrobras","d. Hydrotreating","d.3 Distillate Hydrotreating",49685]
[2012,"2012-12-01","Verificada","BRA - RGAP","Brasil","Petrobras","d. Hydrotreating","d.4 Residual Desulfurization"]
[2012,"2012-12-01","Verificada","BRA - RGAP","Brasil","Petrobras","d. Hydrotreating","d.5 Gas Oil Desulfurization"]
[2012,"2012-12-01","Verificada","BRA - RGAP","Brasil","Petrobras","e. Hydrogen (k scf/d)","e.1 Hydrogen Generation",20653]
[2012,"2012-12-01","Verificada","BRA - RGAP","Brasil","Petrobras","e. Hydrogen (k scf/d)","e.2 Purification"]
[2012,"2012-12-01","Verificada","BRA - RGAP","Brasil","Petrobras","f. Other","f.1 Aromatic Solvent Extraction"]
[2012,"2012-12-01","Verificada","BRA - RGAP","Brasil","Petrobras","f. Other","f.2 Other Aromatic Process"]
[2012,"2012-12-01","Verificada","BRA - RGAP","Brasil","Petrobras","f. Other","f.3 C4 Isomerization"]
[2012,"2012-12-01","Verificada","BRA - RGAP","Brasil","Petrobras","f. Other","f.4 Solvent Desaphalting"]
[2012,"2012-12-01","Verificada","BRA - RGAP","Brasil","Petrobras","f. Other","f.5 Lubes & Waxes"]
[2012,"2012-12-01","Verificada","BRA - RGAP","Brasil","Petrobras","f. Other","f.6 Asphalt & Bitumen Manufacture"]
[2012,"2012-12-01","Verificada","BRA - RGAP","Brasil","Petrobras","f. Other","f.7 Sulfur Recovery Unit (tonnes/day)",73]
[2012,"2012-12-01","Verificada","BRA - RGAP","Brasil","Petrobras","g. Fractionation","g.1 Propane/Propylene Splitter"]
[2012,"2012-12-01","Verificada","BRA - RGAP","Brasil","Petrobras","g. Fractionation","g.2 Deisobutanizer"]
[2012,"2012-12-01","Verificada","BRA - RGAP","Brasil","Petrobras","g. Fractionation","g.3 Deisopentanizer"]
[2012,"2012-12-01","Verificada","BRA - RGAP","Brasil","Petrobras","g. Fractionation","g.4 Deisohexanizer"]
[2012,"2012-12-01","Verificada","BRA - RGAP","Brasil","Petrobras","g. Fractionation","g.5 Alkylate Splitter"]
[2012,"2012-12-01","Verificada","BRA - RGAP","Brasil","Petrobras","g. Fractionation","g.6 Reformate Splitter"]
[2012,"2012-12-01","Verificada","BRA - RGAP","Brasil","Petrobras","g. Fractionation","g.7 Cat Cracked Gasoline Splitter"]
[2012,"2012-12-01","Verificada","BRA - RGAP","Brasil","Petrobras","h. Oxygenates","h.1 MTBE"]
[2012,"2012-12-01","Verificada","BRA - RGAP","Brasil","Petrobras","h. Oxygenates","h.2 TAME"]
[2012,"2012-12-01","Verificada","BRA - RGAP","Brasil","Petrobras","i. Tank Storage (bbl)","i.1 Crude Oil",2984.9245283018868]
[2012,"2012-12-01","Verificada","BRA - RGAP","Brasil","Petrobras","i. Tank Storage (bbl)","i.2 Gasoline",1390.5849056603774]
[2012,"2012-12-01","Verificada","BRA - RGAP","Brasil","Petrobras","i. Tank Storage (bbl)","i.3 Diesel",1155.0943396226414]
[2012,"2012-12-01","Verificada","BRA - RGAP","Brasil","Petrobras","j. Conversion Rate ","j.1 Conversion Rate ",{"$f":"(+I1720+I1721+(I1734+I1735+I1736)*1.3+I1725*0.33+(I1723+I1724)*1.7)/I1718","v":1.0775938116746362}]
[2012,"2012-12-01","Verificada","BRA - RGAP","Brasil","Petrobras","k. Desulfurization Rate (%)","k.1 Desulfurization Rate (%)",{"$f":"SUM(I1734:I1738)/I1718","v":0.40402929917745078}]
[2012,"2012-12-01","Verificada","BRA - REDUC","Brasil","Petrobras","a. Crude Distillation","a.1 Atmospheric Crude Distillation",239020]
[2012,"2012-12-01","Verificada","BRA - REDUC","Brasil","Petrobras","a. Crude Distillation","a.2 Vacuum Distillation",116994]
[2012,"2012-12-01","Verificada","BRA - REDUC","Brasil","Petrobras","b. Conversion","b.1 Catalytic Cracking",47200]
[2012,"2012-12-01","Verificada","BRA - REDUC","Brasil","Petrobras","b. Conversion","b.2 Resid Cat Cracking"]
[2012,"2012-12-01","Verificada","BRA - REDUC","Brasil","Petrobras","b. Conversion","b.3 Hydrocracking (Mild Conversion)"]
[2012,"2012-12-01","Verificada","BRA - REDUC","Brasil","Petrobras","b. Conversion","b.4 Coking -- Delayed"]
[2012,"2012-12-01","Verificada","BRA - REDUC","Brasil","Petrobras","b. Conversion","b.5 Coking -- Fluid"]
[2012,"2012-12-01","Verificada","BRA - REDUC","Brasil","Petrobras","b. Conversion","b.6 Visbreaking"]
[2012,"2012-12-01","Verificada","BRA - REDUC","Brasil","Petrobras","c. Upgrading","c.1 H-Oil"]
[2012,"2012-12-01","Verificada","BRA - REDUC","Brasil","Petrobras","c. Upgrading","c.2 HDH"]
[2012,"2012-12-01","Verificada","BRA - REDUC","Brasil","Petrobras","c. Upgrading","c.3 Alkylation (Product basis)"]
[2012,"2012-12-01","Verificada","BRA - REDUC","Brasil","Petrobras","c. Upgrading","c.4 Polymerization"]
[2012,"2012-12-01","Verificada","BRA - REDUC","Brasil","Petrobras","c. Upgrading","c.5 C5/C6 Isomerization"]
[2012,"2012-12-01","Verificada","BRA - REDUC","Brasil","Petrobras","c. Upgrading","c.6 Catalytic Reforming -- Low Pressure"]
[2012,"2012-12-01","Verificada","BRA - REDUC","Brasil","Petrobras","c. Upgrading","c.7 Catalytic Reforming -- Medium Pressure"]
[2012,"2012-12-01","Verificada","BRA - REDUC","Brasil","Petrobras","c. Upgrading","c.8 Catalytic Reforming -- High Pressure",11951]
[2012,"2012-12-01","Verificada","BRA - REDUC","Brasil","Petrobras","d. Hydrotreating","d.1 Gasoline/Naphtha Hydrotreating",11951]
[2012,"2012-12-01","Verificada","BRA - REDUC","Brasil","Petrobras","d. Hydrotreating","d.2 Kerosene Hydrotreating",34591]
[2012,"2012-12-01","Verificada","BRA - REDUC","Brasil","Petrobras","d. Hydrotreating","d.3 Distillate Hydrotreating",25157]
[2012,"2012-12-01","Verificada","BRA - REDUC","Brasil","Petrobras","d. Hydrotreating","d.4 Residual Desulfurization"]
[2012,"2012-12-01","Verificada","BRA - REDUC","Brasil","Petrobras","d. Hydrotreating","d.5 Gas Oil Desulfurization"]
[2012,"2012-12-01","Verificada","BRA - REDUC","Brasil","Petrobras","e. Hydrogen (k scf/d)","e.1 Hydrogen Generation",29120]
[2012,"2012-12-01","Verificada","BRA - REDUC","Brasil","Petrobras","e. Hydrogen (k scf/d)","e.2 Purification",1880]
[2012,"2012-12-01","Verificada","BRA - REDUC","Brasil","Petrobras","f. Other","f.1 Aromatic Solvent Extraction"]
[2012,"2012-12-01","Verificada","BRA - REDUC","Brasil","Petrobras","f. Other","f.2 Other Aromatic Process"]
[2012,"2012-12-01","Verificada","BRA - REDUC","Brasil","Petrobras","f. Other","f.3 C4 Isomerization"]
[2012,"2012-12-01","Verificada","BRA - REDUC","Brasil","Petrobras","f. Other","f.4 Solvent Desaphalting",42772]
[2012,"2012-12-01","Verificada","BRA - REDUC","Brasil","Petrobras","f. Other","f.5 Lubes & Waxes",13712]
[2012,"2012-12-01","Verificada","BRA - REDUC","Brasil","Petrobras","f. Other","f.6 Asphalt & Bitumen Manufacture"]
[2012,"2012-12-01","Verificada","BRA - REDUC","Brasil","Petrobras","f. Other","f.7 Sulfur Recovery Unit (tonnes/day)",104]
[2012,"2012-12-01","Verificada","BRA - REDUC","Brasil","Petrobras","g. Fractionation","g.1 Propane/Propylene Splitter"]
[2012,"2012-12-01","Verificada","BRA - REDUC","Brasil","Petrobras","g. Fractionation","g.2 Deisobutanizer"]
[2012,"2012-12-01","Verificada","BRA - REDUC","Brasil","Petrobras","g. Fractionation","g.3 Deisopentanizer"]
[2012,"2012-12-01","Verificada","BRA - REDUC","Brasil","Petrobras","g. Fractionation","g.4 Deisohexanizer"]
[2012,"2012-12-01","Verificada","BRA - REDUC","Brasil","Petrobras","g. Fractionation","g.5 Alkylate Splitter"]
[2012,"2012-12-01","Verificada","BRA - REDUC","Brasil","Petrobras","g. Fractionation","g.6 Reformate Splitter"]
[2012,"2012-12-01","Verificada","BRA - REDUC","Brasil","Petrobras","g. Fractionation","g.7 Cat Cracked Gasoline Splitter"]
[2012,"2012-12-01","Verificada","BRA - REDUC","Brasil","Petrobras","h. Oxygenates","h.1 MTBE",1261]
[2012,"2012-12-01","Verificada","BRA - REDUC","Brasil","Petrobras","h. Oxygenates","h.2 TAME"]
[2012,"2012-12-01","Verificada","BRA - REDUC","Brasil","Petrobras","i. Tank Storage (bbl)","i.1 Crude Oil",5776700]
[2012,"2012-12-01","Verificada","BRA - REDUC","Brasil","Petrobras","i. Tank Storage (bbl)","i.2 Gasoline",1236000]
[2012,"2012-12-01","Verificada","BRA - REDUC","Brasil","Petrobras","i. Tank Storage (bbl)","i.3 Diesel",2370700]
[2012,"2012-12-01","Verificada","BRA - REDUC","Brasil","Petrobras","j. Conversion Rate ","j.1 Conversion Rate ",{"$f":"(+I1764+I1765+(I1778+I1779+I1780)*1.3+I1769*0.33+(I1767+I1768)*1.7)/I1762","v":0.58743494268262075}]
[2012,"2012-12-01","Verificada","BRA - REDUC","Brasil","Petrobras","k. Desulfurization Rate (%)","k.1 Desulfurization Rate (%)",{"$f":"SUM(I1778:I1782)/I1762","v":0.29997071374780354}]
[2012,"2012-12-01","Verificada","BRA - RPBC","Brasil","Petrobras","a. Crude Distillation","a.1 Atmospheric Crude Distillation",169811]
[2012,"2012-12-01","Verificada","BRA - RPBC","Brasil","Petrobras","a. Crude Distillation","a.2 Vacuum Distillation",81134]
[2012,"2012-12-01","Verificada","BRA - RPBC","Brasil","Petrobras","b. Conversion","b.1 Catalytic Cracking",62893]
[2012,"2012-12-01","Verificada","BRA - RPBC","Brasil","Petrobras","b. Conversion","b.2 Resid Cat Cracking"]
[2012,"2012-12-01","Verificada","BRA - RPBC","Brasil","Petrobras","b. Conversion","b.3 Hydrocracking (Mild Conversion)"]
[2012,"2012-12-01","Verificada","BRA - RPBC","Brasil","Petrobras","b. Conversion","b.4 Coking -- Delayed",32390]
[2012,"2012-12-01","Verificada","BRA - RPBC","Brasil","Petrobras","b. Conversion","b.5 Coking -- Fluid"]
[2012,"2012-12-01","Verificada","BRA - RPBC","Brasil","Petrobras","b. Conversion","b.6 Visbreaking"]
[2012,"2012-12-01","Verificada","BRA - RPBC","Brasil","Petrobras","c. Upgrading","c.1 H-Oil"]
[2012,"2012-12-01","Verificada","BRA - RPBC","Brasil","Petrobras","c. Upgrading","c.2 HDH"]
[2012,"2012-12-01","Verificada","BRA - RPBC","Brasil","Petrobras","c. Upgrading","c.3 Alkylation (Product basis)",2893]
[2012,"2012-12-01","Verificada","BRA - RPBC","Brasil","Petrobras","c. Upgrading","c.4 Polymerization"]
[2012,"2012-12-01","Verificada","BRA - RPBC","Brasil","Petrobras","c. Upgrading","c.5 C5/C6 Isomerization"]
[2012,"2012-12-01","Verificada","BRA - RPBC","Brasil","Petrobras","c. Upgrading","c.6 Catalytic Reforming -- Low Pressure"]
[2012,"2012-12-01","Verificada","BRA - RPBC","Brasil","Petrobras","c. Upgrading","c.7 Catalytic Reforming -- Medium Pressure"]
[2012,"2012-12-01","Verificada","BRA - RPBC","Brasil","Petrobras","c. Upgrading","c.8 Catalytic Reforming -- High Pressure",11000]
[2012,"2012-12-01","Verificada","BRA - RPBC","Brasil","Petrobras","d. Hydrotreating","d.1 Gasoline/Naphtha Hydrotreating",11000]
[2012,"2012-12-01","Verificada","BRA - RPBC","Brasil","Petrobras","d. Hydrotreating","d.2 Kerosene Hydrotreating"]
[2012,"2012-12-01","Verificada","BRA - RPBC","Brasil","Petrobras","d. Hydrotreating","d.3 Distillate Hydrotreating",34591]
[2012,"2012-12-01","Verificada","BRA - RPBC","Brasil","Petrobras","d. Hydrotreating","d.4 Residual Desulfurization"]
[2012,"2012-12-01","Verificada","BRA - RPBC","Brasil","Petrobras","d. Hydrotreating","d.5 Gas Oil Desulfurization"]
[2012,"2012-12-01","Verificada","BRA - RPBC","Brasil","Petrobras","e. Hydrogen (k scf/d)","e.1 Hydrogen Generation",29860]
[2012,"2012-12-01","Verificada","BRA - RPBC","Brasil","Petrobras","e. Hydrogen (k scf/d)","e.2 Purification"]
[2012,"2012-12-01","Verificada","BRA - RPBC","Brasil","Petrobras","f. Other","f.1 Aromatic Solvent Extraction",6920]
[2012,"2012-12-01","Verificada","BRA - RPBC","Brasil","Petrobras","f. Other","f.2 Other Aromatic Process"]
[2012,"2012-12-01","Verificada","BRA - RPBC","Brasil","Petrobras","f. Other","f.3 C4 Isomerization"]
[2012,"2012-12-01","Verificada","BRA - RPBC","Brasil","Petrobras","f. Other","f.4 Solvent Desaphalting"]
[2012,"2012-12-01","Verificada","BRA - RPBC","Brasil","Petrobras","f. Other","f.5 Lubes & Waxes"]
[2012,"2012-12-01","Verificada","BRA - RPBC","Brasil","Petrobras","f. Other","f.6 Asphalt & Bitumen Manufacture"]
[2012,"2012-12-01","Verificada","BRA - RPBC","Brasil","Petrobras","f. Other","f.7 Sulfur Recovery Unit (tonnes/day)",70]
[2012,"2012-12-01","Verificada","BRA - RPBC","Brasil","Petrobras","g. Fractionation","g.1 Propane/Propylene Splitter"]
[2012,"2012-12-01","Verificada","BRA - RPBC","Brasil","Petrobras","g. Fractionation","g.2 Deisobutanizer"]
[2012,"2012-12-01","Verificada","BRA - RPBC","Brasil","Petrobras","g. Fractionation","g.3 Deisopentanizer"]
[2012,"2012-12-01","Verificada","BRA - RPBC","Brasil","Petrobras","g. Fractionation","g.4 Deisohexanizer"]
[2012,"2012-12-01","Verificada","BRA - RPBC","Brasil","Petrobras","g. Fractionation","g.5 Alkylate Splitter"]
[2012,"2012-12-01","Verificada","BRA - RPBC","Brasil","Petrobras","g. Fractionation","g.6 Reformate Splitter",2893]
[2012,"2012-12-01","Verificada","BRA - RPBC","Brasil","Petrobras","g. Fractionation","g.7 Cat Cracked Gasoline Splitter"]
[2012,"2012-12-01","Verificada","BRA - RPBC","Brasil","Petrobras","h. Oxygenates","h.1 MTBE"]
[2012,"2012-12-01","Verificada","BRA - RPBC","Brasil","Petrobras","h. Oxygenates","h.2 TAME"]
[2012,"2012-12-01","Verificada","BRA - RPBC","Brasil","Petrobras","i. Tank Storage (bbl)","i.1 Crude Oil",3634100]
[2012,"2012-12-01","Verificada","BRA - RPBC","Brasil","Petrobras","i. Tank Storage (bbl)","i.2 Gasoline",2171200]
[2012,"2012-12-01","Verificada","BRA - RPBC","Brasil","Petrobras","i. Tank Storage (bbl)","i.3 Diesel",1483000]
[2012,"2012-12-01","Verificada","BRA - RPBC","Brasil","Petrobras","j. Conversion Rate ","j.1 Conversion Rate ",{"$f":"(+I1808+I1809+(I1822+I1823+I1824)*1.3+I1813*0.33+(I1811+I1812)*1.7)/I1806","v":1.0436561824616779}]
[2012,"2012-12-01","Verificada","BRA - RPBC","Brasil","Petrobras","k. Desulfurization Rate (%)","k.1 Desulfurization Rate (%)",{"$f":"SUM(I1822:I1826)/I1806","v":0.26848084046380977}]
[2012,"2012-12-01","Verificada","BRA - REPLAN","Brasil","Petrobras","a. Crude Distillation","a.1 Atmospheric Crude Distillation",372327]
[2012,"2012-12-01","Verificada","BRA - REPLAN","Brasil","Petrobras","a. Crude Distillation","a.2 Vacuum Distillation",188679]
[2012,"2012-12-01","Verificada","BRA - REPLAN","Brasil","Petrobras","b. Conversion","b.1 Catalytic Cracking",100629]
[2012,"2012-12-01","Verificada","BRA - REPLAN","Brasil","Petrobras","b. Conversion","b.2 Resid Cat Cracking"]
[2012,"2012-12-01","Verificada","BRA - REPLAN","Brasil","Petrobras","b. Conversion","b.3 Hydrocracking (Mild Conversion)"]
[2012,"2012-12-01","Verificada","BRA - REPLAN","Brasil","Petrobras","b. Conversion","b.4 Coking -- Delayed",74214]
[2012,"2012-12-01","Verificada","BRA - REPLAN","Brasil","Petrobras","b. Conversion","b.5 Coking -- Fluid"]
[2012,"2012-12-01","Verificada","BRA - REPLAN","Brasil","Petrobras","b. Conversion","b.6 Visbreaking"]
[2012,"2012-12-01","Verificada","BRA - REPLAN","Brasil","Petrobras","c. Upgrading","c.1 H-Oil"]
[2012,"2012-12-01","Verificada","BRA - REPLAN","Brasil","Petrobras","c. Upgrading","c.2 HDH"]
[2012,"2012-12-01","Verificada","BRA - REPLAN","Brasil","Petrobras","c. Upgrading","c.3 Alkylation (Product basis)"]
[2012,"2012-12-01","Verificada","BRA - REPLAN","Brasil","Petrobras","c. Upgrading","c.4 Polymerization"]
[2012,"2012-12-01","Verificada","BRA - REPLAN","Brasil","Petrobras","c. Upgrading","c.5 C5/C6 Isomerization"]
[2012,"2012-12-01","Verificada","BRA - REPLAN","Brasil","Petrobras","c. Upgrading","c.6 Catalytic Reforming -- Low Pressure"]
[2012,"2012-12-01","Verificada","BRA - REPLAN","Brasil","Petrobras","c. Upgrading","c.7 Catalytic Reforming -- Medium Pressure"]
[2012,"2012-12-01","Verificada","BRA - REPLAN","Brasil","Petrobras","c. Upgrading","c.8 Catalytic Reforming -- High Pressure"]
[2012,"2012-12-01","Verificada","BRA - REPLAN","Brasil","Petrobras","d. Hydrotreating","d.1 Gasoline/Naphtha Hydrotreating"]
[2012,"2012-12-01","Verificada","BRA - REPLAN","Brasil","Petrobras","d. Hydrotreating","d.2 Kerosene Hydrotreating"]
[2012,"2012-12-01","Verificada","BRA - REPLAN","Brasil","Petrobras","d. Hydrotreating","d.3 Distillate Hydrotreating",67296]
[2012,"2012-12-01","Verificada","BRA - REPLAN","Brasil","Petrobras","d. Hydrotreating","d.4 Residual Desulfurization"]
[2012,"2012-12-01","Verificada","BRA - REPLAN","Brasil","Petrobras","d. Hydrotreating","d.5 Gas Oil Desulfurization"]
[2012,"2012-12-01","Verificada","BRA - REPLAN","Brasil","Petrobras","e. Hydrogen (k scf/d)","e.1 Hydrogen Generation",55984]
[2012,"2012-12-01","Verificada","BRA - REPLAN","Brasil","Petrobras","e. Hydrogen (k scf/d)","e.2 Purification"]
[2012,"2012-12-01","Verificada","BRA - REPLAN","Brasil","Petrobras","f. Other","f.1 Aromatic Solvent Extraction"]
[2012,"2012-12-01","Verificada","BRA - REPLAN","Brasil","Petrobras","f. Other","f.2 Other Aromatic Process"]
[2012,"2012-12-01","Verificada","BRA - REPLAN","Brasil","Petrobras","f. Other","f.3 C4 Isomerization"]
[2012,"2012-12-01","Verificada","BRA - REPLAN","Brasil","Petrobras","f. Other","f.4 Solvent Desaphalting"]
[2012,"2012-12-01","Verificada","BRA - REPLAN","Brasil","Petrobras","f. Other","f.5 Lubes & Waxes"]
[2012,"2012-12-01","Verificada","BRA - REPLAN","Brasil","Petrobras","f. Other","f.6 Asphalt & Bitumen Manufacture"]
[2012,"2012-12-01","Verificada","BRA - REPLAN","Brasil","Petrobras","f. Other","f.7 Sulfur Recovery Unit (tonnes/day)",212]
[2012,"2012-12-01","Verificada","BRA - REPLAN","Brasil","Petrobras","g. Fractionation","g.1 Propane/Propylene Splitter"]
[2012,"2012-12-01","Verificada","BRA - REPLAN","Brasil","Petrobras","g. Fractionation","g.2 Deisobutanizer"]
[2012,"2012-12-01","Verificada","BRA - REPLAN","Brasil","Petrobras","g. Fractionation","g.3 Deisopentanizer"]
[2012,"2012-12-01","Verificada","BRA - REPLAN","Brasil","Petrobras","g. Fractionation","g.4 Deisohexanizer"]
[2012,"2012-12-01","Verificada","BRA - REPLAN","Brasil","Petrobras","g. Fractionation","g.5 Alkylate Splitter"]
[2012,"2012-12-01","Verificada","BRA - REPLAN","Brasil","Petrobras","g. Fractionation","g.6 Reformate Splitter"]
[2012,"2012-12-01","Verificada","BRA - REPLAN","Brasil","Petrobras","g. Fractionation","g.7 Cat Cracked Gasoline Splitter"]
[2012,"2012-12-01","Verificada","BRA - REPLAN","Brasil","Petrobras","h. Oxygenates","h.1 MTBE",2079]
[2012,"2012-12-01","Verificada","BRA - REPLAN","Brasil","Petrobras","h. Oxygenates","h.2 TAME"]
[2012,"2012-12-01","Verificada","BRA - REPLAN","Brasil","Petrobras","i. Tank Storage (bbl)","i.1 Crude Oil",7188500]
[2012,"2012-12-01","Verificada","BRA - REPLAN","Brasil","Petrobras","i. Tank Storage (bbl)","i.2 Gasoline",3136000]
[2012,"2012-12-01","Verificada","BRA - REPLAN","Brasil","Petrobras","i. Tank Storage (bbl)","i.3 Diesel",3397700]
[2012,"2012-12-01","Verificada","BRA - REPLAN","Brasil","Petrobras","j. Conversion Rate ","j.1 Conversion Rate ",{"$f":"(+I1852+I1853+(I1866+I1867+I1868)*1.3+I1857*0.33+(I1855+I1856)*1.7)/I1850","v":0.84409027548364735}]
[2012,"2012-12-01","Verificada","BRA - REPLAN","Brasil","Petrobras","k. Desulfurization Rate (%)","k.1 Desulfurization Rate (%)",{"$f":"SUM(I1866:I1870)/I1850","v":0.18074434569612197}]
[2012,"2012-12-01","Verificada","BRA - REVAP","Brasil","Petrobras","a. Crude Distillation","a.1 Atmospheric Crude Distillation",251731]
[2012,"2012-12-01","Verificada","BRA - REVAP","Brasil","Petrobras","a. Crude Distillation","a.2 Vacuum Distillation",125794]
[2012,"2012-12-01","Verificada","BRA - REVAP","Brasil","Petrobras","b. Conversion","b.1 Catalytic Cracking",88056]
[2012,"2012-12-01","Verificada","BRA - REVAP","Brasil","Petrobras","b. Conversion","b.2 Resid Cat Cracking"]
[2012,"2012-12-01","Verificada","BRA - REVAP","Brasil","Petrobras","b. Conversion","b.3 Hydrocracking (Mild Conversion)"]
[2012,"2012-12-01","Verificada","BRA - REVAP","Brasil","Petrobras","b. Conversion","b.4 Coking -- Delayed"]
[2012,"2012-12-01","Verificada","BRA - REVAP","Brasil","Petrobras","b. Conversion","b.5 Coking -- Fluid"]
[2012,"2012-12-01","Verificada","BRA - REVAP","Brasil","Petrobras","b. Conversion","b.6 Visbreaking"]
[2012,"2012-12-01","Verificada","BRA - REVAP","Brasil","Petrobras","c. Upgrading","c.1 H-Oil"]
[2012,"2012-12-01","Verificada","BRA - REVAP","Brasil","Petrobras","c. Upgrading","c.2 HDH"]
[2012,"2012-12-01","Verificada","BRA - REVAP","Brasil","Petrobras","c. Upgrading","c.3 Alkylation (Product basis)"]
[2012,"2012-12-01","Verificada","BRA - REVAP","Brasil","Petrobras","c. Upgrading","c.4 Polymerization"]
[2012,"2012-12-01","Verificada","BRA - REVAP","Brasil","Petrobras","c. Upgrading","c.5 C5/C6 Isomerization"]
[2012,"2012-12-01","Verificada","BRA - REVAP","Brasil","Petrobras","c. Upgrading","c.6 Catalytic Reforming -- Low Pressure"]
[2012,"2012-12-01","Verificada","BRA - REVAP","Brasil","Petrobras","c. Upgrading","c.7 Catalytic Reforming -- Medium Pressure"]
[2012,"2012-12-01","Verificada","BRA - REVAP","Brasil","Petrobras","c. Upgrading","c.8 Catalytic Reforming -- High Pressure"]
[2012,"2012-12-01","Verificada","BRA - REVAP","Brasil","Petrobras","d. Hydrotreating","d.1 Gasoline/Naphtha Hydrotreating"]
[2012,"2012-12-01","Verificada","BRA - REVAP","Brasil","Petrobras","d. Hydrotreating","d.2 Kerosene Hydrotreating",40883]
[2012,"2012-12-01","Verificada","BRA - REVAP","Brasil","Petrobras","d. Hydrotreating","d.3 Distillate Hydrotreating",40883]
[2012,"2012-12-01","Verificada","BRA - REVAP","Brasil","Petrobras","d. Hydrotreating","d.4 Residual Desulfurization"]
[2012,"2012-12-01","Verificada","BRA - REVAP","Brasil","Petrobras","d. Hydrotreating","d.5 Gas Oil Desulfurization"]
[2012,"2012-12-01","Verificada","BRA - REVAP","Brasil","Petrobras","e. Hydrogen (k scf/d)","e.1 Hydrogen Generation",10451]
[2012,"2012-12-01","Verificada","BRA - REVAP","Brasil","Petrobras","e. Hydrogen (k scf/d)","e.2 Purification"]
[2012,"2012-12-01","Verificada","BRA - REVAP","Brasil","Petrobras","f. Other","f.1 Aromatic Solvent Extraction"]
[2012,"2012-12-01","Verificada","BRA - REVAP","Brasil","Petrobras","f. Other","f.2 Other Aromatic Process"]
[2012,"2012-12-01","Verificada","BRA - REVAP","Brasil","Petrobras","f. Other","f.3 C4 Isomerization"]
[2012,"2012-12-01","Verificada","BRA - REVAP","Brasil","Petrobras","f. Other","f.4 Solvent Desaphalting",42770]
[2012,"2012-12-01","Verificada","BRA - REVAP","Brasil","Petrobras","f. Other","f.5 Lubes & Waxes"]
[2012,"2012-12-01","Verificada","BRA - REVAP","Brasil","Petrobras","f. Other","f.6 Asphalt & Bitumen Manufacture"]
[2012,"2012-12-01","Verificada","BRA - REVAP","Brasil","Petrobras","f. Other","f.7 Sulfur Recovery Unit (tonnes/day)",85]
[2012,"2012-12-01","Verificada","BRA - REVAP","Brasil","Petrobras","g. Fractionation","g.1 Propane/Propylene Splitter"]
[2012,"2012-12-01","Verificada","BRA - REVAP","Brasil","Petrobras","g. Fractionation","g.2 Deisobutanizer"]
[2012,"2012-12-01","Verificada","BRA - REVAP","Brasil","Petrobras","g. Fractionation","g.3 Deisopentanizer"]
[2012,"2012-12-01","Verificada","BRA - REVAP","Brasil","Petrobras","g. Fractionation","g.4 Deisohexanizer"]
[2012,"2012-12-01","Verificada","BRA - REVAP","Brasil","Petrobras","g. Fractionation","g.5 Alkylate Splitter"]
[2012,"2012-12-01","Verificada","BRA - REVAP","Brasil","Petrobras","g. Fractionation","g.6 Reformate Splitter"]
[2012,"2012-12-01","Verificada","BRA - REVAP","Brasil","Petrobras","g. Fractionation","g.7 Cat Cracked Gasoline Splitter"]
[2012,"2012-12-01","Verificada","BRA - REVAP","Brasil","Petrobras","h. Oxygenates","h.1 MTBE",1572]
[2012,"2012-12-01","Verificada","BRA - REVAP","Brasil","Petrobras","h. Oxygenates","h.2 TAME"]
[2012,"2012-12-01","Verificada","BRA - REVAP","Brasil","Petrobras","i. Tank Storage (bbl)","i.1 Crude Oil",4793800]
[2012,"2012-12-01","Verificada","BRA - REVAP","Brasil","Petrobras","i. Tank Storage (bbl)","i.2 Gasoline",2874700]
[2012,"2012-12-01","Verificada","BRA - REVAP","Brasil","Petrobras","i. Tank Storage (bbl)","i.3 Diesel",1891000]
[2012,"2012-12-01","Verificada","BRA - REVAP","Brasil","Petrobras","j. Conversion Rate ","j.1 Conversion Rate ",{"$f":"(+I1896+I1897+(I1910+I1911+I1912)*1.3+I1901*0.33+(I1899+I1900)*1.7)/I1894","v":0.77206144654412845}]
[2012,"2012-12-01","Verificada","BRA - REVAP","Brasil","Petrobras","k. Desulfurization Rate (%)","k.1 Desulfurization Rate (%)",{"$f":"SUM(I1910:I1914)/I1894","v":0.32481498107106394}]
[2012,"2012-12-01","Verificada","BRA - RECAP","Brasil","Petrobras","a. Crude Distillation","a.1 Atmospheric Crude Distillation",53459]
[2012,"2012-12-01","Verificada","BRA - RECAP","Brasil","Petrobras","a. Crude Distillation","a.2 Vacuum Distillation"]
[2012,"2012-12-01","Verificada","BRA - RECAP","Brasil","Petrobras","b. Conversion","b.1 Catalytic Cracking"]
[2012,"2012-12-01","Verificada","BRA - RECAP","Brasil","Petrobras","b. Conversion","b.2 Resid Cat Cracking",22013]
[2012,"2012-12-01","Verificada","BRA - RECAP","Brasil","Petrobras","b. Conversion","b.3 Hydrocracking (Mild Conversion)"]
[2012,"2012-12-01","Verificada","BRA - RECAP","Brasil","Petrobras","b. Conversion","b.4 Coking -- Delayed"]
[2012,"2012-12-01","Verificada","BRA - RECAP","Brasil","Petrobras","b. Conversion","b.5 Coking -- Fluid"]
[2012,"2012-12-01","Verificada","BRA - RECAP","Brasil","Petrobras","b. Conversion","b.6 Visbreaking"]
[2012,"2012-12-01","Verificada","BRA - RECAP","Brasil","Petrobras","c. Upgrading","c.1 H-Oil"]
[2012,"2012-12-01","Verificada","BRA - RECAP","Brasil","Petrobras","c. Upgrading","c.2 HDH"]
[2012,"2012-12-01","Verificada","BRA - RECAP","Brasil","Petrobras","c. Upgrading","c.3 Alkylation (Product basis)"]
[2012,"2012-12-01","Verificada","BRA - RECAP","Brasil","Petrobras","c. Upgrading","c.4 Polymerization"]
[2012,"2012-12-01","Verificada","BRA - RECAP","Brasil","Petrobras","c. Upgrading","c.5 C5/C6 Isomerization"]
[2012,"2012-12-01","Verificada","BRA - RECAP","Brasil","Petrobras","c. Upgrading","c.6 Catalytic Reforming -- Low Pressure"]
[2012,"2012-12-01","Verificada","BRA - RECAP","Brasil","Petrobras","c. Upgrading","c.7 Catalytic Reforming -- Medium Pressure"]
[2012,"2012-12-01","Verificada","BRA - RECAP","Brasil","Petrobras","c. Upgrading","c.8 Catalytic Reforming -- High Pressure"]
[2012,"2012-12-01","Verificada","BRA - RECAP","Brasil","Petrobras","d. Hydrotreating","d.1 Gasoline/Naphtha Hydrotreating"]
[2012,"2012-12-01","Verificada","BRA - RECAP","Brasil","Petrobras","d. Hydrotreating","d.2 Kerosene Hydrotreating"]
[2012,"2012-12-01","Verificada","BRA - RECAP","Brasil","Petrobras","d. Hydrotreating","d.3 Distillate Hydrotreating"]
[2012,"2012-12-01","Verificada","BRA - RECAP","Brasil","Petrobras","d. Hydrotreating","d.4 Residual Desulfurization"]
[2012,"2012-12-01","Verificada","BRA - RECAP","Brasil","Petrobras","d. Hydrotreating","d.5 Gas Oil Desulfurization"]
[2012,"2012-12-01","Verificada","BRA - RECAP","Brasil","Petrobras","e. Hydrogen (k scf/d)","e.1 Hydrogen Generation"]
[2012,"2012-12-01","Verificada","BRA - RECAP","Brasil","Petrobras","e. Hydrogen (k scf/d)","e.2 Purification"]
[2012,"2012-12-01","Verificada","BRA - RECAP","Brasil","Petrobras","f. Other","f.1 Aromatic Solvent Extraction"]
[2012,"2012-12-01","Verificada","BRA - RECAP","Brasil","Petrobras","f. Other","f.2 Other Aromatic Process"]
[2012,"2012-12-01","Verificada","BRA - RECAP","Brasil","Petrobras","f. Other","f.3 C4 Isomerization"]
[2012,"2012-12-01","Verificada","BRA - RECAP","Brasil","Petrobras","f. Other","f.4 Solvent Desaphalting"]
[2012,"2012-12-01","Verificada","BRA - RECAP","Brasil","Petrobras","f. Other","f.5 Lubes & Waxes"]
[2012,"2012-12-01","Verificada","BRA - RECAP","Brasil","Petrobras","f. Other","f.6 Asphalt & Bitumen Manufacture"]
[2012,"2012-12-01","Verificada","BRA - RECAP","Brasil","Petrobras","f. Other","f.7 Sulfur Recovery Unit (tonnes/day)",9]
[2012,"2012-12-01","Verificada","BRA - RECAP","Brasil","Petrobras","g. Fractionation","g.1 Propane/Propylene Splitter"]
[2012,"2012-12-01","Verificada","BRA - RECAP","Brasil","Petrobras","g. Fractionation","g.2 Deisobutanizer"]
[2012,"2012-12-01","Verificada","BRA - RECAP","Brasil","Petrobras","g. Fractionation","g.3 Deisopentanizer"]
[2012,"2012-12-01","Verificada","BRA - RECAP","Brasil","Petrobras","g. Fractionation","g.4 Deisohexanizer"]
[2012,"2012-12-01","Verificada","BRA - RECAP","Brasil","Petrobras","g. Fractionation","g.5 Alkylate Splitter"]
[2012,"2012-12-01","Verificada","BRA - RECAP","Brasil","Petrobras","g. Fractionation","g.6 Reformate Splitter"]
[2012,"2012-12-01","Verificada","BRA - RECAP","Brasil","Petrobras","g. Fractionation","g.7 Cat Cracked Gasoline Splitter"]
[2012,"2012-12-01","Verificada","BRA - RECAP","Brasil","Petrobras","h. Oxygenates","h.1 MTBE"]
[2012,"2012-12-01","Verificada","BRA - RECAP","Brasil","Petrobras","h. Oxygenates","h.2 TAME"]
[2012,"2012-12-01","Verificada","BRA - RECAP","Brasil","Petrobras","i. Tank Storage (bbl)","i.1 Crude Oil"]
[2012,"2012-12-01","Verificada","BRA - RECAP","Brasil","Petrobras","i. Tank Storage (bbl)","i.2 Gasoline",1279.0880503144654]
[2012,"2012-12-01","Verificada","BRA - RECAP","Brasil","Petrobras","i. Tank Storage (bbl)","i.3 Diesel",637.45283018867929]
[2012,"2012-12-01","Verificada","BRA - RECAP","Brasil","Petrobras","j. Conversion Rate ","j.1 Conversion Rate ",{"$f":"(+I1940+I1941+(I1954+I1955+I1956)*1.3+I1945*0.33+(I1943+I1944)*1.7)/I1938","v":0.41177350867019585}]
[2012,"2012-12-01","Verificada","BRA - RECAP","Brasil","Petrobras","k. Desulfurization Rate (%)","k.1 Desulfurization Rate (%)",{"$f":"SUM(I1954:I1958)/I1938","v":0}]
[2012,"2012-12-01","Verificada","BRA - REPAR","Brasil","Petrobras","a. Crude Distillation","a.1 Atmospheric Crude Distillation",201280]
[2012,"2012-12-01","Verificada","BRA - REPAR","Brasil","Petrobras","a. Crude Distillation","a.2 Vacuum Distillation",93721]
[2012,"2012-12-01","Verificada","BRA - REPAR","Brasil","Petrobras","b. Conversion","b.1 Catalytic Cracking",57898]
[2012,"2012-12-01","Verificada","BRA - REPAR","Brasil","Petrobras","b. Conversion","b.2 Resid Cat Cracking"]
[2012,"2012-12-01","Verificada","BRA - REPAR","Brasil","Petrobras","b. Conversion","b.3 Hydrocracking (Mild Conversion)"]
[2012,"2012-12-01","Verificada","BRA - REPAR","Brasil","Petrobras","b. Conversion","b.4 Coking -- Delayed"]
[2012,"2012-12-01","Verificada","BRA - REPAR","Brasil","Petrobras","b. Conversion","b.5 Coking -- Fluid"]
[2012,"2012-12-01","Verificada","BRA - REPAR","Brasil","Petrobras","b. Conversion","b.6 Visbreaking"]
[2012,"2012-12-01","Verificada","BRA - REPAR","Brasil","Petrobras","c. Upgrading","c.1 H-Oil"]
[2012,"2012-12-01","Verificada","BRA - REPAR","Brasil","Petrobras","c. Upgrading","c.2 HDH"]
[2012,"2012-12-01","Verificada","BRA - REPAR","Brasil","Petrobras","c. Upgrading","c.3 Alkylation (Product basis)"]
[2012,"2012-12-01","Verificada","BRA - REPAR","Brasil","Petrobras","c. Upgrading","c.4 Polymerization"]
[2012,"2012-12-01","Verificada","BRA - REPAR","Brasil","Petrobras","c. Upgrading","c.5 C5/C6 Isomerization"]
[2012,"2012-12-01","Verificada","BRA - REPAR","Brasil","Petrobras","c. Upgrading","c.6 Catalytic Reforming -- Low Pressure"]
[2012,"2012-12-01","Verificada","BRA - REPAR","Brasil","Petrobras","c. Upgrading","c.7 Catalytic Reforming -- Medium Pressure"]
[2012,"2012-12-01","Verificada","BRA - REPAR","Brasil","Petrobras","c. Upgrading","c.8 Catalytic Reforming -- High Pressure"]
[2012,"2012-12-01","Verificada","BRA - REPAR","Brasil","Petrobras","d. Hydrotreating","d.1 Gasoline/Naphtha Hydrotreating"]
[2012,"2012-12-01","Verificada","BRA - REPAR","Brasil","Petrobras","d. Hydrotreating","d.2 Kerosene Hydrotreating"]
[2012,"2012-12-01","Verificada","BRA - REPAR","Brasil","Petrobras","d. Hydrotreating","d.3 Distillate Hydrotreating",34613]
[2012,"2012-12-01","Verificada","BRA - REPAR","Brasil","Petrobras","d. Hydrotreating","d.4 Residual Desulfurization"]
[2012,"2012-12-01","Verificada","BRA - REPAR","Brasil","Petrobras","d. Hydrotreating","d.5 Gas Oil Desulfurization"]
[2012,"2012-12-01","Verificada","BRA - REPAR","Brasil","Petrobras","e. Hydrogen (k scf/d)","e.1 Hydrogen Generation",9535]
[2012,"2012-12-01","Verificada","BRA - REPAR","Brasil","Petrobras","e. Hydrogen (k scf/d)","e.2 Purification"]
[2012,"2012-12-01","Verificada","BRA - REPAR","Brasil","Petrobras","f. Other","f.1 Aromatic Solvent Extraction"]
[2012,"2012-12-01","Verificada","BRA - REPAR","Brasil","Petrobras","f. Other","f.2 Other Aromatic Process"]
[2012,"2012-12-01","Verificada","BRA - REPAR","Brasil","Petrobras","f. Other","f.3 C4 Isomerization"]
[2012,"2012-12-01","Verificada","BRA - REPAR","Brasil","Petrobras","f. Other","f.4 Solvent Desaphalting",32096]
[2012,"2012-12-01","Verificada","BRA - REPAR","Brasil","Petrobras","f. Other","f.5 Lubes & Waxes"]
[2012,"2012-12-01","Verificada","BRA - REPAR","Brasil","Petrobras","f. Other","f.6 Asphalt & Bitumen Manufacture"]
[2012,"2012-12-01","Verificada","BRA - REPAR","Brasil","Petrobras","f. Other","f.7 Sulfur Recovery Unit (tonnes/day)",70]
[2012,"2012-12-01","Verificada","BRA - REPAR","Brasil","Petrobras","g. Fractionation","g.1 Propane/Propylene Splitter"]
[2012,"2012-12-01","Verificada","BRA - REPAR","Brasil","Petrobras","g. Fractionation","g.2 Deisobutanizer"]
[2012,"2012-12-01","Verificada","BRA - REPAR","Brasil","Petrobras","g. Fractionation","g.3 Deisopentanizer"]
[2012,"2012-12-01","Verificada","BRA - REPAR","Brasil","Petrobras","g. Fractionation","g.4 Deisohexanizer"]
[2012,"2012-12-01","Verificada","BRA - REPAR","Brasil","Petrobras","g. Fractionation","g.5 Alkylate Splitter"]
[2012,"2012-12-01","Verificada","BRA - REPAR","Brasil","Petrobras","g. Fractionation","g.6 Reformate Splitter"]
[2012,"2012-12-01","Verificada","BRA - REPAR","Brasil","Petrobras","g. Fractionation","g.7 Cat Cracked Gasoline Splitter"]
[2012,"2012-12-01","Verificada","BRA - REPAR","Brasil","Petrobras","h. Oxygenates","h.1 MTBE",1913]
[2012,"2012-12-01","Verificada","BRA - REPAR","Brasil","Petrobras","h. Oxygenates","h.2 TAME"]
[2012,"2012-12-01","Verificada","BRA - REPAR","Brasil","Petrobras","i. Tank Storage (bbl)","i.1 Crude Oil",3325600]
[2012,"2012-12-01","Verificada","BRA - REPAR","Brasil","Petrobras","i. Tank Storage (bbl)","i.2 Gasoline",1595400]
[2012,"2012-12-01","Verificada","BRA - REPAR","Brasil","Petrobras","i. Tank Storage (bbl)","i.3 Diesel",1116900]
[2012,"2012-12-01","Verificada","BRA - REPAR","Brasil","Petrobras","j. Conversion Rate ","j.1 Conversion Rate ",{"$f":"(+I1984+I1985+(I1998+I1999+I2000)*1.3+I1989*0.33+(I1987+I1988)*1.7)/I1982","v":0.5112028020667726}]
[2012,"2012-12-01","Verificada","BRA - REPAR","Brasil","Petrobras","k. Desulfurization Rate (%)","k.1 Desulfurization Rate (%)",{"$f":"SUM(I1998:I2002)/I1982","v":0.17196442766295708}]
[2012,"2012-12-01","Verificada","BRA - REFAP","Brasil","Petrobras","a. Crude Distillation","a.1 Atmospheric Crude Distillation",188679]
[2012,"2012-12-01","Verificada","BRA - REFAP","Brasil","Petrobras","a. Crude Distillation","a.2 Vacuum Distillation",37736]
[2012,"2012-12-01","Verificada","BRA - REFAP","Brasil","Petrobras","b. Conversion","b.1 Catalytic Cracking",21384]
[2012,"2012-12-01","Verificada","BRA - REFAP","Brasil","Petrobras","b. Conversion","b.2 Resid Cat Cracking",44025]
[2012,"2012-12-01","Verificada","BRA - REFAP","Brasil","Petrobras","b. Conversion","b.3 Hydrocracking (Mild Conversion)"]
[2012,"2012-12-01","Verificada","BRA - REFAP","Brasil","Petrobras","b. Conversion","b.4 Coking -- Delayed",12579]
[2012,"2012-12-01","Verificada","BRA - REFAP","Brasil","Petrobras","b. Conversion","b.5 Coking -- Fluid"]
[2012,"2012-12-01","Verificada","BRA - REFAP","Brasil","Petrobras","b. Conversion","b.6 Visbreaking"]
[2012,"2012-12-01","Verificada","BRA - REFAP","Brasil","Petrobras","c. Upgrading","c.1 H-Oil"]
[2012,"2012-12-01","Verificada","BRA - REFAP","Brasil","Petrobras","c. Upgrading","c.2 HDH"]
[2012,"2012-12-01","Verificada","BRA - REFAP","Brasil","Petrobras","c. Upgrading","c.3 Alkylation (Product basis)"]
[2012,"2012-12-01","Verificada","BRA - REFAP","Brasil","Petrobras","c. Upgrading","c.4 Polymerization"]
[2012,"2012-12-01","Verificada","BRA - REFAP","Brasil","Petrobras","c. Upgrading","c.5 C5/C6 Isomerization"]
[2012,"2012-12-01","Verificada","BRA - REFAP","Brasil","Petrobras","c. Upgrading","c.6 Catalytic Reforming -- Low Pressure"]
[2012,"2012-12-01","Verificada","BRA - REFAP","Brasil","Petrobras","c. Upgrading","c.7 Catalytic Reforming -- Medium Pressure"]
[2012,"2012-12-01","Verificada","BRA - REFAP","Brasil","Petrobras","c. Upgrading","c.8 Catalytic Reforming -- High Pressure"]
[2012,"2012-12-01","Verificada","BRA - REFAP","Brasil","Petrobras","d. Hydrotreating","d.1 Gasoline/Naphtha Hydrotreating"]
[2012,"2012-12-01","Verificada","BRA - REFAP","Brasil","Petrobras","d. Hydrotreating","d.2 Kerosene Hydrotreating"]
[2012,"2012-12-01","Verificada","BRA - REFAP","Brasil","Petrobras","d. Hydrotreating","d.3 Distillate Hydrotreating",25157]
[2012,"2012-12-01","Verificada","BRA - REFAP","Brasil","Petrobras","d. Hydrotreating","d.4 Residual Desulfurization"]
[2012,"2012-12-01","Verificada","BRA - REFAP","Brasil","Petrobras","d. Hydrotreating","d.5 Gas Oil Desulfurization"]
[2012,"2012-12-01","Verificada","BRA - REFAP","Brasil","Petrobras","e. Hydrogen (k scf/d)","e.1 Hydrogen Generation",21153]
[2012,"2012-12-01","Verificada","BRA - REFAP","Brasil","Petrobras","e. Hydrogen (k scf/d)","e.2 Purification"]
[2012,"2012-12-01","Verificada","BRA - REFAP","Brasil","Petrobras","f. Other","f.1 Aromatic Solvent Extraction"]
[2012,"2012-12-01","Verificada","BRA - REFAP","Brasil","Petrobras","f. Other","f.2 Other Aromatic Process"]
[2012,"2012-12-01","Verificada","BRA - REFAP","Brasil","Petrobras","f. Other","f.3 C4 Isomerization"]
[2012,"2012-12-01","Verificada","BRA - REFAP","Brasil","Petrobras","f. Other","f.4 Solvent Desaphalting"]
[2012,"2012-12-01","Verificada","BRA - REFAP","Brasil","Petrobras","f. Other","f.5 Lubes & Waxes"]
[2012,"2012-12-01","Verificada","BRA - REFAP","Brasil","Petrobras","f. Other","f.6 Asphalt & Bitumen Manufacture"]
[2012,"2012-12-01","Verificada","BRA - REFAP","Brasil","Petrobras","f. Other","f.7 Sulfur Recovery Unit (tonnes/day)",98]
[2012,"2012-12-01","Verificada","BRA - REFAP","Brasil","Petrobras","g. Fractionation","g.1 Propane/Propylene Splitter"]
[2012,"2012-12-01","Verificada","BRA - REFAP","Brasil","Petrobras","g. Fractionation","g.2 Deisobutanizer"]
[2012,"2012-12-01","Verificada","BRA - REFAP","Brasil","Petrobras","g. Fractionation","g.3 Deisopentanizer"]
[2012,"2012-12-01","Verificada","BRA - REFAP","Brasil","Petrobras","g. Fractionation","g.4 Deisohexanizer"]
[2012,"2012-12-01","Verificada","BRA - REFAP","Brasil","Petrobras","g. Fractionation","g.5 Alkylate Splitter"]
[2012,"2012-12-01","Verificada","BRA - REFAP","Brasil","Petrobras","g. Fractionation","g.6 Reformate Splitter"]
[2012,"2012-12-01","Verificada","BRA - REFAP","Brasil","Petrobras","g. Fractionation","g.7 Cat Cracked Gasoline Splitter"]
[2012,"2012-12-01","Verificada","BRA - REFAP","Brasil","Petrobras","h. Oxygenates","h.1 MTBE"]
[2012,"2012-12-01","Verificada","BRA - REFAP","Brasil","Petrobras","h. Oxygenates","h.2 TAME"]
[2012,"2012-12-01","Verificada","BRA - REFAP","Brasil","Petrobras","i. Tank Storage (bbl)","i.1 Crude Oil",4193200]
[2012,"2012-12-01","Verificada","BRA - REFAP","Brasil","Petrobras","i. Tank Storage (bbl)","i.2 Gasoline",2077700]
[2012,"2012-12-01","Verificada","BRA - REFAP","Brasil","Petrobras","i. Tank Storage (bbl)","i.3 Diesel",1503200]
[2012,"2012-12-01","Verificada","BRA - REFAP","Brasil","Petrobras","j. Conversion Rate ","j.1 Conversion Rate ",{"$f":"(+I2028+I2029+(I2042+I2043+I2044)*1.3+I2033*0.33+(I2031+I2032)*1.7)/I2026","v":0.63333704333815644}]
[2012,"2012-12-01","Verificada","BRA - REFAP","Brasil","Petrobras","k. Desulfurization Rate (%)","k.1 Desulfurization Rate (%)",{"$f":"SUM(I2042:I2046)/I2026","v":0.13333227333195533}]